date,department/service,beneficiary,amount,summary of purpose,category,transaction number,SAP vendor number
01.03.2023,ADULT SOCIAL CARE,EDGE TRAINING AND CONSULTANCY LTD,"4,375.00",ASW - PROFESSIONAL DEVELOPMENT,CONSULTANTS SERVICES,5902567678,1000057249
01.03.2023,ASSET MANAGEMENT,PROPERTY FACILITIES GROUP LTD,703.86,DISREPAIR,BUILDING R&M,5902567952,1000063713
01.03.2023,ENVIRONMENT AND LEISURE,ORANGE WITH BLUE IKE,"25,818.75",DIGITAL HEALTH,EXTERNAL AGENCIES AND BODIES,6102075938,INTERNATIONAL PAYMENT
02.03.2023,ADULT SOCIAL CARE,DERWENT RESIDENTIAL CARE LTD,459,APPOINTEESHIPS,OTHER PAYMENTS FOR CLIENTS,5902568783,1000069967
02.03.2023,ADULT SOCIAL CARE,REDACTED PERSONAL DATA,600,APPOINTEESHIPS,OTHER PAYMENTS FOR CLIENTS,REDACTED,REDACTED
02.03.2023,ADULT SOCIAL CARE,REDACTED PERSONAL DATA,279.85,APPOINTEESHIPS,OTHER PAYMENTS FOR CLIENTS,REDACTED,REDACTED
02.03.2023,ADULT SOCIAL CARE,LONDON CARE LTD,892.54,LD LTS 18-64,HOMECARE - C&V,2103630363,1000003398
02.03.2023,ADULT SOCIAL CARE,SUPREME CARE SERVICES LTD,663.48,LD LTS 18-64,HOMECARE - C&V,2103630694,1000059416
02.03.2023,ADULT SOCIAL CARE,KEEVA CARE LIMITED,420,LD LTS 18-64,SUPPORTED LIVING,2103630736,1000086100
02.03.2023,ADULT SOCIAL CARE,REDACTED PERSONAL DATA,426.72,LD LTS 18-64,SUPPORTED LIVING,REDACTED,REDACTED
02.03.2023,ADULT SOCIAL CARE,REDACTED PERSONAL DATA,568.96,LD LTS 18-64,SUPPORTED LIVING,REDACTED,REDACTED
02.03.2023,ADULT SOCIAL CARE,REDACTED PERSONAL DATA,640.08,LD LTS 18-64,SUPPORTED LIVING,REDACTED,REDACTED
02.03.2023,ADULT SOCIAL CARE,REDACTED PERSONAL DATA,711.2,LD LTS 18-64,SUPPORTED LIVING,REDACTED,REDACTED
02.03.2023,ADULT SOCIAL CARE,REDACTED PERSONAL DATA,"1,351.28",LD LTS 18-64,SUPPORTED LIVING,REDACTED,REDACTED
02.03.2023,ADULT SOCIAL CARE,LONDON CARE LTD,284.82,MEM LTS 18-64,HOMECARE - C&V,2103630537,1000003398
02.03.2023,ADULT SOCIAL CARE,LONDON CARE LTD,622.2,MEM LTS 18-64,HOMECARE - C&V,2103630609,1000003398
02.03.2023,ADULT SOCIAL CARE,LONDON CARE LTD,916.42,MEM LTS 18-64,HOMECARE - C&V,2103630514,1000003398
02.03.2023,ADULT SOCIAL CARE,LONDON CARE LTD,384.57,MEM LTS 65+,HOMECARE - C&V,2103630352,1000003398
02.03.2023,ADULT SOCIAL CARE,LONDON CARE LTD,536.74,MEM LTS 65+,HOMECARE - C&V,2103630685,1000003398
02.03.2023,ADULT SOCIAL CARE,LONDON CARE LTD,588.69,MEM LTS 65+,HOMECARE - C&V,2103630416,1000003398
02.03.2023,ADULT SOCIAL CARE,LONDON CARE LTD,640.93,MEM LTS 65+,HOMECARE - C&V,2103630329,1000003398
02.03.2023,ADULT SOCIAL CARE,LONDON CARE LTD,861.54,MEM LTS 65+,HOMECARE - C&V,2103630538,1000003398
02.03.2023,ADULT SOCIAL CARE,LONDON CARE LTD,"1,039.95",MEM LTS 65+,HOMECARE - C&V,2103630657,1000003398
02.03.2023,ADULT SOCIAL CARE,LONDON CARE LTD,"1,368.50",MEM LTS 65+,HOMECARE - C&V,2103630389,1000003398
02.03.2023,ADULT SOCIAL CARE,LONDON CARE LTD,"1,424.41",MEM LTS 65+,HOMECARE - C&V,2103630309,1000003398
02.03.2023,ADULT SOCIAL CARE,LONDON CARE LTD,"1,547.80",MEM LTS 65+,HOMECARE - C&V,2103630306,1000003398
02.03.2023,ADULT SOCIAL CARE,LONDON CARE LTD,"2,198.08",MEM LTS 65+,HOMECARE - C&V,2103630390,1000003398
02.03.2023,ADULT SOCIAL CARE,LONDON CARE LTD,"2,625.66",MEM LTS 65+,HOMECARE - C&V,2103630558,1000003398
02.03.2023,ADULT SOCIAL CARE,SUPREME CARE SERVICES LTD,516.04,MEM LTS 65+,HOMECARE - C&V,2103630702,1000059416
02.03.2023,ADULT SOCIAL CARE,SUPREME CARE SERVICES LTD,847.8,MEM LTS 65+,HOMECARE - C&V,2103630695,1000059416
02.03.2023,ADULT SOCIAL CARE,LONDON CARE LTD,308.59,MH LTS 18-64,HOMECARE - C&V,2103630403,1000003398
02.03.2023,ADULT SOCIAL CARE,LONDON CARE LTD,308.59,MH LTS 18-64,HOMECARE - C&V,2103630505,1000003398
02.03.2023,ADULT SOCIAL CARE,LONDON CARE LTD,327.74,MH LTS 18-64,HOMECARE - C&V,2103630621,1000003398
02.03.2023,ADULT SOCIAL CARE,LONDON CARE LTD,465.26,MH LTS 18-64,HOMECARE - C&V,2103630427,1000003398
02.03.2023,ADULT SOCIAL CARE,LONDON CARE LTD,522.5,MH LTS 18-64,HOMECARE - C&V,2103630453,1000003398
02.03.2023,ADULT SOCIAL CARE,LONDON CARE LTD,"1,020.80",MH LTS 18-64,HOMECARE - C&V,2103630380,1000003398
02.03.2023,ADULT SOCIAL CARE,LONDON CARE LTD,"1,077.69",MH LTS 18-64,HOMECARE - C&V,2103630515,1000003398
02.03.2023,ADULT SOCIAL CARE,LONDON CARE LTD,"1,832.93",MH LTS 18-64,HOMECARE - C&V,2103630307,1000003398
02.03.2023,ADULT SOCIAL CARE,REDACTED PERSONAL DATA,284.48,MH LTS 18-64,SUPPORTED LIVING,REDACTED,REDACTED
02.03.2023,ADULT SOCIAL CARE,REDACTED PERSONAL DATA,284.48,MH LTS 18-64,SUPPORTED LIVING,REDACTED,REDACTED
02.03.2023,ADULT SOCIAL CARE,REDACTED PERSONAL DATA,284.48,MH LTS 18-64,SUPPORTED LIVING,REDACTED,REDACTED
02.03.2023,ADULT SOCIAL CARE,REDACTED PERSONAL DATA,284.48,MH LTS 18-64,SUPPORTED LIVING,REDACTED,REDACTED
02.03.2023,ADULT SOCIAL CARE,REDACTED PERSONAL DATA,284.48,MH LTS 18-64,SUPPORTED LIVING,REDACTED,REDACTED
02.03.2023,ADULT SOCIAL CARE,REDACTED PERSONAL DATA,284.48,MH LTS 18-64,SUPPORTED LIVING,REDACTED,REDACTED
02.03.2023,ADULT SOCIAL CARE,REDACTED PERSONAL DATA,284.48,MH LTS 18-64,SUPPORTED LIVING,REDACTED,REDACTED
02.03.2023,ADULT SOCIAL CARE,REDACTED PERSONAL DATA,284.48,MH LTS 18-64,SUPPORTED LIVING,REDACTED,REDACTED
02.03.2023,ADULT SOCIAL CARE,REDACTED PERSONAL DATA,284.48,MH LTS 18-64,SUPPORTED LIVING,REDACTED,REDACTED
02.03.2023,ADULT SOCIAL CARE,REDACTED PERSONAL DATA,284.48,MH LTS 18-64,SUPPORTED LIVING,REDACTED,REDACTED
02.03.2023,ADULT SOCIAL CARE,REDACTED PERSONAL DATA,284.48,MH LTS 18-64,SUPPORTED LIVING,REDACTED,REDACTED
02.03.2023,ADULT SOCIAL CARE,REDACTED PERSONAL DATA,284.48,MH LTS 18-64,SUPPORTED LIVING,REDACTED,REDACTED
02.03.2023,ADULT SOCIAL CARE,REDACTED PERSONAL DATA,284.48,MH LTS 18-64,SUPPORTED LIVING,REDACTED,REDACTED
02.03.2023,ADULT SOCIAL CARE,REDACTED PERSONAL DATA,320.04,MH LTS 18-64,SUPPORTED LIVING,REDACTED,REDACTED
02.03.2023,ADULT SOCIAL CARE,REDACTED PERSONAL DATA,320.04,MH LTS 18-64,SUPPORTED LIVING,REDACTED,REDACTED
02.03.2023,ADULT SOCIAL CARE,REDACTED PERSONAL DATA,320.04,MH LTS 18-64,SUPPORTED LIVING,REDACTED,REDACTED
02.03.2023,ADULT SOCIAL CARE,REDACTED PERSONAL DATA,320.04,MH LTS 18-64,SUPPORTED LIVING,REDACTED,REDACTED
02.03.2023,ADULT SOCIAL CARE,REDACTED PERSONAL DATA,320.04,MH LTS 18-64,SUPPORTED LIVING,REDACTED,REDACTED
02.03.2023,ADULT SOCIAL CARE,REDACTED PERSONAL DATA,320.04,MH LTS 18-64,SUPPORTED LIVING,REDACTED,REDACTED
02.03.2023,ADULT SOCIAL CARE,REDACTED PERSONAL DATA,355.6,MH LTS 18-64,SUPPORTED LIVING,REDACTED,REDACTED
02.03.2023,ADULT SOCIAL CARE,REDACTED PERSONAL DATA,355.6,MH LTS 18-64,SUPPORTED LIVING,REDACTED,REDACTED
02.03.2023,ADULT SOCIAL CARE,REDACTED PERSONAL DATA,426.72,MH LTS 18-64,SUPPORTED LIVING,REDACTED,REDACTED
02.03.2023,ADULT SOCIAL CARE,REDACTED PERSONAL DATA,426.72,MH LTS 18-64,SUPPORTED LIVING,REDACTED,REDACTED
02.03.2023,ADULT SOCIAL CARE,REDACTED PERSONAL DATA,426.72,MH LTS 18-64,SUPPORTED LIVING,REDACTED,REDACTED
02.03.2023,ADULT SOCIAL CARE,REDACTED PERSONAL DATA,426.72,MH LTS 18-64,SUPPORTED LIVING,REDACTED,REDACTED
02.03.2023,ADULT SOCIAL CARE,REDACTED PERSONAL DATA,426.72,MH LTS 18-64,SUPPORTED LIVING,REDACTED,REDACTED
02.03.2023,ADULT SOCIAL CARE,REDACTED PERSONAL DATA,462.28,MH LTS 18-64,SUPPORTED LIVING,REDACTED,REDACTED
02.03.2023,ADULT SOCIAL CARE,REDACTED PERSONAL DATA,497.84,MH LTS 18-64,SUPPORTED LIVING,REDACTED,REDACTED
02.03.2023,ADULT SOCIAL CARE,REDACTED PERSONAL DATA,497.84,MH LTS 18-64,SUPPORTED LIVING,REDACTED,REDACTED
02.03.2023,ADULT SOCIAL CARE,REDACTED PERSONAL DATA,497.84,MH LTS 18-64,SUPPORTED LIVING,REDACTED,REDACTED
02.03.2023,ADULT SOCIAL CARE,REDACTED PERSONAL DATA,533.4,MH LTS 18-64,SUPPORTED LIVING,REDACTED,REDACTED
02.03.2023,ADULT SOCIAL CARE,REDACTED PERSONAL DATA,568.96,MH LTS 18-64,SUPPORTED LIVING,REDACTED,REDACTED
02.03.2023,ADULT SOCIAL CARE,REDACTED PERSONAL DATA,568.96,MH LTS 18-64,SUPPORTED LIVING,REDACTED,REDACTED
02.03.2023,ADULT SOCIAL CARE,REDACTED PERSONAL DATA,640.08,MH LTS 18-64,SUPPORTED LIVING,REDACTED,REDACTED
02.03.2023,ADULT SOCIAL CARE,REDACTED PERSONAL DATA,640.08,MH LTS 18-64,SUPPORTED LIVING,REDACTED,REDACTED
02.03.2023,ADULT SOCIAL CARE,REDACTED PERSONAL DATA,675.64,MH LTS 18-64,SUPPORTED LIVING,REDACTED,REDACTED
02.03.2023,ADULT SOCIAL CARE,REDACTED PERSONAL DATA,782.32,MH LTS 18-64,SUPPORTED LIVING,REDACTED,REDACTED
02.03.2023,ADULT SOCIAL CARE,REDACTED PERSONAL DATA,977.9,MH LTS 18-64,SUPPORTED LIVING,REDACTED,REDACTED
02.03.2023,ADULT SOCIAL CARE,REDACTED PERSONAL DATA,995.68,MH LTS 18-64,SUPPORTED LIVING,REDACTED,REDACTED
02.03.2023,ADULT SOCIAL CARE,REDACTED PERSONAL DATA,995.68,MH LTS 18-64,SUPPORTED LIVING,REDACTED,REDACTED
02.03.2023,ADULT SOCIAL CARE,REDACTED PERSONAL DATA,"1,280.16",MH LTS 18-64,SUPPORTED LIVING,REDACTED,REDACTED
02.03.2023,ADULT SOCIAL CARE,LONDON CARE LTD,270.56,MH LTS 65+,HOMECARE - C&V,2103630452,1000003398
02.03.2023,ADULT SOCIAL CARE,LONDON CARE LTD,318.11,MH LTS 65+,HOMECARE - C&V,2103630679,1000003398
02.03.2023,ADULT SOCIAL CARE,LONDON CARE LTD,446.2,MH LTS 65+,HOMECARE - C&V,2103630520,1000003398
02.03.2023,ADULT SOCIAL CARE,LONDON CARE LTD,454.29,MH LTS 65+,HOMECARE - C&V,2103630584,1000003398
02.03.2023,ADULT SOCIAL CARE,LONDON CARE LTD,565.02,MH LTS 65+,HOMECARE - C&V,2103630606,1000003398
02.03.2023,ADULT SOCIAL CARE,LONDON CARE LTD,645.68,MH LTS 65+,HOMECARE - C&V,2103630424,1000003398
02.03.2023,ADULT SOCIAL CARE,LONDON CARE LTD,693.19,MH LTS 65+,HOMECARE - C&V,2103630572,1000003398
02.03.2023,ADULT SOCIAL CARE,LONDON CARE LTD,759.88,MH LTS 65+,HOMECARE - C&V,2103630326,1000003398
02.03.2023,ADULT SOCIAL CARE,LONDON CARE LTD,973.62,MH LTS 65+,HOMECARE - C&V,2103630321,1000003398
02.03.2023,ADULT SOCIAL CARE,LONDON CARE LTD,"1,039.92",MH LTS 65+,HOMECARE - C&V,2103630475,1000003398
02.03.2023,ADULT SOCIAL CARE,LONDON CARE LTD,"1,134.98",MH LTS 65+,HOMECARE - C&V,2103630634,1000003398
02.03.2023,ADULT SOCIAL CARE,REDACTED PERSONAL DATA,284.48,MH LTS 65+,SUPPORTED LIVING,REDACTED,REDACTED
02.03.2023,ADULT SOCIAL CARE,REDACTED PERSONAL DATA,284.48,MH LTS 65+,SUPPORTED LIVING,REDACTED,REDACTED
02.03.2023,ADULT SOCIAL CARE,REDACTED PERSONAL DATA,408.94,MH LTS 65+,SUPPORTED LIVING,REDACTED,REDACTED
02.03.2023,ADULT SOCIAL CARE,REDACTED PERSONAL DATA,426.72,MH LTS 65+,SUPPORTED LIVING,REDACTED,REDACTED
02.03.2023,ADULT SOCIAL CARE,REDACTED PERSONAL DATA,782.32,MH LTS 65+,SUPPORTED LIVING,REDACTED,REDACTED
02.03.2023,ADULT SOCIAL CARE,REDACTED PERSONAL DATA,853.44,MH LTS 65+,SUPPORTED LIVING,REDACTED,REDACTED
02.03.2023,ADULT SOCIAL CARE,REDACTED PERSONAL DATA,"1,297.94",MH LTS 65+,SUPPORTED LIVING,REDACTED,REDACTED
02.03.2023,ADULT SOCIAL CARE,TYNETEC LEGRAND LTD,"1,479.85",ORIENT ST � RESPITE,OFFICE EXPENSES,5902568765,1000066068
02.03.2023,ADULT SOCIAL CARE,LONDON CARE LTD,284.84,PHY LTS 18-64,HOMECARE - C&V,2103630433,1000003398
02.03.2023,ADULT SOCIAL CARE,LONDON CARE LTD,332.41,PHY LTS 18-64,HOMECARE - C&V,2103630414,1000003398
02.03.2023,ADULT SOCIAL CARE,LONDON CARE LTD,340.28,PHY LTS 18-64,HOMECARE - C&V,2103630563,1000003398
02.03.2023,ADULT SOCIAL CARE,LONDON CARE LTD,341.83,PHY LTS 18-64,HOMECARE - C&V,2103630493,1000003398
02.03.2023,ADULT SOCIAL CARE,LONDON CARE LTD,346.55,PHY LTS 18-64,HOMECARE - C&V,2103630399,1000003398
02.03.2023,ADULT SOCIAL CARE,LONDON CARE LTD,346.71,PHY LTS 18-64,HOMECARE - C&V,2103630381,1000003398
02.03.2023,ADULT SOCIAL CARE,LONDON CARE LTD,375.11,PHY LTS 18-64,HOMECARE - C&V,2103630330,1000003398
02.03.2023,ADULT SOCIAL CARE,LONDON CARE LTD,384.61,PHY LTS 18-64,HOMECARE - C&V,2103630624,1000003398
02.03.2023,ADULT SOCIAL CARE,LONDON CARE LTD,398.72,PHY LTS 18-64,HOMECARE - C&V,2103630411,1000003398
02.03.2023,ADULT SOCIAL CARE,LONDON CARE LTD,407.33,PHY LTS 18-64,HOMECARE - C&V,2103630636,1000003398
02.03.2023,ADULT SOCIAL CARE,LONDON CARE LTD,413,PHY LTS 18-64,HOMECARE - C&V,2103630522,1000003398
02.03.2023,ADULT SOCIAL CARE,LONDON CARE LTD,417.82,PHY LTS 18-64,HOMECARE - C&V,2103630511,1000003398
02.03.2023,ADULT SOCIAL CARE,LONDON CARE LTD,436.72,PHY LTS 18-64,HOMECARE - C&V,2103630670,1000003398
02.03.2023,ADULT SOCIAL CARE,LONDON CARE LTD,441.54,PHY LTS 18-64,HOMECARE - C&V,2103630546,1000003398
02.03.2023,ADULT SOCIAL CARE,LONDON CARE LTD,455.97,PHY LTS 18-64,HOMECARE - C&V,2103630536,1000003398
02.03.2023,ADULT SOCIAL CARE,LONDON CARE LTD,457.92,PHY LTS 18-64,HOMECARE - C&V,2103630488,1000003398
02.03.2023,ADULT SOCIAL CARE,LONDON CARE LTD,463.25,PHY LTS 18-64,HOMECARE - C&V,2103630361,1000003398
02.03.2023,ADULT SOCIAL CARE,LONDON CARE LTD,465.45,PHY LTS 18-64,HOMECARE - C&V,2103630676,1000003398
02.03.2023,ADULT SOCIAL CARE,LONDON CARE LTD,493.8,PHY LTS 18-64,HOMECARE - C&V,2103630596,1000003398
02.03.2023,ADULT SOCIAL CARE,LONDON CARE LTD,498.49,PHY LTS 18-64,HOMECARE - C&V,2103630376,1000003398
02.03.2023,ADULT SOCIAL CARE,LONDON CARE LTD,503.19,PHY LTS 18-64,HOMECARE - C&V,2103630560,1000003398
02.03.2023,ADULT SOCIAL CARE,LONDON CARE LTD,507.92,PHY LTS 18-64,HOMECARE - C&V,2103630382,1000003398
02.03.2023,ADULT SOCIAL CARE,LONDON CARE LTD,531.68,PHY LTS 18-64,HOMECARE - C&V,2103630655,1000003398
02.03.2023,ADULT SOCIAL CARE,LONDON CARE LTD,541.46,PHY LTS 18-64,HOMECARE - C&V,2103630684,1000003398
02.03.2023,ADULT SOCIAL CARE,LONDON CARE LTD,584.01,PHY LTS 18-64,HOMECARE - C&V,2103630474,1000003398
02.03.2023,ADULT SOCIAL CARE,LONDON CARE LTD,617.42,PHY LTS 18-64,HOMECARE - C&V,2103630396,1000003398
02.03.2023,ADULT SOCIAL CARE,LONDON CARE LTD,626.73,PHY LTS 18-64,HOMECARE - C&V,2103630666,1000003398
02.03.2023,ADULT SOCIAL CARE,LONDON CARE LTD,636.22,PHY LTS 18-64,HOMECARE - C&V,2103630686,1000003398
02.03.2023,ADULT SOCIAL CARE,LONDON CARE LTD,640.98,PHY LTS 18-64,HOMECARE - C&V,2103630436,1000003398
02.03.2023,ADULT SOCIAL CARE,LONDON CARE LTD,659.91,PHY LTS 18-64,HOMECARE - C&V,2103630616,1000003398
02.03.2023,ADULT SOCIAL CARE,LONDON CARE LTD,664.72,PHY LTS 18-64,HOMECARE - C&V,2103630628,1000003398
02.03.2023,ADULT SOCIAL CARE,LONDON CARE LTD,688.66,PHY LTS 18-64,HOMECARE - C&V,2103630561,1000003398
02.03.2023,ADULT SOCIAL CARE,LONDON CARE LTD,705.26,PHY LTS 18-64,HOMECARE - C&V,2103630632,1000003398
02.03.2023,ADULT SOCIAL CARE,LONDON CARE LTD,707.44,PHY LTS 18-64,HOMECARE - C&V,2103630372,1000003398
02.03.2023,ADULT SOCIAL CARE,LONDON CARE LTD,721.71,PHY LTS 18-64,HOMECARE - C&V,2103630502,1000003398
02.03.2023,ADULT SOCIAL CARE,LONDON CARE LTD,731.21,PHY LTS 18-64,HOMECARE - C&V,2103630497,1000003398
02.03.2023,ADULT SOCIAL CARE,LONDON CARE LTD,761.67,PHY LTS 18-64,HOMECARE - C&V,2103630588,1000003398
02.03.2023,ADULT SOCIAL CARE,LONDON CARE LTD,773.92,PHY LTS 18-64,HOMECARE - C&V,2103630586,1000003398
02.03.2023,ADULT SOCIAL CARE,LONDON CARE LTD,773.94,PHY LTS 18-64,HOMECARE - C&V,2103630407,1000003398
02.03.2023,ADULT SOCIAL CARE,LONDON CARE LTD,806.96,PHY LTS 18-64,HOMECARE - C&V,2103630438,1000003398
02.03.2023,ADULT SOCIAL CARE,LONDON CARE LTD,811.92,PHY LTS 18-64,HOMECARE - C&V,2103630369,1000003398
02.03.2023,ADULT SOCIAL CARE,LONDON CARE LTD,816.7,PHY LTS 18-64,HOMECARE - C&V,2103630431,1000003398
02.03.2023,ADULT SOCIAL CARE,LONDON CARE LTD,817.04,PHY LTS 18-64,HOMECARE - C&V,2103630506,1000003398
02.03.2023,ADULT SOCIAL CARE,LONDON CARE LTD,866,PHY LTS 18-64,HOMECARE - C&V,2103630315,1000003398
02.03.2023,ADULT SOCIAL CARE,LONDON CARE LTD,868.74,PHY LTS 18-64,HOMECARE - C&V,2103630550,1000003398
02.03.2023,ADULT SOCIAL CARE,LONDON CARE LTD,944.95,PHY LTS 18-64,HOMECARE - C&V,2103630507,1000003398
02.03.2023,ADULT SOCIAL CARE,LONDON CARE LTD,968.71,PHY LTS 18-64,HOMECARE - C&V,2103630552,1000003398
02.03.2023,ADULT SOCIAL CARE,LONDON CARE LTD,"1,028.67",PHY LTS 18-64,HOMECARE - C&V,2103630620,1000003398
02.03.2023,ADULT SOCIAL CARE,LONDON CARE LTD,"1,035.01",PHY LTS 18-64,HOMECARE - C&V,2103630525,1000003398
02.03.2023,ADULT SOCIAL CARE,LONDON CARE LTD,"1,054.16",PHY LTS 18-64,HOMECARE - C&V,2103630615,1000003398
02.03.2023,ADULT SOCIAL CARE,LONDON CARE LTD,"1,059.09",PHY LTS 18-64,HOMECARE - C&V,2103630629,1000003398
02.03.2023,ADULT SOCIAL CARE,LONDON CARE LTD,"1,063.37",PHY LTS 18-64,HOMECARE - C&V,2103630375,1000003398
02.03.2023,ADULT SOCIAL CARE,LONDON CARE LTD,"1,110.95",PHY LTS 18-64,HOMECARE - C&V,2103630368,1000003398
02.03.2023,ADULT SOCIAL CARE,LONDON CARE LTD,"1,120.60",PHY LTS 18-64,HOMECARE - C&V,2103630553,1000003398
02.03.2023,ADULT SOCIAL CARE,LONDON CARE LTD,"1,158.67",PHY LTS 18-64,HOMECARE - C&V,2103630494,1000003398
02.03.2023,ADULT SOCIAL CARE,LONDON CARE LTD,"1,177.64",PHY LTS 18-64,HOMECARE - C&V,2103630444,1000003398
02.03.2023,ADULT SOCIAL CARE,LONDON CARE LTD,"1,182.15",PHY LTS 18-64,HOMECARE - C&V,2103630610,1000003398
02.03.2023,ADULT SOCIAL CARE,LONDON CARE LTD,"1,253.62",PHY LTS 18-64,HOMECARE - C&V,2103630528,1000003398
02.03.2023,ADULT SOCIAL CARE,LONDON CARE LTD,"1,286.61",PHY LTS 18-64,HOMECARE - C&V,2103630652,1000003398
02.03.2023,ADULT SOCIAL CARE,LONDON CARE LTD,"1,300.99",PHY LTS 18-64,HOMECARE - C&V,2103630401,1000003398
02.03.2023,ADULT SOCIAL CARE,LONDON CARE LTD,"1,315.23",PHY LTS 18-64,HOMECARE - C&V,2103630310,1000003398
02.03.2023,ADULT SOCIAL CARE,LONDON CARE LTD,"1,476.88",PHY LTS 18-64,HOMECARE - C&V,2103630379,1000003398
02.03.2023,ADULT SOCIAL CARE,LONDON CARE LTD,"1,571.65",PHY LTS 18-64,HOMECARE - C&V,2103630432,1000003398
02.03.2023,ADULT SOCIAL CARE,LONDON CARE LTD,"1,657.06",PHY LTS 18-64,HOMECARE - C&V,2103630417,1000003398
02.03.2023,ADULT SOCIAL CARE,LONDON CARE LTD,"2,132.16",PHY LTS 18-64,HOMECARE - C&V,2103630423,1000003398
02.03.2023,ADULT SOCIAL CARE,LONDON CARE LTD,"2,341.21",PHY LTS 18-64,HOMECARE - C&V,2103630445,1000003398
02.03.2023,ADULT SOCIAL CARE,LONDON CARE LTD,"3,954.49",PHY LTS 18-64,HOMECARE - C&V,2103630498,1000003398
02.03.2023,ADULT SOCIAL CARE,SUPREME CARE SERVICES LTD,516.04,PHY LTS 18-64,HOMECARE - C&V,2103630699,1000059416
02.03.2023,ADULT SOCIAL CARE,SUPREME CARE SERVICES LTD,534.48,PHY LTS 18-64,HOMECARE - C&V,2103630717,1000059416
02.03.2023,ADULT SOCIAL CARE,SUPREME CARE SERVICES LTD,608.2,PHY LTS 18-64,HOMECARE - C&V,2103630698,1000059416
02.03.2023,ADULT SOCIAL CARE,SUPREME CARE SERVICES LTD,718.76,PHY LTS 18-64,HOMECARE - C&V,2103630727,1000059416
02.03.2023,ADULT SOCIAL CARE,SUPREME CARE SERVICES LTD,"1,032.08",PHY LTS 18-64,HOMECARE - C&V,2103630696,1000059416
02.03.2023,ADULT SOCIAL CARE,SUPREME CARE SERVICES LTD,"1,529.68",PHY LTS 18-64,HOMECARE - C&V,2103630712,1000059416
02.03.2023,ADULT SOCIAL CARE,SUPREME CARE SERVICES LTD,"2,027.32",PHY LTS 18-64,HOMECARE - C&V,2103630711,1000059416
02.03.2023,ADULT SOCIAL CARE,LONDON CARE LTD,251.59,PHY LTS 65+,HOMECARE - C&V,2103630594,1000003398
02.03.2023,ADULT SOCIAL CARE,LONDON CARE LTD,251.75,PHY LTS 65+,HOMECARE - C&V,2103630435,1000003398
02.03.2023,ADULT SOCIAL CARE,LONDON CARE LTD,256.5,PHY LTS 65+,HOMECARE - C&V,2103630355,1000003398
02.03.2023,ADULT SOCIAL CARE,LONDON CARE LTD,258.63,PHY LTS 65+,HOMECARE - C&V,2103630637,1000003398
02.03.2023,ADULT SOCIAL CARE,LONDON CARE LTD,261.25,PHY LTS 65+,HOMECARE - C&V,2103630398,1000003398
02.03.2023,ADULT SOCIAL CARE,LONDON CARE LTD,265.84,PHY LTS 65+,HOMECARE - C&V,2103630562,1000003398
02.03.2023,ADULT SOCIAL CARE,LONDON CARE LTD,270.74,PHY LTS 65+,HOMECARE - C&V,2103630504,1000003398
02.03.2023,ADULT SOCIAL CARE,LONDON CARE LTD,275.49,PHY LTS 65+,HOMECARE - C&V,2103630478,1000003398
02.03.2023,ADULT SOCIAL CARE,LONDON CARE LTD,280.07,PHY LTS 65+,HOMECARE - C&V,2103630482,1000003398
02.03.2023,ADULT SOCIAL CARE,LONDON CARE LTD,280.25,PHY LTS 65+,HOMECARE - C&V,2103630358,1000003398
02.03.2023,ADULT SOCIAL CARE,LONDON CARE LTD,281.04,PHY LTS 65+,HOMECARE - C&V,2103630683,1000003398
02.03.2023,ADULT SOCIAL CARE,LONDON CARE LTD,284.82,PHY LTS 65+,HOMECARE - C&V,2103630455,1000003398
02.03.2023,ADULT SOCIAL CARE,LONDON CARE LTD,289.55,PHY LTS 65+,HOMECARE - C&V,2103630566,1000003398
02.03.2023,ADULT SOCIAL CARE,LONDON CARE LTD,289.55,PHY LTS 65+,HOMECARE - C&V,2103630647,1000003398
02.03.2023,ADULT SOCIAL CARE,LONDON CARE LTD,294.45,PHY LTS 65+,HOMECARE - C&V,2103630466,1000003398
02.03.2023,ADULT SOCIAL CARE,LONDON CARE LTD,299.04,PHY LTS 65+,HOMECARE - C&V,2103630333,1000003398
02.03.2023,ADULT SOCIAL CARE,LONDON CARE LTD,303.96,PHY LTS 65+,HOMECARE - C&V,2103630674,1000003398
02.03.2023,ADULT SOCIAL CARE,LONDON CARE LTD,308.59,PHY LTS 65+,HOMECARE - C&V,2103630585,1000003398
02.03.2023,ADULT SOCIAL CARE,LONDON CARE LTD,322.79,PHY LTS 65+,HOMECARE - C&V,2103630602,1000003398
02.03.2023,ADULT SOCIAL CARE,LONDON CARE LTD,322.88,PHY LTS 65+,HOMECARE - C&V,2103630359,1000003398
02.03.2023,ADULT SOCIAL CARE,LONDON CARE LTD,327.52,PHY LTS 65+,HOMECARE - C&V,2103630646,1000003398
02.03.2023,ADULT SOCIAL CARE,LONDON CARE LTD,327.61,PHY LTS 65+,HOMECARE - C&V,2103630334,1000003398
02.03.2023,ADULT SOCIAL CARE,LONDON CARE LTD,327.71,PHY LTS 65+,HOMECARE - C&V,2103630600,1000003398
02.03.2023,ADULT SOCIAL CARE,LONDON CARE LTD,337.05,PHY LTS 65+,HOMECARE - C&V,2103630354,1000003398
02.03.2023,ADULT SOCIAL CARE,LONDON CARE LTD,337.2,PHY LTS 65+,HOMECARE - C&V,2103630626,1000003398
02.03.2023,ADULT SOCIAL CARE,LONDON CARE LTD,341.82,PHY LTS 65+,HOMECARE - C&V,2103630617,1000003398
02.03.2023,ADULT SOCIAL CARE,LONDON CARE LTD,341.95,PHY LTS 65+,HOMECARE - C&V,2103630434,1000003398
02.03.2023,ADULT SOCIAL CARE,LONDON CARE LTD,342,PHY LTS 65+,HOMECARE - C&V,2103630663,1000003398
02.03.2023,ADULT SOCIAL CARE,LONDON CARE LTD,346.62,PHY LTS 65+,HOMECARE - C&V,2103630356,1000003398
02.03.2023,ADULT SOCIAL CARE,LONDON CARE LTD,346.66,PHY LTS 65+,HOMECARE - C&V,2103630325,1000003398
02.03.2023,ADULT SOCIAL CARE,LONDON CARE LTD,348.5,PHY LTS 65+,HOMECARE - C&V,2103630449,1000003398
02.03.2023,ADULT SOCIAL CARE,LONDON CARE LTD,360.85,PHY LTS 65+,HOMECARE - C&V,2103630345,1000003398
02.03.2023,ADULT SOCIAL CARE,LONDON CARE LTD,370.3,PHY LTS 65+,HOMECARE - C&V,2103630304,1000003398
02.03.2023,ADULT SOCIAL CARE,LONDON CARE LTD,370.46,PHY LTS 65+,HOMECARE - C&V,2103630442,1000003398
02.03.2023,ADULT SOCIAL CARE,LONDON CARE LTD,379.29,PHY LTS 65+,HOMECARE - C&V,2103630477,1000003398
02.03.2023,ADULT SOCIAL CARE,LONDON CARE LTD,384.5,PHY LTS 65+,HOMECARE - C&V,2103630598,1000003398
02.03.2023,ADULT SOCIAL CARE,LONDON CARE LTD,393.98,PHY LTS 65+,HOMECARE - C&V,2103630489,1000003398
02.03.2023,ADULT SOCIAL CARE,LONDON CARE LTD,393.98,PHY LTS 65+,HOMECARE - C&V,2103630631,1000003398
02.03.2023,ADULT SOCIAL CARE,LONDON CARE LTD,398.72,PHY LTS 65+,HOMECARE - C&V,2103630349,1000003398
02.03.2023,ADULT SOCIAL CARE,LONDON CARE LTD,398.72,PHY LTS 65+,HOMECARE - C&V,2103630579,1000003398
02.03.2023,ADULT SOCIAL CARE,LONDON CARE LTD,399.84,PHY LTS 65+,HOMECARE - C&V,2103630547,1000003398
02.03.2023,ADULT SOCIAL CARE,LONDON CARE LTD,403.49,PHY LTS 65+,HOMECARE - C&V,2103630581,1000003398
02.03.2023,ADULT SOCIAL CARE,LONDON CARE LTD,408.22,PHY LTS 65+,HOMECARE - C&V,2103630373,1000003398
02.03.2023,ADULT SOCIAL CARE,LONDON CARE LTD,417.72,PHY LTS 65+,HOMECARE - C&V,2103630486,1000003398
02.03.2023,ADULT SOCIAL CARE,LONDON CARE LTD,417.73,PHY LTS 65+,HOMECARE - C&V,2103630302,1000003398
02.03.2023,ADULT SOCIAL CARE,LONDON CARE LTD,417.81,PHY LTS 65+,HOMECARE - C&V,2103630592,1000003398
02.03.2023,ADULT SOCIAL CARE,LONDON CARE LTD,432.13,PHY LTS 65+,HOMECARE - C&V,2103630635,1000003398
02.03.2023,ADULT SOCIAL CARE,LONDON CARE LTD,446.5,PHY LTS 65+,HOMECARE - C&V,2103630339,1000003398
02.03.2023,ADULT SOCIAL CARE,LONDON CARE LTD,455.76,PHY LTS 65+,HOMECARE - C&V,2103630651,1000003398
02.03.2023,ADULT SOCIAL CARE,LONDON CARE LTD,456,PHY LTS 65+,HOMECARE - C&V,2103630575,1000003398
02.03.2023,ADULT SOCIAL CARE,LONDON CARE LTD,460.7,PHY LTS 65+,HOMECARE - C&V,2103630611,1000003398
02.03.2023,ADULT SOCIAL CARE,LONDON CARE LTD,489.25,PHY LTS 65+,HOMECARE - C&V,2103630604,1000003398
02.03.2023,ADULT SOCIAL CARE,LONDON CARE LTD,531.72,PHY LTS 65+,HOMECARE - C&V,2103630316,1000003398
02.03.2023,ADULT SOCIAL CARE,LONDON CARE LTD,531.99,PHY LTS 65+,HOMECARE - C&V,2103630659,1000003398
02.03.2023,ADULT SOCIAL CARE,LONDON CARE LTD,541.47,PHY LTS 65+,HOMECARE - C&V,2103630495,1000003398
02.03.2023,ADULT SOCIAL CARE,LONDON CARE LTD,555.41,PHY LTS 65+,HOMECARE - C&V,2103630582,1000003398
02.03.2023,ADULT SOCIAL CARE,LONDON CARE LTD,555.47,PHY LTS 65+,HOMECARE - C&V,2103630680,1000003398
02.03.2023,ADULT SOCIAL CARE,LONDON CARE LTD,560.14,PHY LTS 65+,HOMECARE - C&V,2103630378,1000003398
02.03.2023,ADULT SOCIAL CARE,LONDON CARE LTD,574.44,PHY LTS 65+,HOMECARE - C&V,2103630430,1000003398
02.03.2023,ADULT SOCIAL CARE,LONDON CARE LTD,584.2,PHY LTS 65+,HOMECARE - C&V,2103630678,1000003398
02.03.2023,ADULT SOCIAL CARE,LONDON CARE LTD,598.36,PHY LTS 65+,HOMECARE - C&V,2103630499,1000003398
02.03.2023,ADULT SOCIAL CARE,LONDON CARE LTD,602.93,PHY LTS 65+,HOMECARE - C&V,2103630574,1000003398
02.03.2023,ADULT SOCIAL CARE,LONDON CARE LTD,607.76,PHY LTS 65+,HOMECARE - C&V,2103630322,1000003398
02.03.2023,ADULT SOCIAL CARE,LONDON CARE LTD,607.76,PHY LTS 65+,HOMECARE - C&V,2103630589,1000003398
02.03.2023,ADULT SOCIAL CARE,LONDON CARE LTD,612.43,PHY LTS 65+,HOMECARE - C&V,2103630682,1000003398
02.03.2023,ADULT SOCIAL CARE,LONDON CARE LTD,621.98,PHY LTS 65+,HOMECARE - C&V,2103630613,1000003398
02.03.2023,ADULT SOCIAL CARE,LONDON CARE LTD,622.14,PHY LTS 65+,HOMECARE - C&V,2103630524,1000003398
02.03.2023,ADULT SOCIAL CARE,LONDON CARE LTD,622.16,PHY LTS 65+,HOMECARE - C&V,2103630644,1000003398
02.03.2023,ADULT SOCIAL CARE,LONDON CARE LTD,626.95,PHY LTS 65+,HOMECARE - C&V,2103630513,1000003398
02.03.2023,ADULT SOCIAL CARE,LONDON CARE LTD,628.43,PHY LTS 65+,HOMECARE - C&V,2103630467,1000003398
02.03.2023,ADULT SOCIAL CARE,LONDON CARE LTD,636.33,PHY LTS 65+,HOMECARE - C&V,2103630377,1000003398
02.03.2023,ADULT SOCIAL CARE,LONDON CARE LTD,640.19,PHY LTS 65+,HOMECARE - C&V,2103630519,1000003398
02.03.2023,ADULT SOCIAL CARE,LONDON CARE LTD,643.71,PHY LTS 65+,HOMECARE - C&V,2103630518,1000003398
02.03.2023,ADULT SOCIAL CARE,LONDON CARE LTD,650.51,PHY LTS 65+,HOMECARE - C&V,2103630337,1000003398
02.03.2023,ADULT SOCIAL CARE,LONDON CARE LTD,650.66,PHY LTS 65+,HOMECARE - C&V,2103630539,1000003398
02.03.2023,ADULT SOCIAL CARE,LONDON CARE LTD,669.31,PHY LTS 65+,HOMECARE - C&V,2103630555,1000003398
02.03.2023,ADULT SOCIAL CARE,LONDON CARE LTD,669.39,PHY LTS 65+,HOMECARE - C&V,2103630364,1000003398
02.03.2023,ADULT SOCIAL CARE,LONDON CARE LTD,669.4,PHY LTS 65+,HOMECARE - C&V,2103630366,1000003398
02.03.2023,ADULT SOCIAL CARE,LONDON CARE LTD,678.97,PHY LTS 65+,HOMECARE - C&V,2103630669,1000003398
02.03.2023,ADULT SOCIAL CARE,LONDON CARE LTD,683.92,PHY LTS 65+,HOMECARE - C&V,2103630317,1000003398
02.03.2023,ADULT SOCIAL CARE,LONDON CARE LTD,697.9,PHY LTS 65+,HOMECARE - C&V,2103630336,1000003398
02.03.2023,ADULT SOCIAL CARE,LONDON CARE LTD,707.62,PHY LTS 65+,HOMECARE - C&V,2103630469,1000003398
02.03.2023,ADULT SOCIAL CARE,LONDON CARE LTD,712.08,PHY LTS 65+,HOMECARE - C&V,2103630668,1000003398
02.03.2023,ADULT SOCIAL CARE,LONDON CARE LTD,722.11,PHY LTS 65+,HOMECARE - C&V,2103630638,1000003398
02.03.2023,ADULT SOCIAL CARE,LONDON CARE LTD,726.47,PHY LTS 65+,HOMECARE - C&V,2103630672,1000003398
02.03.2023,ADULT SOCIAL CARE,LONDON CARE LTD,731.23,PHY LTS 65+,HOMECARE - C&V,2103630569,1000003398
02.03.2023,ADULT SOCIAL CARE,LONDON CARE LTD,738.74,PHY LTS 65+,HOMECARE - C&V,2103630643,1000003398
02.03.2023,ADULT SOCIAL CARE,LONDON CARE LTD,745.37,PHY LTS 65+,HOMECARE - C&V,2103630346,1000003398
02.03.2023,ADULT SOCIAL CARE,LONDON CARE LTD,754.91,PHY LTS 65+,HOMECARE - C&V,2103630357,1000003398
02.03.2023,ADULT SOCIAL CARE,LONDON CARE LTD,754.95,PHY LTS 65+,HOMECARE - C&V,2103630559,1000003398
02.03.2023,ADULT SOCIAL CARE,LONDON CARE LTD,759.68,PHY LTS 65+,HOMECARE - C&V,2103630439,1000003398
02.03.2023,ADULT SOCIAL CARE,LONDON CARE LTD,759.84,PHY LTS 65+,HOMECARE - C&V,2103630641,1000003398
02.03.2023,ADULT SOCIAL CARE,LONDON CARE LTD,764.45,PHY LTS 65+,HOMECARE - C&V,2103630573,1000003398
02.03.2023,ADULT SOCIAL CARE,LONDON CARE LTD,764.54,PHY LTS 65+,HOMECARE - C&V,2103630608,1000003398
02.03.2023,ADULT SOCIAL CARE,LONDON CARE LTD,773.91,PHY LTS 65+,HOMECARE - C&V,2103630521,1000003398
02.03.2023,ADULT SOCIAL CARE,LONDON CARE LTD,778.78,PHY LTS 65+,HOMECARE - C&V,2103630459,1000003398
02.03.2023,ADULT SOCIAL CARE,LONDON CARE LTD,802.4,PHY LTS 65+,HOMECARE - C&V,2103630532,1000003398
02.03.2023,ADULT SOCIAL CARE,LONDON CARE LTD,802.53,PHY LTS 65+,HOMECARE - C&V,2103630660,1000003398
02.03.2023,ADULT SOCIAL CARE,LONDON CARE LTD,811.86,PHY LTS 65+,HOMECARE - C&V,2103630476,1000003398
02.03.2023,ADULT SOCIAL CARE,LONDON CARE LTD,821.41,PHY LTS 65+,HOMECARE - C&V,2103630675,1000003398
02.03.2023,ADULT SOCIAL CARE,LONDON CARE LTD,826.16,PHY LTS 65+,HOMECARE - C&V,2103630567,1000003398
02.03.2023,ADULT SOCIAL CARE,LONDON CARE LTD,831.27,PHY LTS 65+,HOMECARE - C&V,2103630429,1000003398
02.03.2023,ADULT SOCIAL CARE,LONDON CARE LTD,849.98,PHY LTS 65+,HOMECARE - C&V,2103630454,1000003398
02.03.2023,ADULT SOCIAL CARE,LONDON CARE LTD,854.6,PHY LTS 65+,HOMECARE - C&V,2103630625,1000003398
02.03.2023,ADULT SOCIAL CARE,LONDON CARE LTD,870.76,PHY LTS 65+,HOMECARE - C&V,2103630540,1000003398
02.03.2023,ADULT SOCIAL CARE,LONDON CARE LTD,873.75,PHY LTS 65+,HOMECARE - C&V,2103630484,1000003398
02.03.2023,ADULT SOCIAL CARE,LONDON CARE LTD,878.69,PHY LTS 65+,HOMECARE - C&V,2103630656,1000003398
02.03.2023,ADULT SOCIAL CARE,LONDON CARE LTD,892.58,PHY LTS 65+,HOMECARE - C&V,2103630568,1000003398
02.03.2023,ADULT SOCIAL CARE,LONDON CARE LTD,892.73,PHY LTS 65+,HOMECARE - C&V,2103630658,1000003398
02.03.2023,ADULT SOCIAL CARE,LONDON CARE LTD,897.49,PHY LTS 65+,HOMECARE - C&V,2103630583,1000003398
02.03.2023,ADULT SOCIAL CARE,LONDON CARE LTD,906.67,PHY LTS 65+,HOMECARE - C&V,2103630301,1000003398
02.03.2023,ADULT SOCIAL CARE,LONDON CARE LTD,911.72,PHY LTS 65+,HOMECARE - C&V,2103630681,1000003398
02.03.2023,ADULT SOCIAL CARE,LONDON CARE LTD,913.36,PHY LTS 65+,HOMECARE - C&V,2103630601,1000003398
02.03.2023,ADULT SOCIAL CARE,LONDON CARE LTD,921.38,PHY LTS 65+,HOMECARE - C&V,2103630543,1000003398
02.03.2023,ADULT SOCIAL CARE,LONDON CARE LTD,925.98,PHY LTS 65+,HOMECARE - C&V,2103630351,1000003398
02.03.2023,ADULT SOCIAL CARE,LONDON CARE LTD,930.71,PHY LTS 65+,HOMECARE - C&V,2103630391,1000003398
02.03.2023,ADULT SOCIAL CARE,LONDON CARE LTD,940.2,PHY LTS 65+,HOMECARE - C&V,2103630556,1000003398
02.03.2023,ADULT SOCIAL CARE,LONDON CARE LTD,945.15,PHY LTS 65+,HOMECARE - C&V,2103630565,1000003398
02.03.2023,ADULT SOCIAL CARE,LONDON CARE LTD,949.67,PHY LTS 65+,HOMECARE - C&V,2103630630,1000003398
02.03.2023,ADULT SOCIAL CARE,LONDON CARE LTD,949.7,PHY LTS 65+,HOMECARE - C&V,2103630578,1000003398
02.03.2023,ADULT SOCIAL CARE,LONDON CARE LTD,954.34,PHY LTS 65+,HOMECARE - C&V,2103630388,1000003398
02.03.2023,ADULT SOCIAL CARE,LONDON CARE LTD,954.45,PHY LTS 65+,HOMECARE - C&V,2103630622,1000003398
02.03.2023,ADULT SOCIAL CARE,LONDON CARE LTD,968.68,PHY LTS 65+,HOMECARE - C&V,2103630661,1000003398
02.03.2023,ADULT SOCIAL CARE,LONDON CARE LTD,981.15,PHY LTS 65+,HOMECARE - C&V,2103630577,1000003398
02.03.2023,ADULT SOCIAL CARE,LONDON CARE LTD,987.78,PHY LTS 65+,HOMECARE - C&V,2103630335,1000003398
02.03.2023,ADULT SOCIAL CARE,LONDON CARE LTD,992.66,PHY LTS 65+,HOMECARE - C&V,2103630404,1000003398
02.03.2023,ADULT SOCIAL CARE,LONDON CARE LTD,997.31,PHY LTS 65+,HOMECARE - C&V,2103630587,1000003398
02.03.2023,ADULT SOCIAL CARE,LONDON CARE LTD,"1,001.91",PHY LTS 65+,HOMECARE - C&V,2103630571,1000003398
02.03.2023,ADULT SOCIAL CARE,LONDON CARE LTD,"1,006.69",PHY LTS 65+,HOMECARE - C&V,2103630332,1000003398
02.03.2023,ADULT SOCIAL CARE,LONDON CARE LTD,"1,011.42",PHY LTS 65+,HOMECARE - C&V,2103630612,1000003398
02.03.2023,ADULT SOCIAL CARE,LONDON CARE LTD,"1,016.50",PHY LTS 65+,HOMECARE - C&V,2103630485,1000003398
02.03.2023,ADULT SOCIAL CARE,LONDON CARE LTD,"1,020.89",PHY LTS 65+,HOMECARE - C&V,2103630510,1000003398
02.03.2023,ADULT SOCIAL CARE,LONDON CARE LTD,"1,025.69",PHY LTS 65+,HOMECARE - C&V,2103630440,1000003398
02.03.2023,ADULT SOCIAL CARE,LONDON CARE LTD,"1,058.69",PHY LTS 65+,HOMECARE - C&V,2103630557,1000003398
02.03.2023,ADULT SOCIAL CARE,LONDON CARE LTD,"1,068.39",PHY LTS 65+,HOMECARE - C&V,2103630303,1000003398
02.03.2023,ADULT SOCIAL CARE,LONDON CARE LTD,"1,072.94",PHY LTS 65+,HOMECARE - C&V,2103630320,1000003398
02.03.2023,ADULT SOCIAL CARE,LONDON CARE LTD,"1,073.16",PHY LTS 65+,HOMECARE - C&V,2103630662,1000003398
02.03.2023,ADULT SOCIAL CARE,LONDON CARE LTD,"1,085.45",PHY LTS 65+,HOMECARE - C&V,2103630529,1000003398
02.03.2023,ADULT SOCIAL CARE,LONDON CARE LTD,"1,087.39",PHY LTS 65+,HOMECARE - C&V,2103630580,1000003398
02.03.2023,ADULT SOCIAL CARE,LONDON CARE LTD,"1,111.16",PHY LTS 65+,HOMECARE - C&V,2103630642,1000003398
02.03.2023,ADULT SOCIAL CARE,LONDON CARE LTD,"1,134.91",PHY LTS 65+,HOMECARE - C&V,2103630458,1000003398
02.03.2023,ADULT SOCIAL CARE,LONDON CARE LTD,"1,144.63",PHY LTS 65+,HOMECARE - C&V,2103630541,1000003398
02.03.2023,ADULT SOCIAL CARE,LONDON CARE LTD,"1,151.04",PHY LTS 65+,HOMECARE - C&V,2103630627,1000003398
02.03.2023,ADULT SOCIAL CARE,LONDON CARE LTD,"1,172.87",PHY LTS 65+,HOMECARE - C&V,2103630441,1000003398
02.03.2023,ADULT SOCIAL CARE,LONDON CARE LTD,"1,172.98",PHY LTS 65+,HOMECARE - C&V,2103630347,1000003398
02.03.2023,ADULT SOCIAL CARE,LONDON CARE LTD,"1,182.44",PHY LTS 65+,HOMECARE - C&V,2103630311,1000003398
02.03.2023,ADULT SOCIAL CARE,LONDON CARE LTD,"1,187.23",PHY LTS 65+,HOMECARE - C&V,2103630451,1000003398
02.03.2023,ADULT SOCIAL CARE,LONDON CARE LTD,"1,191.74",PHY LTS 65+,HOMECARE - C&V,2103630312,1000003398
02.03.2023,ADULT SOCIAL CARE,LONDON CARE LTD,"1,201.47",PHY LTS 65+,HOMECARE - C&V,2103630551,1000003398
02.03.2023,ADULT SOCIAL CARE,LONDON CARE LTD,"1,225.24",PHY LTS 65+,HOMECARE - C&V,2103630508,1000003398
02.03.2023,ADULT SOCIAL CARE,LONDON CARE LTD,"1,242.39",PHY LTS 65+,HOMECARE - C&V,2103630374,1000003398
02.03.2023,ADULT SOCIAL CARE,LONDON CARE LTD,"1,247.22",PHY LTS 65+,HOMECARE - C&V,2103630473,1000003398
02.03.2023,ADULT SOCIAL CARE,LONDON CARE LTD,"1,248.85",PHY LTS 65+,HOMECARE - C&V,2103630371,1000003398
02.03.2023,ADULT SOCIAL CARE,LONDON CARE LTD,"1,256.84",PHY LTS 65+,HOMECARE - C&V,2103630305,1000003398
02.03.2023,ADULT SOCIAL CARE,LONDON CARE LTD,"1,277.28",PHY LTS 65+,HOMECARE - C&V,2103630471,1000003398
02.03.2023,ADULT SOCIAL CARE,LONDON CARE LTD,"1,296.16",PHY LTS 65+,HOMECARE - C&V,2103630362,1000003398
02.03.2023,ADULT SOCIAL CARE,LONDON CARE LTD,"1,300.95",PHY LTS 65+,HOMECARE - C&V,2103630664,1000003398
02.03.2023,ADULT SOCIAL CARE,LONDON CARE LTD,"1,310.72",PHY LTS 65+,HOMECARE - C&V,2103630483,1000003398
02.03.2023,ADULT SOCIAL CARE,LONDON CARE LTD,"1,324.92",PHY LTS 65+,HOMECARE - C&V,2103630640,1000003398
02.03.2023,ADULT SOCIAL CARE,LONDON CARE LTD,"1,358.02",PHY LTS 65+,HOMECARE - C&V,2103630576,1000003398
02.03.2023,ADULT SOCIAL CARE,LONDON CARE LTD,"1,358.08",PHY LTS 65+,HOMECARE - C&V,2103630446,1000003398
02.03.2023,ADULT SOCIAL CARE,LONDON CARE LTD,"1,362.85",PHY LTS 65+,HOMECARE - C&V,2103630383,1000003398
02.03.2023,ADULT SOCIAL CARE,LONDON CARE LTD,"1,429.13",PHY LTS 65+,HOMECARE - C&V,2103630457,1000003398
02.03.2023,ADULT SOCIAL CARE,LONDON CARE LTD,"1,436.36",PHY LTS 65+,HOMECARE - C&V,2103630462,1000003398
02.03.2023,ADULT SOCIAL CARE,LONDON CARE LTD,"1,443.41",PHY LTS 65+,HOMECARE - C&V,2103630394,1000003398
02.03.2023,ADULT SOCIAL CARE,LONDON CARE LTD,"1,514.87",PHY LTS 65+,HOMECARE - C&V,2103630448,1000003398
02.03.2023,ADULT SOCIAL CARE,LONDON CARE LTD,"1,516.51",PHY LTS 65+,HOMECARE - C&V,2103630492,1000003398
02.03.2023,ADULT SOCIAL CARE,LONDON CARE LTD,"1,533.67",PHY LTS 65+,HOMECARE - C&V,2103630468,1000003398
02.03.2023,ADULT SOCIAL CARE,LONDON CARE LTD,"1,585.79",PHY LTS 65+,HOMECARE - C&V,2103630667,1000003398
02.03.2023,ADULT SOCIAL CARE,LONDON CARE LTD,"1,652.45",PHY LTS 65+,HOMECARE - C&V,2103630633,1000003398
02.03.2023,ADULT SOCIAL CARE,LONDON CARE LTD,"1,714.59",PHY LTS 65+,HOMECARE - C&V,2103630463,1000003398
02.03.2023,ADULT SOCIAL CARE,LONDON CARE LTD,"1,732.66",PHY LTS 65+,HOMECARE - C&V,2103630365,1000003398
02.03.2023,ADULT SOCIAL CARE,LONDON CARE LTD,"1,732.72",PHY LTS 65+,HOMECARE - C&V,2103630367,1000003398
02.03.2023,ADULT SOCIAL CARE,LONDON CARE LTD,"1,780.13",PHY LTS 65+,HOMECARE - C&V,2103630607,1000003398
02.03.2023,ADULT SOCIAL CARE,LONDON CARE LTD,"1,823.39",PHY LTS 65+,HOMECARE - C&V,2103630328,1000003398
02.03.2023,ADULT SOCIAL CARE,LONDON CARE LTD,"1,923.38",PHY LTS 65+,HOMECARE - C&V,2103630460,1000003398
02.03.2023,ADULT SOCIAL CARE,LONDON CARE LTD,"1,956.55",PHY LTS 65+,HOMECARE - C&V,2103630542,1000003398
02.03.2023,ADULT SOCIAL CARE,LONDON CARE LTD,"2,027.47",PHY LTS 65+,HOMECARE - C&V,2103630343,1000003398
02.03.2023,ADULT SOCIAL CARE,LONDON CARE LTD,"2,032.54",PHY LTS 65+,HOMECARE - C&V,2103630516,1000003398
02.03.2023,ADULT SOCIAL CARE,LONDON CARE LTD,"2,065.67",PHY LTS 65+,HOMECARE - C&V,2103630412,1000003398
02.03.2023,ADULT SOCIAL CARE,LONDON CARE LTD,"2,112.66",PHY LTS 65+,HOMECARE - C&V,2103630405,1000003398
02.03.2023,ADULT SOCIAL CARE,LONDON CARE LTD,"2,298.53",PHY LTS 65+,HOMECARE - C&V,2103630425,1000003398
02.03.2023,ADULT SOCIAL CARE,LONDON CARE LTD,"2,312.54",PHY LTS 65+,HOMECARE - C&V,2103630418,1000003398
02.03.2023,ADULT SOCIAL CARE,LONDON CARE LTD,"2,345.90",PHY LTS 65+,HOMECARE - C&V,2103630426,1000003398
02.03.2023,ADULT SOCIAL CARE,LONDON CARE LTD,"2,360.24",PHY LTS 65+,HOMECARE - C&V,2103630481,1000003398
02.03.2023,ADULT SOCIAL CARE,LONDON CARE LTD,"2,431.40",PHY LTS 65+,HOMECARE - C&V,2103630503,1000003398
02.03.2023,ADULT SOCIAL CARE,LONDON CARE LTD,"2,450.33",PHY LTS 65+,HOMECARE - C&V,2103630517,1000003398
02.03.2023,ADULT SOCIAL CARE,LONDON CARE LTD,"2,497.90",PHY LTS 65+,HOMECARE - C&V,2103630386,1000003398
02.03.2023,ADULT SOCIAL CARE,LONDON CARE LTD,"2,582.75",PHY LTS 65+,HOMECARE - C&V,2103630595,1000003398
02.03.2023,ADULT SOCIAL CARE,LONDON CARE LTD,"2,620.91",PHY LTS 65+,HOMECARE - C&V,2103630648,1000003398
02.03.2023,ADULT SOCIAL CARE,LONDON CARE LTD,"2,654.10",PHY LTS 65+,HOMECARE - C&V,2103630395,1000003398
02.03.2023,ADULT SOCIAL CARE,LONDON CARE LTD,"2,716.29",PHY LTS 65+,HOMECARE - C&V,2103630428,1000003398
02.03.2023,ADULT SOCIAL CARE,LONDON CARE LTD,"2,839.42",PHY LTS 65+,HOMECARE - C&V,2103630461,1000003398
02.03.2023,ADULT SOCIAL CARE,LONDON CARE LTD,"2,896.36",PHY LTS 65+,HOMECARE - C&V,2103630410,1000003398
02.03.2023,ADULT SOCIAL CARE,LONDON CARE LTD,"2,905.68",PHY LTS 65+,HOMECARE - C&V,2103630392,1000003398
02.03.2023,ADULT SOCIAL CARE,LONDON CARE LTD,"3,071.19",PHY LTS 65+,HOMECARE - C&V,2103630523,1000003398
02.03.2023,ADULT SOCIAL CARE,LONDON CARE LTD,"3,166.60",PHY LTS 65+,HOMECARE - C&V,2103630619,1000003398
02.03.2023,ADULT SOCIAL CARE,LONDON CARE LTD,"3,280.27",PHY LTS 65+,HOMECARE - C&V,2103630490,1000003398
02.03.2023,ADULT SOCIAL CARE,LONDON CARE LTD,"3,627.25",PHY LTS 65+,HOMECARE - C&V,2103630599,1000003398
02.03.2023,ADULT SOCIAL CARE,LONDON CARE LTD,"3,769.29",PHY LTS 65+,HOMECARE - C&V,2103630342,1000003398
02.03.2023,ADULT SOCIAL CARE,SUPREME CARE SERVICES LTD,258.04,PHY LTS 65+,HOMECARE - C&V,2103630709,1000059416
02.03.2023,ADULT SOCIAL CARE,SUPREME CARE SERVICES LTD,552.92,PHY LTS 65+,HOMECARE - C&V,2103630703,1000059416
02.03.2023,ADULT SOCIAL CARE,SUPREME CARE SERVICES LTD,626.64,PHY LTS 65+,HOMECARE - C&V,2103630710,1000059416
02.03.2023,ADULT SOCIAL CARE,SUPREME CARE SERVICES LTD,645.04,PHY LTS 65+,HOMECARE - C&V,2103630697,1000059416
02.03.2023,ADULT SOCIAL CARE,SUPREME CARE SERVICES LTD,645.04,PHY LTS 65+,HOMECARE - C&V,2103630720,1000059416
02.03.2023,ADULT SOCIAL CARE,SUPREME CARE SERVICES LTD,718.76,PHY LTS 65+,HOMECARE - C&V,2103630715,1000059416
02.03.2023,ADULT SOCIAL CARE,SUPREME CARE SERVICES LTD,755.64,PHY LTS 65+,HOMECARE - C&V,2103630693,1000059416
02.03.2023,ADULT SOCIAL CARE,SUPREME CARE SERVICES LTD,755.64,PHY LTS 65+,HOMECARE - C&V,2103630708,1000059416
02.03.2023,ADULT SOCIAL CARE,SUPREME CARE SERVICES LTD,774.08,PHY LTS 65+,HOMECARE - C&V,2103630706,1000059416
02.03.2023,ADULT SOCIAL CARE,SUPREME CARE SERVICES LTD,774.08,PHY LTS 65+,HOMECARE - C&V,2103630721,1000059416
02.03.2023,ADULT SOCIAL CARE,SUPREME CARE SERVICES LTD,829.36,PHY LTS 65+,HOMECARE - C&V,2103630714,1000059416
02.03.2023,ADULT SOCIAL CARE,SUPREME CARE SERVICES LTD,866.2,PHY LTS 65+,HOMECARE - C&V,2103630716,1000059416
02.03.2023,ADULT SOCIAL CARE,SUPREME CARE SERVICES LTD,903.08,PHY LTS 65+,HOMECARE - C&V,2103630728,1000059416
02.03.2023,ADULT SOCIAL CARE,SUPREME CARE SERVICES LTD,903.08,PHY LTS 65+,HOMECARE - C&V,2103630732,1000059416
02.03.2023,ADULT SOCIAL CARE,SUPREME CARE SERVICES LTD,"1,032.08",PHY LTS 65+,HOMECARE - C&V,2103630700,1000059416
02.03.2023,ADULT SOCIAL CARE,SUPREME CARE SERVICES LTD,"1,032.08",PHY LTS 65+,HOMECARE - C&V,2103630701,1000059416
02.03.2023,ADULT SOCIAL CARE,SUPREME CARE SERVICES LTD,"1,032.08",PHY LTS 65+,HOMECARE - C&V,2103630707,1000059416
02.03.2023,ADULT SOCIAL CARE,SUPREME CARE SERVICES LTD,"1,161.08",PHY LTS 65+,HOMECARE - C&V,2103630705,1000059416
02.03.2023,ADULT SOCIAL CARE,SUPREME CARE SERVICES LTD,"1,161.08",PHY LTS 65+,HOMECARE - C&V,2103630723,1000059416
02.03.2023,ADULT SOCIAL CARE,SUPREME CARE SERVICES LTD,"1,179.52",PHY LTS 65+,HOMECARE - C&V,2103630731,1000059416
02.03.2023,ADULT SOCIAL CARE,SUPREME CARE SERVICES LTD,"1,216.40",PHY LTS 65+,HOMECARE - C&V,2103630692,1000059416
02.03.2023,ADULT SOCIAL CARE,SUPREME CARE SERVICES LTD,"1,234.80",PHY LTS 65+,HOMECARE - C&V,2103630718,1000059416
02.03.2023,ADULT SOCIAL CARE,SUPREME CARE SERVICES LTD,"1,290.12",PHY LTS 65+,HOMECARE - C&V,2103630729,1000059416
02.03.2023,ADULT SOCIAL CARE,SUPREME CARE SERVICES LTD,"1,308.52",PHY LTS 65+,HOMECARE - C&V,2103630704,1000059416
02.03.2023,ADULT SOCIAL CARE,SUPREME CARE SERVICES LTD,"1,326.96",PHY LTS 65+,HOMECARE - C&V,2103630725,1000059416
02.03.2023,ADULT SOCIAL CARE,SUPREME CARE SERVICES LTD,"1,490.21",PHY LTS 65+,HOMECARE - C&V,2103630733,1000059416
02.03.2023,ADULT SOCIAL CARE,SUPREME CARE SERVICES LTD,"1,787.72",PHY LTS 65+,HOMECARE - C&V,2103630724,1000059416
02.03.2023,ADULT SOCIAL CARE,SUPREME CARE SERVICES LTD,"2,653.92",PHY LTS 65+,HOMECARE - C&V,2103630722,1000059416
02.03.2023,ADULT SOCIAL CARE,SUPREME CARE SERVICES LTD,"2,856.66",PHY LTS 65+,HOMECARE - C&V,2103630730,1000059416
02.03.2023,ADULT SOCIAL CARE,E.ON NEXT ENERGY LTD,587.39,RIVERSIDE CHERRY GDN,ELECTRICITY,5902568851,1000043614
02.03.2023,ADULT SOCIAL CARE,E.ON NEXT ENERGY LTD,890.19,RIVERSIDE CHERRY GDN,ELECTRICITY,5902568849,1000043614
02.03.2023,ADULT SOCIAL CARE,E.ON NEXT ENERGY LTD,935.79,RIVERSIDE CHERRY GDN,ELECTRICITY,5902568848,1000043614
02.03.2023,ADULT SOCIAL CARE,E.ON NEXT ENERGY LTD,"1,224.79",RIVERSIDE CHERRY GDN,ELECTRICITY,5902568850,1000043614
02.03.2023,ADULT SOCIAL CARE,E.ON NEXT ENERGY LTD,"1,967.91",RIVERSIDE CHERRY GDN,ELECTRICITY,5902568847,1000043614
02.03.2023,ADULT SOCIAL CARE,LONDON CARE LTD,318.21,SEN LTS 65+,HOMECARE - C&V,2103630501,1000003398
02.03.2023,ADULT SOCIAL CARE,LONDON CARE LTD,498.5,SOCIAL ISOLATION,HOMECARE - C&V,2103630409,1000003398
02.03.2023,ADULT SOCIAL CARE,LONDON CARE LTD,669.45,SOCIAL ISOLATION,HOMECARE - C&V,2103630472,1000003398
02.03.2023,ADULT SOCIAL CARE,LONDON CARE LTD,"1,024.25",SOCIAL ISOLATION,HOMECARE - C&V,2103630422,1000003398
02.03.2023,ADULT SOCIAL CARE,LONDON CARE LTD,417.92,SUB LTS 18-64,HOMECARE - C&V,2103630500,1000003398
02.03.2023,ADULT SOCIAL CARE,SUPREME CARE SERVICES LTD,"1,308.52",SUB LTS 18-64,HOMECARE - C&V,2103630713,1000059416
02.03.2023,CENTRAL FUNCTIONS,ROYAL MAIL GROUP LTD,315,HOME OWNERSHIP,POSTAGES,5902568935,1000061535
02.03.2023,CENTRAL FUNCTIONS,BUILDING COST INFORMATION SERVICE LTD,414,HOME OWNERSHIP,SUBSCRIPTIONS,5902568676,1000088920
02.03.2023,CENTRAL FUNCTIONS,1ST ACE SECURITY LTD,"39,715.20",LAKANAL (TENANCY),SECURITY SERVICES,5902568336,1000006992
02.03.2023,CENTRAL FUNCTIONS,LAMBERT SMITH HAMPTON GROUP LTD,"24,500.00",TECHNICAL SUPPORT,PROFESSIONAL FEES,5902568880,1000060045
02.03.2023,CHIEF EXECUTIVE,MACE LTD,"10,334.69",CAPITAL PS (REGEN),CONSTRUCTION FEES,5902568758,1000067959
02.03.2023,CHILDREN AND ADULT,BLOOM PROCUREMENT SERVICES LTD,"3,625.00",CAPITAL PS (EDUCATION),CONSTRUCTION FEES  - EXTERNAL,5902567860,1000082531
02.03.2023,CHILDREN AND ADULT,HAVERSTOCK,"51,406.83",CAPITAL PS (EDUCATION),CONSTRUCTION FEES - ARCHITECT,5902568904,1000074288
02.03.2023,CHILDREN AND ADULT,STANDAGE & CO LTD,"10,124.75",CAPITAL PS (SOC SERV),CONSTRUCTION,2103630746,4002817
02.03.2023,CHILDREN AND ADULT,FAITHFUL & GOULD,"29,954.00",CAPITAL PS (SOC SERV),CONSTRUCTION FEES,5902568942,1000061390
02.03.2023,CHILDREN AND ADULT,FAITHFUL & GOULD,"22,959.00",CAPITAL PS (SOC SERV),CONSTRUCTION FEES  - EXTERNAL,5902567793,1000061390
02.03.2023,CHILDREN AND FAMILIES,REDACTED PERSONAL DATA,500,ADOPTION SUPP FUND 1,EXTERNAL AGENCIES AND BODIES,REDACTED,REDACTED
02.03.2023,CHILDREN AND FAMILIES,REDACTED PERSONAL DATA,307.5,ADOPTION SUPP FUND 2,EXTERNAL AGENCIES AND BODIES,REDACTED,REDACTED
02.03.2023,CHILDREN AND FAMILIES,REDACTED PERSONAL DATA,350,ADOPTION SUPP FUND 2,EXTERNAL AGENCIES AND BODIES,REDACTED,REDACTED
02.03.2023,CHILDREN AND FAMILIES,FIVE RIVERS CHILD CARE LTD,"1,971.48",FRIENDS & FAMILY FOSTERING,EXTERNAL AGENCIES AND BODIES,2103630137,1000018792
02.03.2023,CHILDREN AND FAMILIES,FIVE RIVERS CHILD CARE LTD,"4,600.12",FRIENDS & FAMILY FOSTERING,EXTERNAL AGENCIES AND BODIES,2103630151,1000018792
02.03.2023,CHILDREN AND FAMILIES,FIVE RIVERS CHILD CARE LTD,"4,928.70",FRIENDS & FAMILY FOSTERING,EXTERNAL AGENCIES AND BODIES,2103630141,1000018792
02.03.2023,CHILDREN AND FAMILIES,FIVE RIVERS CHILD CARE LTD,"4,928.70",FRIENDS & FAMILY FOSTERING,EXTERNAL AGENCIES AND BODIES,2103630145,1000018792
02.03.2023,CHILDREN AND FAMILIES,FIVE RIVERS CHILD CARE LTD,"5,092.99",FRIENDS & FAMILY FOSTERING,EXTERNAL AGENCIES AND BODIES,2103630139,1000018792
02.03.2023,CHILDREN AND FAMILIES,FIVE RIVERS CHILD CARE LTD,"5,092.99",FRIENDS & FAMILY FOSTERING,EXTERNAL AGENCIES AND BODIES,2103630143,1000018792
02.03.2023,CHILDREN AND FAMILIES,FIVE RIVERS CHILD CARE LTD,"5,092.99",FRIENDS & FAMILY FOSTERING,EXTERNAL AGENCIES AND BODIES,2103630147,1000018792
02.03.2023,CHILDREN AND FAMILIES,FIVE RIVERS CHILD CARE LTD,"5,092.99",FRIENDS & FAMILY FOSTERING,EXTERNAL AGENCIES AND BODIES,2103630149,1000018792
02.03.2023,CHILDREN AND FAMILIES,FOSTERING LONDON LTD,"4,599.84",FRIENDS & FAMILY FOSTERING,EXTERNAL AGENCIES AND BODIES,2103630127,1000077541
02.03.2023,CHILDREN AND FAMILIES,FOSTERING LONDON LTD,"7,504.00",FRIENDS & FAMILY FOSTERING,EXTERNAL AGENCIES AND BODIES,2103630135,1000077541
02.03.2023,CHILDREN AND FAMILIES,DIVERSITY FOSTER CARE LTD,"3,711.08",FRIENDS & FAMILY FOSTERING,EXTERNAL AGENCIES AND BODIES,2103630131,1000081399
02.03.2023,CHILDREN AND FAMILIES,CARING HEARTS FOSTERING,"3,200.12",FRIENDS & FAMILY FOSTERING,EXTERNAL AGENCIES AND BODIES,2103630129,1000087065
02.03.2023,CHILDREN AND FAMILIES,CARING HEARTS FOSTERING,"3,200.12",FRIENDS & FAMILY FOSTERING,EXTERNAL AGENCIES AND BODIES,2103630133,1000087065
02.03.2023,CHILDREN AND FAMILIES,NEWLYN COLLECTION SERVICES LTD,945.47,SEMI-IND CARELEAVERS,EXTERNAL AGENCIES AND BODIES,5902568736,1000044806
02.03.2023,CHILDREN AND FAMILIES,HEXAGON HOUSING ASSOCIATION LTD,614.84,SEMI-IND CARELEAVERS,EXTERNAL AGENCIES AND BODIES,2103630155,1000056905
02.03.2023,CHILDREN AND FAMILIES,HEXAGON HOUSING ASSOCIATION LTD,852.2,SEMI-IND CARELEAVERS,EXTERNAL AGENCIES AND BODIES,2103630161,1000056905
02.03.2023,CHILDREN AND FAMILIES,MIHOMECARE LTD,"109,032.00",SEMI-IND CONTRACTS,EXTERNAL AGENCIES AND BODIES,5902567796,1000042594
02.03.2023,CHILDREN AND FAMILIES,HEXAGON HOUSING ASSOCIATION LTD,722.12,UASC CARELEAVERS,EXTERNAL AGENCIES AND BODIES,2103630153,1000056905
02.03.2023,CHILDREN AND FAMILIES,HEXAGON HOUSING ASSOCIATION LTD,759.76,UASC CARELEAVERS,EXTERNAL AGENCIES AND BODIES,2103630157,1000056905
02.03.2023,CHILDREN AND FAMILIES,HEXAGON HOUSING ASSOCIATION LTD,759.76,UASC CARELEAVERS,EXTERNAL AGENCIES AND BODIES,2103630159,1000056905
02.03.2023,COMMUNITIES,REDACTED PERSONAL DATA,355.6,NO RECOURSE TO PUBLIC FUNDS,HOMECARE - C&V,REDACTED,REDACTED
02.03.2023,COMMUNITIES,REDACTED PERSONAL DATA,711.2,NO RECOURSE TO PUBLIC FUNDS,HOMECARE - C&V,REDACTED,REDACTED
02.03.2023,COMMUNITIES,REDACTED PERSONAL DATA,350,UKRAINIAN PROGRAMME,GRANTS,REDACTED,REDACTED
02.03.2023,COMMUNITIES,REDACTED PERSONAL DATA,350,UKRAINIAN PROGRAMME,GRANTS,REDACTED,REDACTED
02.03.2023,COMMUNITIES,REDACTED PERSONAL DATA,350,UKRAINIAN PROGRAMME,GRANTS,REDACTED,REDACTED
02.03.2023,COMMUNITIES,REDACTED PERSONAL DATA,350,UKRAINIAN PROGRAMME,GRANTS,REDACTED,REDACTED
02.03.2023,COMMUNITIES,REDACTED PERSONAL DATA,350,UKRAINIAN PROGRAMME,GRANTS,REDACTED,REDACTED
02.03.2023,COMMUNITIES,REDACTED PERSONAL DATA,350,UKRAINIAN PROGRAMME,GRANTS,REDACTED,REDACTED
02.03.2023,COMMUNITIES,REDACTED PERSONAL DATA,350,UKRAINIAN PROGRAMME,GRANTS,REDACTED,REDACTED
02.03.2023,COMMUNITIES,REDACTED PERSONAL DATA,350,UKRAINIAN PROGRAMME,GRANTS,REDACTED,REDACTED
02.03.2023,COMMUNITIES,REDACTED PERSONAL DATA,350,UKRAINIAN PROGRAMME,GRANTS,REDACTED,REDACTED
02.03.2023,COMMUNITIES,LADIES OF VIRTUE OUTREACH CIC,280,VCS COMM & SUPP TEAM,PROFESSIONAL FEES,5902568917,1000087561
02.03.2023,COMMUNITIES,RATHBONE ADVERTISING LTD,"4,454.00",VIOLENCE AGAINST WOMEN & GIRLS,MARKETING & PUBLICITY SERVICES,5902568897,1000086971
02.03.2023,COMMUNITIES HRA,PITNEY BOWES FINANCE LTD,282.8,RESIDENTS PARTICIPATION FUND,OP LEASE/HIRE CHARGES:PLANT/EQUIP/FURNIT,5902568930,1091099
02.03.2023,CORPORATE FACILITIES MANAGEMENT,ROYAL MAIL GROUP LTD,358.39,160 TOOLEY ST.,POSTAGES,5902568331,1000061535
02.03.2023,CORPORATE FACILITIES MANAGEMENT,ROYAL MAIL GROUP LTD,"2,286.00",160 TOOLEY ST.,POSTAGES,5902567685,1000061535
02.03.2023,CUSTOMER AND EXCHEQUER,IEG4 LIMITED,"161,700.00",ADMINISTRATIVE SUPPORT,SOFTWARE,5902567779,1000083899
02.03.2023,CUSTOMER AND EXCHEQUER,ZALARIS CONSULTING UK LTD,"2,275.00",INCOME MANAGEMENT,OFFICE EXPENSES,5902568757,1000062505
02.03.2023,CUSTOMER AND EXCHEQUER,ZALARIS CONSULTING UK LTD,"6,370.00",INCOME MANAGEMENT,OFFICE EXPENSES,5902568756,1000062505
02.03.2023,CUSTOMER AND EXCHEQUER,ZALARIS CONSULTING UK LTD,"10,400.00",INCOME MANAGEMENT,OFFICE EXPENSES,5902568755,1000062505
02.03.2023,DSG,THE STEVENSON GROUP LIMITED,637.75,ADMISSIONS,SUBSCRIPTIONS,5902568869,1000088304
02.03.2023,DSG,WELFARE CALL (LAC) LTD,"19,906.50",VIRTUAL SCHOOL PP,DATA COMMUNICATIONS,5902568745,1000057872
02.03.2023,ENVIRONMENT AND LEISURE,TEN CONSTRUCTION LIMITED,679,CAPITAL PS (LEISURE),CONST'N MAIN CONTRACT - NON CERTIFICATED,5902568914,1000089020
02.03.2023,ENVIRONMENT AND LEISURE,TEN CONSTRUCTION LIMITED,"1,800.00",CAPITAL PS (LEISURE),CONST'N MAIN CONTRACT - NON CERTIFICATED,5902568913,1000089020
02.03.2023,ENVIRONMENT AND LEISURE,TEN CONSTRUCTION LIMITED,"1,874.00",CAPITAL PS (LEISURE),CONST'N MAIN CONTRACT - NON CERTIFICATED,5902568914,1000089020
02.03.2023,ENVIRONMENT AND LEISURE,TEN CONSTRUCTION LIMITED,"2,150.00",CAPITAL PS (LEISURE),CONST'N MAIN CONTRACT - NON CERTIFICATED,5902568914,1000089020
02.03.2023,ENVIRONMENT AND LEISURE,TEN CONSTRUCTION LIMITED,"2,628.00",CAPITAL PS (LEISURE),CONST'N MAIN CONTRACT - NON CERTIFICATED,5902568914,1000089020
02.03.2023,ENVIRONMENT AND LEISURE,TEN CONSTRUCTION LIMITED,"2,857.00",CAPITAL PS (LEISURE),CONST'N MAIN CONTRACT - NON CERTIFICATED,5902568913,1000089020
02.03.2023,ENVIRONMENT AND LEISURE,TEN CONSTRUCTION LIMITED,"4,719.00",CAPITAL PS (LEISURE),CONST'N MAIN CONTRACT - NON CERTIFICATED,5902568913,1000089020
02.03.2023,ENVIRONMENT AND LEISURE,TEN CONSTRUCTION LIMITED,"4,780.00",CAPITAL PS (LEISURE),CONST'N MAIN CONTRACT - NON CERTIFICATED,5902568913,1000089020
02.03.2023,ENVIRONMENT AND LEISURE,TEN CONSTRUCTION LIMITED,"5,576.00",CAPITAL PS (LEISURE),CONST'N MAIN CONTRACT - NON CERTIFICATED,5902568913,1000089020
02.03.2023,ENVIRONMENT AND LEISURE,TEN CONSTRUCTION LIMITED,"9,366.00",CAPITAL PS (LEISURE),CONST'N MAIN CONTRACT - NON CERTIFICATED,5902568914,1000089020
02.03.2023,ENVIRONMENT AND LEISURE,DURA-SPORT,"2,850.00",CAPITAL PS (LEISURE),CONSTRUCTION,5902567641,1000089407
02.03.2023,ENVIRONMENT AND LEISURE,ADAM THOMAS LANDSCAPE DESIGN LTD,"1,150.00",CAPITAL PS (LEISURE),CONSTRUCTION FEES - ARCHITECT,5902567639,1000080845
02.03.2023,ENVIRONMENT AND LEISURE,METIS CONSULTANTS LIMITED,"5,119.00",CAPITAL PS (LEISURE),CONSTRUCTION FEES - ENGINEER,5902568742,1000086330
02.03.2023,ENVIRONMENT AND LEISURE,METIS CONSULTANTS LIMITED,"11,260.00",CAPITAL PS (LEISURE),CONSTRUCTION FEES - ENGINEER,5902568926,1000086330
02.03.2023,ENVIRONMENT AND LEISURE,INTO SERVICES LONDON LTD,260,CAPITAL PS (LEISURE),CONSTRUCTION FEES - INTERNAL,5902567970,1000059328
02.03.2023,ENVIRONMENT AND LEISURE,YACHTING WORLDWIDE LTD,"1,109.38",CAPITAL PS (REGEN),CONSTRUCTION FEES,5902568905,1000068251
02.03.2023,ENVIRONMENT AND LEISURE,HIQ NETWORK TYRES,773.75,MANAGEMENT TEAM,OTHER VEHICLE RUNNING COSTS,5902568944,1000077177
02.03.2023,ENVIRONMENT AND LEISURE,KENT COUNTY COUNCIL - LASER,789.38,SANDGATE STREET,ELECTRICITY,5902567726,1000012926
02.03.2023,ENVIRONMENT AND LEISURE,BRIGHTLY SOFTWARE LTD,"34,000.00",STREET WORKS OVERHEADS,SOFTWARE,5902568887,1000088840
02.03.2023,ENVIRONMENT DIRECTORATE,MARSTON GROUP LTD,279,CAR LEASING CTRL A/C,PARKING CHARGES,5902568831,1000011313
02.03.2023,ENVIRONMENT DIRECTORATE,ARNOLD CLARK VEHICLE MANAGEMENT,272.44,CAR LEASING CTRL A/C,VEHICLE LEASING CHARGES,5902568846,1000079116
02.03.2023,ENVIRONMENT DIRECTORATE,ARNOLD CLARK VEHICLE MANAGEMENT,354.3,CAR LEASING CTRL A/C,VEHICLE LEASING CHARGES,5902568836,1000079116
02.03.2023,ENVIRONMENT DIRECTORATE,ARNOLD CLARK VEHICLE MANAGEMENT,403.38,CAR LEASING CTRL A/C,VEHICLE LEASING CHARGES,5902568836,1000079116
02.03.2023,ENVIRONMENT DIRECTORATE,AUTOMOTIVE LEASING,"39,702.34",COMMERCIAL VEH CTRL A/C,HIRED VEHICLES,5902568797,11014756
02.03.2023,ENVIRONMENT DIRECTORATE,LEX AUTOLEASE,"12,603.85",COMMERCIAL VEH CTRL A/C,HIRED VEHICLES,5902568828,1000069462
02.03.2023,ENVIRONMENT DIRECTORATE,MARSTON GROUP LTD,279,COMMERCIAL VEH CTRL A/C,PARKING CHARGES,5902568835,1000011313
02.03.2023,ENVIRONMENT DIRECTORATE,SHELL UK OIL PRODUCTS LTD,257.57,COMMERCIAL VEH CTRL A/C,VEHICLE FUEL,5902568759,1000081254
02.03.2023,ENVIRONMENT DIRECTORATE,SHELL UK OIL PRODUCTS LTD,278.99,COMMERCIAL VEH CTRL A/C,VEHICLE FUEL,5902568841,1000081254
02.03.2023,ENVIRONMENT DIRECTORATE,SHELL UK OIL PRODUCTS LTD,329.19,COMMERCIAL VEH CTRL A/C,VEHICLE FUEL,5902568735,1000081254
02.03.2023,ENVIRONMENT DIRECTORATE,SHELL UK OIL PRODUCTS LTD,338.85,COMMERCIAL VEH CTRL A/C,VEHICLE FUEL,5902568819,1000081254
02.03.2023,ENVIRONMENT DIRECTORATE,SHELL UK OIL PRODUCTS LTD,343.86,COMMERCIAL VEH CTRL A/C,VEHICLE FUEL,5902568812,1000081254
02.03.2023,ENVIRONMENT DIRECTORATE,SHELL UK OIL PRODUCTS LTD,371.22,COMMERCIAL VEH CTRL A/C,VEHICLE FUEL,5902568805,1000081254
02.03.2023,ENVIRONMENT DIRECTORATE,SHELL UK OIL PRODUCTS LTD,426.65,COMMERCIAL VEH CTRL A/C,VEHICLE FUEL,5902568802,1000081254
02.03.2023,ENVIRONMENT DIRECTORATE,SHELL UK OIL PRODUCTS LTD,429.2,COMMERCIAL VEH CTRL A/C,VEHICLE FUEL,5902568773,1000081254
02.03.2023,ENVIRONMENT DIRECTORATE,SHELL UK OIL PRODUCTS LTD,469.54,COMMERCIAL VEH CTRL A/C,VEHICLE FUEL,5902568800,1000081254
02.03.2023,ENVIRONMENT DIRECTORATE,SHELL UK OIL PRODUCTS LTD,495.96,COMMERCIAL VEH CTRL A/C,VEHICLE FUEL,5902568837,1000081254
02.03.2023,ENVIRONMENT DIRECTORATE,SHELL UK OIL PRODUCTS LTD,588.22,COMMERCIAL VEH CTRL A/C,VEHICLE FUEL,5902568827,1000081254
02.03.2023,ENVIRONMENT DIRECTORATE,SHELL UK OIL PRODUCTS LTD,765.94,COMMERCIAL VEH CTRL A/C,VEHICLE FUEL,5902568761,1000081254
02.03.2023,ENVIRONMENT DIRECTORATE,SHELL UK OIL PRODUCTS LTD,"1,161.31",COMMERCIAL VEH CTRL A/C,VEHICLE FUEL,5902568874,1000081254
02.03.2023,ENVIRONMENT DIRECTORATE,SHELL UK OIL PRODUCTS LTD,"1,249.74",COMMERCIAL VEH CTRL A/C,VEHICLE FUEL,5902568734,1000081254
02.03.2023,ENVIRONMENT DIRECTORATE,SHELL UK OIL PRODUCTS LTD,"1,273.60",COMMERCIAL VEH CTRL A/C,VEHICLE FUEL,5902568833,1000081254
02.03.2023,ENVIRONMENT DIRECTORATE,SHELL UK OIL PRODUCTS LTD,"1,310.68",COMMERCIAL VEH CTRL A/C,VEHICLE FUEL,5902568777,1000081254
02.03.2023,ENVIRONMENT DIRECTORATE,SHELL UK OIL PRODUCTS LTD,"1,333.07",COMMERCIAL VEH CTRL A/C,VEHICLE FUEL,5902568784,1000081254
02.03.2023,ENVIRONMENT DIRECTORATE,SHELL UK OIL PRODUCTS LTD,"6,151.43",COMMERCIAL VEH CTRL A/C,VEHICLE FUEL,5902568815,1000081254
02.03.2023,ENVIRONMENT DIRECTORATE,SHELL UK OIL PRODUCTS LTD,"7,128.69",COMMERCIAL VEH CTRL A/C,VEHICLE FUEL,5902568796,1000081254
02.03.2023,ENVIRONMENT DIRECTORATE,FIVEWAYS MUNICIPAL VEHICLE HIRE LTD,"3,347.30",FLEET INSURANCE WORKS,TRANSPORT INSURANCE COSTS,5902568821,1000023985
02.03.2023,ENVIRONMENT DIRECTORATE,SOUTHWARK NEWSPAPER LTD,"1,776.00",HIGHWAYS DEVELOPMENT,MARKETING & PUBLICITY SERVICES,5902568901,1556957
02.03.2023,ENVIRONMENT DIRECTORATE,INCLUSIVE EMPLOYERS LTD,900,PARKING OVERHEADS,MEDICAL / HEALTH & SAFETY SERVICES,5902568785,1000083490
02.03.2023,ENVIRONMENT DIRECTORATE,REDACTED PERSONAL DATA,804,RESIDENTIAL SERVICES,MANDATORY STATUTORY FEES & CHARGES,REDACTED,REDACTED
02.03.2023,HOUSING,GUIDELINE LIFT SERVICES LTD,"52,536.11",GUIDELINE,I-WORLD CONTRACTORS HOLDING ACCOUNT,5902568929,1000064176
02.03.2023,HOUSING,OCO LIMITED,"152,061.75",PAYMENTS CONTROL ACCOUNT - OCO,I-WORLD CONTRACTORS HOLDING ACCOUNT,5902568854,1006066
02.03.2023,HOUSING,SMITH & BYFORD LTD,"130,701.25",SMITH AND BYFORD,I-WORLD CONTRACTORS HOLDING ACCOUNT,5902568855,11212119
02.03.2023,HOUSING GENERAL FUND,ZG LIGHTING (UK) LTD,"1,290.40",CAPITAL PS (REGEN),CONSTRUCTION,5902568885,1000031757
02.03.2023,HOUSING GENERAL FUND,ZG LIGHTING (UK) LTD,"1,698.00",CAPITAL PS (REGEN),CONSTRUCTION,5902568768,1000031757
02.03.2023,HOUSING GENERAL FUND,ZG LIGHTING (UK) LTD,"1,698.00",CAPITAL PS (REGEN),CONSTRUCTION,5902568772,1000031757
02.03.2023,HOUSING GENERAL FUND,ZG LIGHTING (UK) LTD,"1,730.04",CAPITAL PS (REGEN),CONSTRUCTION,5902568775,1000031757
02.03.2023,HOUSING GENERAL FUND,ZG LIGHTING (UK) LTD,"2,547.00",CAPITAL PS (REGEN),CONSTRUCTION,5902568771,1000031757
02.03.2023,HOUSING GENERAL FUND,ZG LIGHTING (UK) LTD,"2,547.00",CAPITAL PS (REGEN),CONSTRUCTION,5902568886,1000031757
02.03.2023,HOUSING GENERAL FUND,ZG LIGHTING (UK) LTD,655.2,CAPITAL PS (REGEN),CONSTRUCTION MAIN CONTRACT,5902568776,1000031757
02.03.2023,HOUSING GENERAL FUND,ZG LIGHTING (UK) LTD,"1,876.82",CAPITAL PS (REGEN),CONSTRUCTION MAIN CONTRACT,5902568882,1000031757
02.03.2023,HOUSING GENERAL FUND,ZG LIGHTING (UK) LTD,"5,858.00",CAPITAL PS (REGEN),CONSTRUCTION MAIN CONTRACT,5902568884,1000031757
02.03.2023,HOUSING GENERAL FUND,LIBRA CONSTRUCTION SERVICES LTD,"7,983.00",CAPITAL PS (REGEN),CONSTRUCTION MAIN CONTRACT,2103630050,3000000875
02.03.2023,HOUSING HRA,INVICTA BUILDING SERVICES LTD,"2,076.53",CAPITAL PS (HRA),CONSTRUCTION,2103630744,3000001295
02.03.2023,HOUSING HRA,PULSE ASSOCIATES LTD (T/A PULSE CONSULT),"15,625.00",CAPITAL PS (HRA),CONSTRUCTION FEES,5902568790,1000087233
02.03.2023,HOUSING HRA,BONDS BUILDERS AND CONTRACTORS LTD,"45,340.43",CAPITAL PS (HRA),CONSTRUCTION FEES  - EXTERNAL,2103628104,3000002137
02.03.2023,HOUSING HRA,BAILY  GARNER LLP,"6,777.72",CAPITAL PS (HRA),CONSTRUCTION FEES - EMPLOYERS AGENT,5902568364,1000663
02.03.2023,HOUSING HRA,ARJ CONSTRUCTION LTD,"10,363.10",CAPITAL PS (HRA),CONSTRUCTION MAIN CONTRACT,2103630745,3000002232
02.03.2023,HOUSING HRA,ARJ CONSTRUCTION LTD,"521,077.15",CAPITAL PS (HRA),CONSTRUCTION MAIN CONTRACT,2103630745,3000002232
02.03.2023,HOUSING HRA,KIND & COMPANY (BUILDERS) LTD,"16,100.00",CAPITAL PS (HRA),CONSTRUCTION SITE COSTS,2103630743,3000001608
02.03.2023,HOUSING HRA,SILK & MACKMAN SERVICES LTD,375,CAPITAL PS (HRA),UTILITIES INSTALLATION,5902567765,1000035282
02.03.2023,HOUSING HRA,CALFORD SEADEN LLP,"1,890.00",CAPITAL PS (REGEN),CONSTRUCTION FEES  - EXTERNAL,5902568751,1061592
02.03.2023,LEISURE DIRECTORATE,RICHER SOUNDS LIMITED,"2,019.17",CEMETERIES,EQUIPMENT PURCHASE & REPAIR,5902568781,1000089408
02.03.2023,LEISURE DIRECTORATE,CIVICA UK LTD,"32,000.00",IT DEVELOPMENT,COMMS & COMPUTING CONTRACT CHARGES,5902568744,1730625
02.03.2023,LEISURE DIRECTORATE,HAVENSTAR MMS LTD,"5,057.14",SDM BUDGET,SOFTWARE,5902567986,1000011436
02.03.2023,LEISURE DIRECTORATE,TAPEMASTER EUROPE LTD,"1,150.00",STOCK SERVICES,STATIONERY,5902567771,1000087254
02.03.2023,ORG TRANSFORMATION,CITY & GUILDS INTERNATIONAL LTD,755,ILM COSTS,GENERAL RECHARGES,5902568240,1000011217
02.03.2023,ORG TRANSFORMATION,CITY & GUILDS INTERNATIONAL LTD,920,ILM COSTS,GENERAL RECHARGES,5902568244,1000011217
02.03.2023,PUBLIC HEALTH,MINDAPPLES,"4,990.00",HOLIDAY ACTIVITIES & FOOD,EXTERNAL AGENCIES AND BODIES,5902568741,1000073127
02.03.2023,RESIDENT SERVICES,RENT CONNECT HOUSING LTD,"2,046.00",TA PLACEMENTS,EXTERNAL AGENCIES AND BODIES,5902568818,1000074815
02.03.2023,RESIDENT SERVICES,SITTARA LTD,"5,210.30",TA PLACEMENTS,EXTERNAL AGENCIES AND BODIES,5902568782,1000080857
02.03.2023,RESIDENT SERVICES,SITTARA LTD,"13,261.40",TA PLACEMENTS,EXTERNAL AGENCIES AND BODIES,5902568782,1000080857
02.03.2023,RESIDENT SERVICES,CENTENNIAL PROPERTY LIMITED,"2,250.00",TA PLACEMENTS,EXTERNAL AGENCIES AND BODIES,5902568799,1000083022
02.03.2023,RESIDENT SERVICES HGF,LIFE SKILLZ CIC,"3,745.58",AFEO,EXTERNAL AGENCIES AND BODIES,5902568750,1000088098
02.03.2023,RESIDENT SERVICES HGF,ABUNDANT LIFE HOUSING,"4,400.00",HOMELESS PROJECTS,GRANTS,5902568936,1000089440
02.03.2023,RESIDENT SERVICES HGF,ABUNDANT LIFE HOUSING,"4,400.00",HOMELESS PROJECTS,GRANTS,5902568938,1000089440
02.03.2023,RESIDENT SERVICES HGF,SOUTHERN HOUSING GROUP,660.96,HOUSING OPTIONS,EXTERNAL AGENCIES AND BODIES,5902568900,1000067956
02.03.2023,RESIDENT SERVICES HGF,RFL GROUP GP LTD,795.64,HOUSING OPTIONS,EXTERNAL AGENCIES AND BODIES,5902568896,1000089424
02.03.2023,RESIDENT SERVICES HGF,SHUTTLEWORTH (UK) LTD,"1,421.00",NIGHTLY TA (NSC),EXTERNAL AGENCIES AND BODIES,5902568895,1000056468
02.03.2023,RESIDENT SERVICES HGF,SHUTTLEWORTH (UK) LTD,"25,201.00",NIGHTLY TA (NSC),EXTERNAL AGENCIES AND BODIES,5902568895,1000056468
02.03.2023,RESIDENT SERVICES HGF,LIVING ACCOMMODATION LTD,"1,085.00",NIGHTLY TA (NSC),EXTERNAL AGENCIES AND BODIES,5902568892,1000063985
02.03.2023,RESIDENT SERVICES HGF,LIVING ACCOMMODATION LTD,"6,820.00",NIGHTLY TA (NSC),EXTERNAL AGENCIES AND BODIES,5902568891,1000063985
02.03.2023,RESIDENT SERVICES HGF,DENHAN INTERNATIONAL LIMITED,"23,835.80",NIGHTLY TA (NSC),EXTERNAL AGENCIES AND BODIES,5902568878,1000075567
02.03.2023,RESIDENT SERVICES HGF,DMS PROPERTIES SERVICES LTD,"24,444.75",NIGHTLY TA (NSC),EXTERNAL AGENCIES AND BODIES,5902568883,1000081522
02.03.2023,SBS SUPPORT,AGBW - QS LIMITED,950,REORGANISATION COSTS,PROFESSIONAL FEES,5902567815,1000087604
02.03.2023,STRATEGIC FINANCE,ALLIANCE BERNSTEIN LTD,"16,460.77",CASH MANAGERS' COSTS,PROFESSIONAL FEES,5902568911,1000055012
02.03.2023,STRATEGIC FINANCE,COMENSURA LTD,"760,686.21",WEEKLY PAYMENTS,AGENCY STAFF,5902568853,1000051261
03.03.2023,ADULT SOCIAL CARE,HM COURTS & TRIBUNALS SERVICE,371,AAD TEAM,LEGAL FEES & COURT COSTS,2103631478,1000075260
03.03.2023,ADULT SOCIAL CARE,KENT HARRIER PROPERTY MANAGEMENT,"3,806.00",BOWLEY CLOSE,BUILDING R&M,5902568448,1000078130
03.03.2023,ADULT SOCIAL CARE,KENT HARRIER PROPERTY MANAGEMENT,"6,978.00",BOWLEY CLOSE,BUILDING R&M,5902568448,1000078130
03.03.2023,ADULT SOCIAL CARE,KENT COUNTY COUNCIL - LASER,"1,520.23",BOWLEY CLOSE,ELECTRICITY,5902568975,1000012926
03.03.2023,ADULT SOCIAL CARE,HM COURTS & TRIBUNALS SERVICE,371,DEPUTYSHIPS,LEGAL FEES & COURT COSTS,2103631477,1000075260
03.03.2023,ADULT SOCIAL CARE,THE CHERRY GARDEN CENTRE CIC,-555.55,DIR OF ASC,DISCRETIONARY FLEXIBLE FEES & INCOME,2103630742,1000089049
03.03.2023,ADULT SOCIAL CARE,THE DRIVE CARE HOMES LTD,"13,433.56",DISABILITIES LAC,EXTERNAL AGENCIES AND BODIES,2103631041,1000003889
03.03.2023,ADULT SOCIAL CARE,NATIONAL FOSTERING AGENCY LTD,"5,427.80",DISABILITIES LAC,EXTERNAL AGENCIES AND BODIES,2103631069,1000038868
03.03.2023,ADULT SOCIAL CARE,BLANDFORD HOUSE UK LTD,"18,613.00",DISABILITIES LAC,EXTERNAL AGENCIES AND BODIES,2103631048,1000088662
03.03.2023,ADULT SOCIAL CARE,THE DRIVE CARE HOMES LTD,"14,218.04",DISABILITIES LAC,RESIDENTIAL CARE,2103631046,1000003889
03.03.2023,ADULT SOCIAL CARE,CREATING CARE CHOICES LTD,"19,800.00",DISABILITIES LAC,RESIDENTIAL CARE,2103631042,1000076738
03.03.2023,ADULT SOCIAL CARE,BLANDFORD HOUSE UK LTD,"3,170.40",DISABILITIES LAC,RESIDENTIAL CARE,2103631047,1000088662
03.03.2023,ADULT SOCIAL CARE,CONTACT PROFESSIONALS,798,LD LTS 18-64,SUPPORTED LIVING,2103631081,1000057263
03.03.2023,ADULT SOCIAL CARE,KEEVA CARE LIMITED,"2,128.00",LD LTS 18-64,SUPPORTED LIVING,2103631079,1000086100
03.03.2023,ADULT SOCIAL CARE,OLUMBA CARE LIMITED,304,LD LTS 18-64,SUPPORTED LIVING,2103631090,1000087828
03.03.2023,ADULT SOCIAL CARE,OLUMBA CARE LIMITED,640,LD LTS 18-64,SUPPORTED LIVING,2103631089,1000087828
03.03.2023,ADULT SOCIAL CARE,OLUMBA CARE LIMITED,988,LD LTS 18-64,SUPPORTED LIVING,2103631086,1000087828
03.03.2023,ADULT SOCIAL CARE,OLUMBA CARE LIMITED,"1,216.00",LD LTS 18-64,SUPPORTED LIVING,2103631092,1000087828
03.03.2023,ADULT SOCIAL CARE,REDACTED PERSONAL DATA,426.72,LD LTS 18-64,SUPPORTED LIVING,REDACTED,REDACTED
03.03.2023,ADULT SOCIAL CARE,REDACTED PERSONAL DATA,426.72,LD LTS 18-64,SUPPORTED LIVING,REDACTED,REDACTED
03.03.2023,ADULT SOCIAL CARE,REDACTED PERSONAL DATA,568.96,LD LTS 18-64,SUPPORTED LIVING,REDACTED,REDACTED
03.03.2023,ADULT SOCIAL CARE,REDACTED PERSONAL DATA,568.96,LD LTS 18-64,SUPPORTED LIVING,REDACTED,REDACTED
03.03.2023,ADULT SOCIAL CARE,REDACTED PERSONAL DATA,640.08,LD LTS 18-64,SUPPORTED LIVING,REDACTED,REDACTED
03.03.2023,ADULT SOCIAL CARE,REDACTED PERSONAL DATA,640.08,LD LTS 18-64,SUPPORTED LIVING,REDACTED,REDACTED
03.03.2023,ADULT SOCIAL CARE,REDACTED PERSONAL DATA,711.2,LD LTS 18-64,SUPPORTED LIVING,REDACTED,REDACTED
03.03.2023,ADULT SOCIAL CARE,REDACTED PERSONAL DATA,711.2,LD LTS 18-64,SUPPORTED LIVING,REDACTED,REDACTED
03.03.2023,ADULT SOCIAL CARE,REDACTED PERSONAL DATA,"1,351.28",LD LTS 18-64,SUPPORTED LIVING,REDACTED,REDACTED
03.03.2023,ADULT SOCIAL CARE,REDACTED PERSONAL DATA,"1,351.28",LD LTS 18-64,SUPPORTED LIVING,REDACTED,REDACTED
03.03.2023,ADULT SOCIAL CARE,KEEVA CARE LIMITED,"6,524.00",LD LTS 65+,SUPPORTED LIVING,2103631078,1000086100
03.03.2023,ADULT SOCIAL CARE,MEDACS HOMECARE,817,MEM LTS 65+,HOMECARE - C&V,2103631145,11287415
03.03.2023,ADULT SOCIAL CARE,MEDACS HOMECARE,"1,418.33",MEM LTS 65+,HOMECARE - C&V,2103631127,11287415
03.03.2023,ADULT SOCIAL CARE,OLUMBA CARE LIMITED,271.6,MH LTS 18-64,SUPPORTED LIVING,2103631099,1000087828
03.03.2023,ADULT SOCIAL CARE,OLUMBA CARE LIMITED,456,MH LTS 18-64,SUPPORTED LIVING,2103631088,1000087828
03.03.2023,ADULT SOCIAL CARE,REDACTED PERSONAL DATA,284.48,MH LTS 18-64,SUPPORTED LIVING,REDACTED,REDACTED
03.03.2023,ADULT SOCIAL CARE,REDACTED PERSONAL DATA,284.48,MH LTS 18-64,SUPPORTED LIVING,REDACTED,REDACTED
03.03.2023,ADULT SOCIAL CARE,REDACTED PERSONAL DATA,284.48,MH LTS 18-64,SUPPORTED LIVING,REDACTED,REDACTED
03.03.2023,ADULT SOCIAL CARE,REDACTED PERSONAL DATA,284.48,MH LTS 18-64,SUPPORTED LIVING,REDACTED,REDACTED
03.03.2023,ADULT SOCIAL CARE,REDACTED PERSONAL DATA,284.48,MH LTS 18-64,SUPPORTED LIVING,REDACTED,REDACTED
03.03.2023,ADULT SOCIAL CARE,REDACTED PERSONAL DATA,284.48,MH LTS 18-64,SUPPORTED LIVING,REDACTED,REDACTED
03.03.2023,ADULT SOCIAL CARE,REDACTED PERSONAL DATA,284.48,MH LTS 18-64,SUPPORTED LIVING,REDACTED,REDACTED
03.03.2023,ADULT SOCIAL CARE,REDACTED PERSONAL DATA,284.48,MH LTS 18-64,SUPPORTED LIVING,REDACTED,REDACTED
03.03.2023,ADULT SOCIAL CARE,REDACTED PERSONAL DATA,284.48,MH LTS 18-64,SUPPORTED LIVING,REDACTED,REDACTED
03.03.2023,ADULT SOCIAL CARE,REDACTED PERSONAL DATA,284.48,MH LTS 18-64,SUPPORTED LIVING,REDACTED,REDACTED
03.03.2023,ADULT SOCIAL CARE,REDACTED PERSONAL DATA,284.48,MH LTS 18-64,SUPPORTED LIVING,REDACTED,REDACTED
03.03.2023,ADULT SOCIAL CARE,REDACTED PERSONAL DATA,284.48,MH LTS 18-64,SUPPORTED LIVING,REDACTED,REDACTED
03.03.2023,ADULT SOCIAL CARE,REDACTED PERSONAL DATA,284.48,MH LTS 18-64,SUPPORTED LIVING,REDACTED,REDACTED
03.03.2023,ADULT SOCIAL CARE,REDACTED PERSONAL DATA,284.48,MH LTS 18-64,SUPPORTED LIVING,REDACTED,REDACTED
03.03.2023,ADULT SOCIAL CARE,REDACTED PERSONAL DATA,284.48,MH LTS 18-64,SUPPORTED LIVING,REDACTED,REDACTED
03.03.2023,ADULT SOCIAL CARE,REDACTED PERSONAL DATA,284.48,MH LTS 18-64,SUPPORTED LIVING,REDACTED,REDACTED
03.03.2023,ADULT SOCIAL CARE,REDACTED PERSONAL DATA,284.48,MH LTS 18-64,SUPPORTED LIVING,REDACTED,REDACTED
03.03.2023,ADULT SOCIAL CARE,REDACTED PERSONAL DATA,284.48,MH LTS 18-64,SUPPORTED LIVING,REDACTED,REDACTED
03.03.2023,ADULT SOCIAL CARE,REDACTED PERSONAL DATA,284.48,MH LTS 18-64,SUPPORTED LIVING,REDACTED,REDACTED
03.03.2023,ADULT SOCIAL CARE,REDACTED PERSONAL DATA,284.48,MH LTS 18-64,SUPPORTED LIVING,REDACTED,REDACTED
03.03.2023,ADULT SOCIAL CARE,REDACTED PERSONAL DATA,284.48,MH LTS 18-64,SUPPORTED LIVING,REDACTED,REDACTED
03.03.2023,ADULT SOCIAL CARE,REDACTED PERSONAL DATA,284.48,MH LTS 18-64,SUPPORTED LIVING,REDACTED,REDACTED
03.03.2023,ADULT SOCIAL CARE,REDACTED PERSONAL DATA,284.48,MH LTS 18-64,SUPPORTED LIVING,REDACTED,REDACTED
03.03.2023,ADULT SOCIAL CARE,REDACTED PERSONAL DATA,284.48,MH LTS 18-64,SUPPORTED LIVING,REDACTED,REDACTED
03.03.2023,ADULT SOCIAL CARE,REDACTED PERSONAL DATA,284.48,MH LTS 18-64,SUPPORTED LIVING,REDACTED,REDACTED
03.03.2023,ADULT SOCIAL CARE,REDACTED PERSONAL DATA,320.04,MH LTS 18-64,SUPPORTED LIVING,REDACTED,REDACTED
03.03.2023,ADULT SOCIAL CARE,REDACTED PERSONAL DATA,320.04,MH LTS 18-64,SUPPORTED LIVING,REDACTED,REDACTED
03.03.2023,ADULT SOCIAL CARE,REDACTED PERSONAL DATA,320.04,MH LTS 18-64,SUPPORTED LIVING,REDACTED,REDACTED
03.03.2023,ADULT SOCIAL CARE,REDACTED PERSONAL DATA,320.04,MH LTS 18-64,SUPPORTED LIVING,REDACTED,REDACTED
03.03.2023,ADULT SOCIAL CARE,REDACTED PERSONAL DATA,320.04,MH LTS 18-64,SUPPORTED LIVING,REDACTED,REDACTED
03.03.2023,ADULT SOCIAL CARE,REDACTED PERSONAL DATA,320.04,MH LTS 18-64,SUPPORTED LIVING,REDACTED,REDACTED
03.03.2023,ADULT SOCIAL CARE,REDACTED PERSONAL DATA,320.04,MH LTS 18-64,SUPPORTED LIVING,REDACTED,REDACTED
03.03.2023,ADULT SOCIAL CARE,REDACTED PERSONAL DATA,320.04,MH LTS 18-64,SUPPORTED LIVING,REDACTED,REDACTED
03.03.2023,ADULT SOCIAL CARE,REDACTED PERSONAL DATA,320.04,MH LTS 18-64,SUPPORTED LIVING,REDACTED,REDACTED
03.03.2023,ADULT SOCIAL CARE,REDACTED PERSONAL DATA,320.04,MH LTS 18-64,SUPPORTED LIVING,REDACTED,REDACTED
03.03.2023,ADULT SOCIAL CARE,REDACTED PERSONAL DATA,355.6,MH LTS 18-64,SUPPORTED LIVING,REDACTED,REDACTED
03.03.2023,ADULT SOCIAL CARE,REDACTED PERSONAL DATA,355.6,MH LTS 18-64,SUPPORTED LIVING,REDACTED,REDACTED
03.03.2023,ADULT SOCIAL CARE,REDACTED PERSONAL DATA,355.6,MH LTS 18-64,SUPPORTED LIVING,REDACTED,REDACTED
03.03.2023,ADULT SOCIAL CARE,REDACTED PERSONAL DATA,355.6,MH LTS 18-64,SUPPORTED LIVING,REDACTED,REDACTED
03.03.2023,ADULT SOCIAL CARE,REDACTED PERSONAL DATA,426.72,MH LTS 18-64,SUPPORTED LIVING,REDACTED,REDACTED
03.03.2023,ADULT SOCIAL CARE,REDACTED PERSONAL DATA,426.72,MH LTS 18-64,SUPPORTED LIVING,REDACTED,REDACTED
03.03.2023,ADULT SOCIAL CARE,REDACTED PERSONAL DATA,426.72,MH LTS 18-64,SUPPORTED LIVING,REDACTED,REDACTED
03.03.2023,ADULT SOCIAL CARE,REDACTED PERSONAL DATA,426.72,MH LTS 18-64,SUPPORTED LIVING,REDACTED,REDACTED
03.03.2023,ADULT SOCIAL CARE,REDACTED PERSONAL DATA,426.72,MH LTS 18-64,SUPPORTED LIVING,REDACTED,REDACTED
03.03.2023,ADULT SOCIAL CARE,REDACTED PERSONAL DATA,426.72,MH LTS 18-64,SUPPORTED LIVING,REDACTED,REDACTED
03.03.2023,ADULT SOCIAL CARE,REDACTED PERSONAL DATA,426.72,MH LTS 18-64,SUPPORTED LIVING,REDACTED,REDACTED
03.03.2023,ADULT SOCIAL CARE,REDACTED PERSONAL DATA,426.72,MH LTS 18-64,SUPPORTED LIVING,REDACTED,REDACTED
03.03.2023,ADULT SOCIAL CARE,REDACTED PERSONAL DATA,462.28,MH LTS 18-64,SUPPORTED LIVING,REDACTED,REDACTED
03.03.2023,ADULT SOCIAL CARE,REDACTED PERSONAL DATA,462.28,MH LTS 18-64,SUPPORTED LIVING,REDACTED,REDACTED
03.03.2023,ADULT SOCIAL CARE,REDACTED PERSONAL DATA,462.28,MH LTS 18-64,SUPPORTED LIVING,REDACTED,REDACTED
03.03.2023,ADULT SOCIAL CARE,REDACTED PERSONAL DATA,462.28,MH LTS 18-64,SUPPORTED LIVING,REDACTED,REDACTED
03.03.2023,ADULT SOCIAL CARE,REDACTED PERSONAL DATA,462.28,MH LTS 18-64,SUPPORTED LIVING,REDACTED,REDACTED
03.03.2023,ADULT SOCIAL CARE,REDACTED PERSONAL DATA,497.84,MH LTS 18-64,SUPPORTED LIVING,REDACTED,REDACTED
03.03.2023,ADULT SOCIAL CARE,REDACTED PERSONAL DATA,497.84,MH LTS 18-64,SUPPORTED LIVING,REDACTED,REDACTED
03.03.2023,ADULT SOCIAL CARE,REDACTED PERSONAL DATA,497.84,MH LTS 18-64,SUPPORTED LIVING,REDACTED,REDACTED
03.03.2023,ADULT SOCIAL CARE,REDACTED PERSONAL DATA,497.84,MH LTS 18-64,SUPPORTED LIVING,REDACTED,REDACTED
03.03.2023,ADULT SOCIAL CARE,REDACTED PERSONAL DATA,497.84,MH LTS 18-64,SUPPORTED LIVING,REDACTED,REDACTED
03.03.2023,ADULT SOCIAL CARE,REDACTED PERSONAL DATA,497.84,MH LTS 18-64,SUPPORTED LIVING,REDACTED,REDACTED
03.03.2023,ADULT SOCIAL CARE,REDACTED PERSONAL DATA,533.4,MH LTS 18-64,SUPPORTED LIVING,REDACTED,REDACTED
03.03.2023,ADULT SOCIAL CARE,REDACTED PERSONAL DATA,533.4,MH LTS 18-64,SUPPORTED LIVING,REDACTED,REDACTED
03.03.2023,ADULT SOCIAL CARE,REDACTED PERSONAL DATA,568.96,MH LTS 18-64,SUPPORTED LIVING,REDACTED,REDACTED
03.03.2023,ADULT SOCIAL CARE,REDACTED PERSONAL DATA,568.96,MH LTS 18-64,SUPPORTED LIVING,REDACTED,REDACTED
03.03.2023,ADULT SOCIAL CARE,REDACTED PERSONAL DATA,568.96,MH LTS 18-64,SUPPORTED LIVING,REDACTED,REDACTED
03.03.2023,ADULT SOCIAL CARE,REDACTED PERSONAL DATA,568.96,MH LTS 18-64,SUPPORTED LIVING,REDACTED,REDACTED
03.03.2023,ADULT SOCIAL CARE,REDACTED PERSONAL DATA,640.08,MH LTS 18-64,SUPPORTED LIVING,REDACTED,REDACTED
03.03.2023,ADULT SOCIAL CARE,REDACTED PERSONAL DATA,640.08,MH LTS 18-64,SUPPORTED LIVING,REDACTED,REDACTED
03.03.2023,ADULT SOCIAL CARE,REDACTED PERSONAL DATA,640.08,MH LTS 18-64,SUPPORTED LIVING,REDACTED,REDACTED
03.03.2023,ADULT SOCIAL CARE,REDACTED PERSONAL DATA,675.64,MH LTS 18-64,SUPPORTED LIVING,REDACTED,REDACTED
03.03.2023,ADULT SOCIAL CARE,REDACTED PERSONAL DATA,675.64,MH LTS 18-64,SUPPORTED LIVING,REDACTED,REDACTED
03.03.2023,ADULT SOCIAL CARE,REDACTED PERSONAL DATA,675.64,MH LTS 18-64,SUPPORTED LIVING,REDACTED,REDACTED
03.03.2023,ADULT SOCIAL CARE,REDACTED PERSONAL DATA,782.32,MH LTS 18-64,SUPPORTED LIVING,REDACTED,REDACTED
03.03.2023,ADULT SOCIAL CARE,REDACTED PERSONAL DATA,782.32,MH LTS 18-64,SUPPORTED LIVING,REDACTED,REDACTED
03.03.2023,ADULT SOCIAL CARE,REDACTED PERSONAL DATA,977.9,MH LTS 18-64,SUPPORTED LIVING,REDACTED,REDACTED
03.03.2023,ADULT SOCIAL CARE,REDACTED PERSONAL DATA,977.9,MH LTS 18-64,SUPPORTED LIVING,REDACTED,REDACTED
03.03.2023,ADULT SOCIAL CARE,REDACTED PERSONAL DATA,995.68,MH LTS 18-64,SUPPORTED LIVING,REDACTED,REDACTED
03.03.2023,ADULT SOCIAL CARE,REDACTED PERSONAL DATA,995.68,MH LTS 18-64,SUPPORTED LIVING,REDACTED,REDACTED
03.03.2023,ADULT SOCIAL CARE,REDACTED PERSONAL DATA,995.68,MH LTS 18-64,SUPPORTED LIVING,REDACTED,REDACTED
03.03.2023,ADULT SOCIAL CARE,REDACTED PERSONAL DATA,995.68,MH LTS 18-64,SUPPORTED LIVING,REDACTED,REDACTED
03.03.2023,ADULT SOCIAL CARE,REDACTED PERSONAL DATA,"1,280.16",MH LTS 18-64,SUPPORTED LIVING,REDACTED,REDACTED
03.03.2023,ADULT SOCIAL CARE,REDACTED PERSONAL DATA,"1,280.16",MH LTS 18-64,SUPPORTED LIVING,REDACTED,REDACTED
03.03.2023,ADULT SOCIAL CARE,MEDACS HOMECARE,519.12,MH LTS 65+,HOMECARE - C&V,2103631102,11287415
03.03.2023,ADULT SOCIAL CARE,MEDACS HOMECARE,519.12,MH LTS 65+,HOMECARE - C&V,2103631119,11287415
03.03.2023,ADULT SOCIAL CARE,MEDACS HOMECARE,519.12,MH LTS 65+,HOMECARE - C&V,2103631124,11287415
03.03.2023,ADULT SOCIAL CARE,MEDACS HOMECARE,519.12,MH LTS 65+,HOMECARE - C&V,2103631137,11287415
03.03.2023,ADULT SOCIAL CARE,MEDACS HOMECARE,519.12,MH LTS 65+,HOMECARE - C&V,2103631143,11287415
03.03.2023,ADULT SOCIAL CARE,MEDACS HOMECARE,523.39,MH LTS 65+,HOMECARE - C&V,2103631157,11287415
03.03.2023,ADULT SOCIAL CARE,MEDACS HOMECARE,532,MH LTS 65+,HOMECARE - C&V,2103631150,11287415
03.03.2023,ADULT SOCIAL CARE,MEDACS HOMECARE,532,MH LTS 65+,HOMECARE - C&V,2103631164,11287415
03.03.2023,ADULT SOCIAL CARE,MEDACS HOMECARE,532,MH LTS 65+,HOMECARE - C&V,2103631166,11287415
03.03.2023,ADULT SOCIAL CARE,REDACTED PERSONAL DATA,284.48,MH LTS 65+,SUPPORTED LIVING,REDACTED,REDACTED
03.03.2023,ADULT SOCIAL CARE,REDACTED PERSONAL DATA,284.48,MH LTS 65+,SUPPORTED LIVING,REDACTED,REDACTED
03.03.2023,ADULT SOCIAL CARE,REDACTED PERSONAL DATA,408.94,MH LTS 65+,SUPPORTED LIVING,REDACTED,REDACTED
03.03.2023,ADULT SOCIAL CARE,REDACTED PERSONAL DATA,408.94,MH LTS 65+,SUPPORTED LIVING,REDACTED,REDACTED
03.03.2023,ADULT SOCIAL CARE,REDACTED PERSONAL DATA,426.72,MH LTS 65+,SUPPORTED LIVING,REDACTED,REDACTED
03.03.2023,ADULT SOCIAL CARE,REDACTED PERSONAL DATA,426.72,MH LTS 65+,SUPPORTED LIVING,REDACTED,REDACTED
03.03.2023,ADULT SOCIAL CARE,REDACTED PERSONAL DATA,782.32,MH LTS 65+,SUPPORTED LIVING,REDACTED,REDACTED
03.03.2023,ADULT SOCIAL CARE,REDACTED PERSONAL DATA,782.32,MH LTS 65+,SUPPORTED LIVING,REDACTED,REDACTED
03.03.2023,ADULT SOCIAL CARE,REDACTED PERSONAL DATA,853.44,MH LTS 65+,SUPPORTED LIVING,REDACTED,REDACTED
03.03.2023,ADULT SOCIAL CARE,REDACTED PERSONAL DATA,853.44,MH LTS 65+,SUPPORTED LIVING,REDACTED,REDACTED
03.03.2023,ADULT SOCIAL CARE,REDACTED PERSONAL DATA,"1,297.94",MH LTS 65+,SUPPORTED LIVING,REDACTED,REDACTED
03.03.2023,ADULT SOCIAL CARE,REDACTED PERSONAL DATA,"1,351.28",MH LTS 65+,SUPPORTED LIVING,REDACTED,REDACTED
03.03.2023,ADULT SOCIAL CARE,MEDACS HOMECARE,315.2,PHY LTS 18-64,HOMECARE - C&V,2103631118,11287415
03.03.2023,ADULT SOCIAL CARE,MEDACS HOMECARE,317.66,PHY LTS 18-64,HOMECARE - C&V,2103631169,11287415
03.03.2023,ADULT SOCIAL CARE,MEDACS HOMECARE,323,PHY LTS 18-64,HOMECARE - C&V,2103631160,11287415
03.03.2023,ADULT SOCIAL CARE,MEDACS HOMECARE,379.08,PHY LTS 18-64,HOMECARE - C&V,2103631147,11287415
03.03.2023,ADULT SOCIAL CARE,ELIMHOUSE COMMUNITY ASSOCIATION,"2,550.00",PHY LTS 65+,DAYCARE,2103630829,1000076454
03.03.2023,ADULT SOCIAL CARE,MEDACS HOMECARE,291.35,PHY LTS 65+,HOMECARE - C&V,2103631110,11287415
03.03.2023,ADULT SOCIAL CARE,MEDACS HOMECARE,296.64,PHY LTS 65+,HOMECARE - C&V,2103631133,11287415
03.03.2023,ADULT SOCIAL CARE,MEDACS HOMECARE,296.64,PHY LTS 65+,HOMECARE - C&V,2103631135,11287415
03.03.2023,ADULT SOCIAL CARE,MEDACS HOMECARE,296.64,PHY LTS 65+,HOMECARE - C&V,2103631138,11287415
03.03.2023,ADULT SOCIAL CARE,MEDACS HOMECARE,306.5,PHY LTS 65+,HOMECARE - C&V,2103631158,11287415
03.03.2023,ADULT SOCIAL CARE,MEDACS HOMECARE,352.28,PHY LTS 65+,HOMECARE - C&V,2103631120,11287415
03.03.2023,ADULT SOCIAL CARE,MEDACS HOMECARE,352.28,PHY LTS 65+,HOMECARE - C&V,2103631139,11287415
03.03.2023,ADULT SOCIAL CARE,MEDACS HOMECARE,373.75,PHY LTS 65+,HOMECARE - C&V,2103631172,11287415
03.03.2023,ADULT SOCIAL CARE,MEDACS HOMECARE,426.44,PHY LTS 65+,HOMECARE - C&V,2103631113,11287415
03.03.2023,ADULT SOCIAL CARE,MEDACS HOMECARE,429.88,PHY LTS 65+,HOMECARE - C&V,2103631173,11287415
03.03.2023,ADULT SOCIAL CARE,MEDACS HOMECARE,444.96,PHY LTS 65+,HOMECARE - C&V,2103631114,11287415
03.03.2023,ADULT SOCIAL CARE,MEDACS HOMECARE,444.96,PHY LTS 65+,HOMECARE - C&V,2103631131,11287415
03.03.2023,ADULT SOCIAL CARE,MEDACS HOMECARE,455.08,PHY LTS 65+,HOMECARE - C&V,2103631146,11287415
03.03.2023,ADULT SOCIAL CARE,MEDACS HOMECARE,455.08,PHY LTS 65+,HOMECARE - C&V,2103631162,11287415
03.03.2023,ADULT SOCIAL CARE,MEDACS HOMECARE,553.55,PHY LTS 65+,HOMECARE - C&V,2103631132,11287415
03.03.2023,ADULT SOCIAL CARE,MEDACS HOMECARE,556.2,PHY LTS 65+,HOMECARE - C&V,2103631116,11287415
03.03.2023,ADULT SOCIAL CARE,MEDACS HOMECARE,560.8,PHY LTS 65+,HOMECARE - C&V,2103631168,11287415
03.03.2023,ADULT SOCIAL CARE,MEDACS HOMECARE,570,PHY LTS 65+,HOMECARE - C&V,2103631144,11287415
03.03.2023,ADULT SOCIAL CARE,MEDACS HOMECARE,570,PHY LTS 65+,HOMECARE - C&V,2103631151,11287415
03.03.2023,ADULT SOCIAL CARE,MEDACS HOMECARE,570,PHY LTS 65+,HOMECARE - C&V,2103631155,11287415
03.03.2023,ADULT SOCIAL CARE,MEDACS HOMECARE,578.06,PHY LTS 65+,HOMECARE - C&V,2103631115,11287415
03.03.2023,ADULT SOCIAL CARE,MEDACS HOMECARE,608,PHY LTS 65+,HOMECARE - C&V,2103631175,11287415
03.03.2023,ADULT SOCIAL CARE,MEDACS HOMECARE,642.95,PHY LTS 65+,HOMECARE - C&V,2103631117,11287415
03.03.2023,ADULT SOCIAL CARE,MEDACS HOMECARE,674.08,PHY LTS 65+,HOMECARE - C&V,2103631134,11287415
03.03.2023,ADULT SOCIAL CARE,MEDACS HOMECARE,723.08,PHY LTS 65+,HOMECARE - C&V,2103631130,11287415
03.03.2023,ADULT SOCIAL CARE,MEDACS HOMECARE,822.66,PHY LTS 65+,HOMECARE - C&V,2103631176,11287415
03.03.2023,ADULT SOCIAL CARE,MEDACS HOMECARE,889.92,PHY LTS 65+,HOMECARE - C&V,2103631103,11287415
03.03.2023,ADULT SOCIAL CARE,MEDACS HOMECARE,889.92,PHY LTS 65+,HOMECARE - C&V,2103631106,11287415
03.03.2023,ADULT SOCIAL CARE,MEDACS HOMECARE,889.92,PHY LTS 65+,HOMECARE - C&V,2103631109,11287415
03.03.2023,ADULT SOCIAL CARE,MEDACS HOMECARE,889.92,PHY LTS 65+,HOMECARE - C&V,2103631112,11287415
03.03.2023,ADULT SOCIAL CARE,MEDACS HOMECARE,889.92,PHY LTS 65+,HOMECARE - C&V,2103631125,11287415
03.03.2023,ADULT SOCIAL CARE,MEDACS HOMECARE,889.92,PHY LTS 65+,HOMECARE - C&V,2103631140,11287415
03.03.2023,ADULT SOCIAL CARE,MEDACS HOMECARE,897.47,PHY LTS 65+,HOMECARE - C&V,2103631159,11287415
03.03.2023,ADULT SOCIAL CARE,MEDACS HOMECARE,897.47,PHY LTS 65+,HOMECARE - C&V,2103631171,11287415
03.03.2023,ADULT SOCIAL CARE,MEDACS HOMECARE,912,PHY LTS 65+,HOMECARE - C&V,2103631153,11287415
03.03.2023,ADULT SOCIAL CARE,MEDACS HOMECARE,945.56,PHY LTS 65+,HOMECARE - C&V,2103631111,11287415
03.03.2023,ADULT SOCIAL CARE,MEDACS HOMECARE,945.56,PHY LTS 65+,HOMECARE - C&V,2103631126,11287415
03.03.2023,ADULT SOCIAL CARE,MEDACS HOMECARE,962.76,PHY LTS 65+,HOMECARE - C&V,2103631121,11287415
03.03.2023,ADULT SOCIAL CARE,MEDACS HOMECARE,969,PHY LTS 65+,HOMECARE - C&V,2103631154,11287415
03.03.2023,ADULT SOCIAL CARE,MEDACS HOMECARE,"1,273.00",PHY LTS 65+,HOMECARE - C&V,2103631149,11287415
03.03.2023,ADULT SOCIAL CARE,MEDACS HOMECARE,778.68,PHY LTS 65+,HOMECARE - SPOT,2103631108,11287415
03.03.2023,ADULT SOCIAL CARE,OLUMBA CARE LIMITED,665,PHY LTS 65+,HOMECARE - SPOT,2103631094,1000087828
03.03.2023,ADULT SOCIAL CARE,OLUMBA CARE LIMITED,950,PHY LTS 65+,HOMECARE - SPOT,2103631095,1000087828
03.03.2023,ADULT SOCIAL CARE,OLUMBA CARE LIMITED,"2,394.00",PHY LTS 65+,HOMECARE - SPOT,2103631091,1000087828
03.03.2023,ADULT SOCIAL CARE,OLUMBA CARE LIMITED,"2,774.00",PHY LTS 65+,HOMECARE - SPOT,2103631100,1000087828
03.03.2023,ADULT SOCIAL CARE,OLUMBA CARE LIMITED,"2,812.00",PHY LTS 65+,HOMECARE - SPOT,2103631093,1000087828
03.03.2023,ADULT SOCIAL CARE,OLUMBA CARE LIMITED,"2,926.00",PHY LTS 65+,HOMECARE - SPOT,2103631097,1000087828
03.03.2023,ADULT SOCIAL CARE,OLUMBA CARE LIMITED,"1,311.00",PHY LTS 65+,SUPPORTED LIVING,2103631083,1000087828
03.03.2023,ADULT SOCIAL CARE,MEDACS HOMECARE,"1,042.21",SOCIAL ISOLATION,HOMECARE - C&V,2103631105,11287415
03.03.2023,ASSET MANAGEMENT,ASHFORDS LLP OFFICE ACCOUNT,286,DISREPAIR,BUILDING R&M,5902569076,1000082695
03.03.2023,ASSET MANAGEMENT,ASHFORDS LLP OFFICE ACCOUNT,309.5,DISREPAIR,BUILDING R&M,5902569070,1000082695
03.03.2023,ASSET MANAGEMENT,ASHFORDS LLP OFFICE ACCOUNT,450,DISREPAIR,BUILDING R&M,5902569064,1000082695
03.03.2023,ASSET MANAGEMENT,ASHFORDS LLP OFFICE ACCOUNT,676.5,DISREPAIR,BUILDING R&M,5902569075,1000082695
03.03.2023,ASSET MANAGEMENT,ASHFORDS LLP OFFICE ACCOUNT,700,DISREPAIR,BUILDING R&M,5902569073,1000082695
03.03.2023,ASSET MANAGEMENT,ASHFORDS LLP OFFICE ACCOUNT,702.5,DISREPAIR,BUILDING R&M,5902569068,1000082695
03.03.2023,ASSET MANAGEMENT,ASHFORDS LLP OFFICE ACCOUNT,"1,370.00",DISREPAIR,BUILDING R&M,5902569065,1000082695
03.03.2023,CENTRAL FUNCTIONS,KENT COUNTY COUNCIL - LASER,"1,255.09",HEATING ACCOUNT,ELECTRICITY,2103631184,1000012926
03.03.2023,CENTRAL FUNCTIONS,KENT COUNTY COUNCIL - LASER,"1,530.87",HEATING ACCOUNT,ELECTRICITY,2103631183,1000012926
03.03.2023,CENTRAL FUNCTIONS,KENT COUNTY COUNCIL - LASER,"1,930.39",HEATING ACCOUNT,ELECTRICITY,2103631185,1000012926
03.03.2023,CENTRAL FUNCTIONS,KENT COUNTY COUNCIL - LASER,"3,260.33",HEATING ACCOUNT,GAS,2103631187,1000012926
03.03.2023,CENTRAL FUNCTIONS,DSI BILLING SERVICES LTD,296.8,OPERATIONAL TEAM,POSTAGES,5902568792,1000058640
03.03.2023,CENTRAL FUNCTIONS,MRO PEOPLE LTD,537.5,OPERATIONAL TEAM,TRAINING,5902568952,1000083017
03.03.2023,CHIEF EXECUTIVE,WALWORTH TOWN HALL LLP,"1,000,000.00",CAPITAL PS (REGEN),CAPITAL GRANTS,5902569080,1000089311
03.03.2023,CHIEF EXECUTIVE,CURRIE & BROWN UK LTD,"9,095.00",CAPITAL PS (REGEN),CONSTRUCTION FEES,5902568342,1000033455
03.03.2023,CHILDREN AND ADULT,ICENI PROJECTS LTD,"2,200.00",CAPITAL PS (EDUCATION),CONSTRUCTION FEES,5902568977,1000078958
03.03.2023,CHILDREN AND FAMILIES,FAMILY FUTURES CIC,"1,360.00",ADOPTION SUPP FUND 2,EXTERNAL AGENCIES AND BODIES,5902568113,1000027893
03.03.2023,CHILDREN AND FAMILIES,FAMILY FUTURES CIC,"1,600.00",ADOPTION SUPP FUND 2,EXTERNAL AGENCIES AND BODIES,5902567953,1000027893
03.03.2023,CHILDREN AND FAMILIES,KEYS PCE LTD,"17,380.00",CHILDREN�S RESID,RESIDENTIAL CARE,2103631045,1000080090
03.03.2023,CHILDREN AND FAMILIES,KEYS PCE LTD,"18,240.00",CHILDREN�S RESID,RESIDENTIAL CARE,2103631044,1000080090
03.03.2023,CHILDREN AND FAMILIES,KEDLESTON GROUP LIMITED,"14,000.00",CHILDREN�S RESID,RESIDENTIAL CARE,2103631040,1000086192
03.03.2023,CHILDREN AND FAMILIES,TUTELAGE CARE HARTLEY LTD,"23,244.87",CHILDREN�S RESID,RESIDENTIAL CARE,2103631043,1000088664
03.03.2023,CHILDREN AND FAMILIES,GREATER LONDON FOSTERING,"1,670.06",FRIENDS & FAMILY FOSTERING,EXTERNAL AGENCIES AND BODIES,2103631053,1000029184
03.03.2023,CHILDREN AND FAMILIES,GREATER LONDON FOSTERING,"3,192.00",FRIENDS & FAMILY FOSTERING,EXTERNAL AGENCIES AND BODIES,2103631050,1000029184
03.03.2023,CHILDREN AND FAMILIES,GREATER LONDON FOSTERING,"3,396.40",FRIENDS & FAMILY FOSTERING,EXTERNAL AGENCIES AND BODIES,2103631051,1000029184
03.03.2023,CHILDREN AND FAMILIES,GREATER LONDON FOSTERING,"4,191.88",FRIENDS & FAMILY FOSTERING,EXTERNAL AGENCIES AND BODIES,2103631077,1000029184
03.03.2023,CHILDREN AND FAMILIES,GREATER LONDON FOSTERING,"4,614.40",FRIENDS & FAMILY FOSTERING,EXTERNAL AGENCIES AND BODIES,2103631052,1000029184
03.03.2023,CHILDREN AND FAMILIES,KASPER FOSTERING,"3,173.24",FRIENDS & FAMILY FOSTERING,EXTERNAL AGENCIES AND BODIES,2103631059,1000036628
03.03.2023,CHILDREN AND FAMILIES,KASPER FOSTERING,"4,191.32",FRIENDS & FAMILY FOSTERING,EXTERNAL AGENCIES AND BODIES,2103631060,1000036628
03.03.2023,CHILDREN AND FAMILIES,NATIONAL FOSTERING AGENCY LTD,"2,520.00",FRIENDS & FAMILY FOSTERING,EXTERNAL AGENCIES AND BODIES,2103631074,1000038868
03.03.2023,CHILDREN AND FAMILIES,NATIONAL FOSTERING AGENCY LTD,"2,996.00",FRIENDS & FAMILY FOSTERING,EXTERNAL AGENCIES AND BODIES,2103631067,1000038868
03.03.2023,CHILDREN AND FAMILIES,NATIONAL FOSTERING AGENCY LTD,"2,999.92",FRIENDS & FAMILY FOSTERING,EXTERNAL AGENCIES AND BODIES,2103631070,1000038868
03.03.2023,CHILDREN AND FAMILIES,NATIONAL FOSTERING AGENCY LTD,"3,087.46",FRIENDS & FAMILY FOSTERING,EXTERNAL AGENCIES AND BODIES,2103631071,1000038868
03.03.2023,CHILDREN AND FAMILIES,NATIONAL FOSTERING AGENCY LTD,"3,596.04",FRIENDS & FAMILY FOSTERING,EXTERNAL AGENCIES AND BODIES,2103631068,1000038868
03.03.2023,CHILDREN AND FAMILIES,NATIONAL FOSTERING AGENCY LTD,"6,363.80",FRIENDS & FAMILY FOSTERING,EXTERNAL AGENCIES AND BODIES,2103631073,1000038868
03.03.2023,CHILDREN AND FAMILIES,COMPASS FOSTERING LONDON LTD,-964.26,FRIENDS & FAMILY FOSTERING,EXTERNAL AGENCIES AND BODIES,2103631076,1000057908
03.03.2023,CHILDREN AND FAMILIES,COMPASS FOSTERING LONDON LTD,"2,580.06",FRIENDS & FAMILY FOSTERING,EXTERNAL AGENCIES AND BODIES,2103631075,1000057908
03.03.2023,CHILDREN AND FAMILIES,FAMILY FOSTERING LTD,"4,156.32",FRIENDS & FAMILY FOSTERING,EXTERNAL AGENCIES AND BODIES,2103631049,1000075179
03.03.2023,CHILDREN AND FAMILIES,RAINBOW FOSTERING SERVICES LTD,"3,580.00",FRIENDS & FAMILY FOSTERING,EXTERNAL AGENCIES AND BODIES,2103631055,1000076620
03.03.2023,CHILDREN AND FAMILIES,RAINBOW FOSTERING SERVICES LTD,"5,600.00",FRIENDS & FAMILY FOSTERING,EXTERNAL AGENCIES AND BODIES,2103631054,1000076620
03.03.2023,CHILDREN AND FAMILIES,LIKA FAMILY FOSTERING,"3,609.99",FRIENDS & FAMILY FOSTERING,EXTERNAL AGENCIES AND BODIES,2103631058,1000080099
03.03.2023,CHILDREN AND FAMILIES,REGIONAL FOSTERING SERVICES LTD,"3,014.36",FRIENDS & FAMILY FOSTERING,EXTERNAL AGENCIES AND BODIES,2103631056,1000080112
03.03.2023,CHILDREN AND FAMILIES,REGIONAL FOSTERING SERVICES LTD,"3,173.00",FRIENDS & FAMILY FOSTERING,EXTERNAL AGENCIES AND BODIES,2103631057,1000080112
03.03.2023,CHILDREN AND FAMILIES,FAMILY WORKS FOSTERING LTD,"5,668.04",FRIENDS & FAMILY FOSTERING,EXTERNAL AGENCIES AND BODIES,2103631062,1000082529
03.03.2023,CHILDREN AND FAMILIES,FAMILY WORKS FOSTERING LTD,"7,540.12",FRIENDS & FAMILY FOSTERING,EXTERNAL AGENCIES AND BODIES,2103631061,1000082529
03.03.2023,CHILDREN AND FAMILIES,FLOURISH FOSTERING LTD,"3,942.32",FRIENDS & FAMILY FOSTERING,EXTERNAL AGENCIES AND BODIES,2103631066,1000084796
03.03.2023,CHILDREN AND FAMILIES,FLOURISH FOSTERING LTD,"4,137.48",FRIENDS & FAMILY FOSTERING,EXTERNAL AGENCIES AND BODIES,2103631065,1000084796
03.03.2023,CHILDREN AND FAMILIES,FLOURISH FOSTERING LTD,"4,221.92",FRIENDS & FAMILY FOSTERING,EXTERNAL AGENCIES AND BODIES,2103631063,1000084796
03.03.2023,CHILDREN AND FAMILIES,FLOURISH FOSTERING LTD,"4,429.00",FRIENDS & FAMILY FOSTERING,EXTERNAL AGENCIES AND BODIES,2103631064,1000084796
03.03.2023,CHILDREN AND FAMILIES,KENT COUNTY COUNCIL - LASER,872,MGMT & PARENTING,ELECTRICITY,5902568980,1000012926
03.03.2023,CHILDREN AND FAMILIES,KENT COUNTY COUNCIL - LASER,"1,320.80",MGMT & PARENTING,ELECTRICITY,5902569049,1000012926
03.03.2023,CHILDREN AND FAMILIES,HM COURTS & TRIBUNALS SERVICE,490,SFS MGMT & SUPPORT,LEGAL FEES & COURT COSTS,2103631503,1000075260
03.03.2023,CHILDREN AND FAMILIES,HM COURTS & TRIBUNALS SERVICE,"2,215.00",SFS MGMT & SUPPORT,LEGAL FEES & COURT COSTS,2103631500,1000075260
03.03.2023,CHILDREN AND FAMILIES,HM COURTS & TRIBUNALS SERVICE,"2,215.00",SFS MGMT & SUPPORT,LEGAL FEES & COURT COSTS,2103631513,1000075260
03.03.2023,CHILDREN AND FAMILIES,HM COURTS & TRIBUNALS SERVICE,"2,215.00",SFS MGMT & SUPPORT,LEGAL FEES & COURT COSTS,2103631516,1000075260
03.03.2023,CHILDREN AND FAMILIES,HM COURTS & TRIBUNALS SERVICE,"2,215.00",SFS MGMT & SUPPORT,LEGAL FEES & COURT COSTS,2103631517,1000075260
03.03.2023,CHILDREN AND FAMILIES,LONDON EARLY YEARS FOUNDATION,995.11,TEAM D,OTHER PAYMENTS FOR CLIENTS,5902568503,1000077919
03.03.2023,COMMISSIONING & CENTRAL,OLM SYSTEMS LTD,"42,900.00",C&AS SOFTWARE APPS,SOFTWARE,5902569024,1000018864
03.03.2023,COMMISSIONING & CENTRAL,ACCESS UK LTD,"2,000.00",C&AS SOFTWARE APPS,SOFTWARE,5902569047,1000088347
03.03.2023,COMMISSIONING & CENTRAL,ACCESS UK LTD,"7,621.81",C&AS SOFTWARE APPS,SOFTWARE,5902569013,1000088347
03.03.2023,COMMISSIONING & CENTRAL,ACCESS UK LTD,"16,800.00",C&AS SOFTWARE APPS,SOFTWARE,5902569039,1000088347
03.03.2023,COMMUNITIES,REDACTED PERSONAL DATA,355.6,NO RECOURSE TO PUBLIC FUNDS,HOMECARE - C&V,REDACTED,REDACTED
03.03.2023,COMMUNITIES,REDACTED PERSONAL DATA,355.6,NO RECOURSE TO PUBLIC FUNDS,HOMECARE - C&V,REDACTED,REDACTED
03.03.2023,COMMUNITIES,REDACTED PERSONAL DATA,711.2,NO RECOURSE TO PUBLIC FUNDS,HOMECARE - C&V,REDACTED,REDACTED
03.03.2023,COMMUNITIES,REDACTED PERSONAL DATA,700,UKRAINIAN PROGRAMME,GRANTS,REDACTED,REDACTED
03.03.2023,COMMUNITIES,REDACTED PERSONAL DATA,350,UKRAINIAN PROGRAMME,GRANTS,REDACTED,REDACTED
03.03.2023,COMMUNITIES,REDACTED PERSONAL DATA,350,UKRAINIAN PROGRAMME,GRANTS,REDACTED,REDACTED
03.03.2023,COMMUNITIES,REDACTED PERSONAL DATA,350,UKRAINIAN PROGRAMME,GRANTS,REDACTED,REDACTED
03.03.2023,COMMUNITIES,REDACTED PERSONAL DATA,350,UKRAINIAN PROGRAMME,GRANTS,REDACTED,REDACTED
03.03.2023,COMMUNITIES,REDACTED PERSONAL DATA,350,UKRAINIAN PROGRAMME,GRANTS,REDACTED,REDACTED
03.03.2023,COMMUNITIES,REDACTED PERSONAL DATA,350,UKRAINIAN PROGRAMME,GRANTS,REDACTED,REDACTED
03.03.2023,COMMUNITIES,REDACTED PERSONAL DATA,350,UKRAINIAN PROGRAMME,GRANTS,REDACTED,REDACTED
03.03.2023,COMMUNITIES,REDACTED PERSONAL DATA,350,UKRAINIAN PROGRAMME,GRANTS,REDACTED,REDACTED
03.03.2023,COMMUNITIES,REDACTED PERSONAL DATA,700,UKRAINIAN PROGRAMME,GRANTS,REDACTED,REDACTED
03.03.2023,COMMUNITIES HRA,HM COURTS & TRIBUNALS SERVICE,355,BROWNING EMB,LEGAL FEES & COURT COSTS,2103631483,1000075260
03.03.2023,COMMUNITIES HRA,HM COURTS & TRIBUNALS SERVICE,355,TRA HALLS (REPAIRS),LEGAL FEES & COURT COSTS,2103631494,1000075260
03.03.2023,COMMUNITIES HRA,HM COURTS & TRIBUNALS SERVICE,355,TRA HALLS (REPAIRS),LEGAL FEES & COURT COSTS,2103631496,1000075260
03.03.2023,CUSTOMER AND EXCHEQUER,DSI BILLING SERVICES LTD,991.11,ADMINISTRATIVE SUPPORT,POSTAGES,5902568798,1000058640
03.03.2023,CUSTOMER AND EXCHEQUER,DSI BILLING SERVICES LTD,"1,890.56",ADMINISTRATIVE SUPPORT,POSTAGES,5902568798,1000058640
03.03.2023,CUSTOMER AND EXCHEQUER,NEC SOFTWARE SOLUTIONS UK LTD,"36,429.00",ADMINISTRATIVE SUPPORT,SOFTWARE,5902569096,1000087043
03.03.2023,CUSTOMER AND EXCHEQUER,MRO PEOPLE LTD,537.5,ADMINISTRATIVE SUPPORT,TRAINING,5902568952,1000083017
03.03.2023,CUSTOMER AND EXCHEQUER,SG PATH LTD,415.8,CORONER'S,PROFESSIONAL FEES,5902568962,1000077883
03.03.2023,CUSTOMER AND EXCHEQUER,IMPERIAL COLLEGE PROJECTS LTD,310,CORONER'S,PROFESSIONAL FEES,5902569008,1000080106
03.03.2023,CUSTOMER AND EXCHEQUER,IMPERIAL COLLEGE PROJECTS LTD,374,CORONER'S,PROFESSIONAL FEES,5902569018,1000080106
03.03.2023,CUSTOMER AND EXCHEQUER,IMPERIAL COLLEGE PROJECTS LTD,378,CORONER'S,PROFESSIONAL FEES,5902569004,1000080106
03.03.2023,CUSTOMER AND EXCHEQUER,IMPERIAL COLLEGE PROJECTS LTD,378,CORONER'S,PROFESSIONAL FEES,5902569012,1000080106
03.03.2023,CUSTOMER AND EXCHEQUER,IMPERIAL COLLEGE PROJECTS LTD,412,CORONER'S,PROFESSIONAL FEES,5902569011,1000080106
03.03.2023,CUSTOMER AND EXCHEQUER,IMPERIAL COLLEGE PROJECTS LTD,455,CORONER'S,PROFESSIONAL FEES,5902569006,1000080106
03.03.2023,CUSTOMER AND EXCHEQUER,IMPERIAL COLLEGE PROJECTS LTD,459,CORONER'S,PROFESSIONAL FEES,5902569002,1000080106
03.03.2023,CUSTOMER AND EXCHEQUER,IMPERIAL COLLEGE PROJECTS LTD,476,CORONER'S,PROFESSIONAL FEES,5902569001,1000080106
03.03.2023,CUSTOMER AND EXCHEQUER,IMPERIAL COLLEGE PROJECTS LTD,480,CORONER'S,PROFESSIONAL FEES,5902569014,1000080106
03.03.2023,CUSTOMER AND EXCHEQUER,IMPERIAL COLLEGE PROJECTS LTD,484,CORONER'S,PROFESSIONAL FEES,5902569016,1000080106
03.03.2023,CUSTOMER AND EXCHEQUER,IMPERIAL COLLEGE PROJECTS LTD,493,CORONER'S,PROFESSIONAL FEES,5902569003,1000080106
03.03.2023,CUSTOMER AND EXCHEQUER,IMPERIAL COLLEGE PROJECTS LTD,522,CORONER'S,PROFESSIONAL FEES,5902569005,1000080106
03.03.2023,CUSTOMER AND EXCHEQUER,IMPERIAL COLLEGE PROJECTS LTD,523,CORONER'S,PROFESSIONAL FEES,5902568999,1000080106
03.03.2023,CUSTOMER AND EXCHEQUER,IMPERIAL COLLEGE PROJECTS LTD,527,CORONER'S,PROFESSIONAL FEES,5902569015,1000080106
03.03.2023,CUSTOMER AND EXCHEQUER,IMPERIAL COLLEGE PROJECTS LTD,697,CORONER'S,PROFESSIONAL FEES,5902569007,1000080106
03.03.2023,CUSTOMER AND EXCHEQUER,IMPERIAL COLLEGE PROJECTS LTD,803,CORONER'S,PROFESSIONAL FEES,5902569000,1000080106
03.03.2023,CUSTOMER AND EXCHEQUER,HM COURTS & TRIBUNALS SERVICE,"1,500.00",COUNCIL TAX,LEGAL FEES & COURT COSTS,2103631491,1000075260
03.03.2023,DSG,BESSEMER GRANGE PRIMARY SCHOOL,"10,359.00",MATERNITY COVER,SCHOOLS CAPITATION,2103630770,5001000009
03.03.2023,DSG,GOODRICH PRIMARY SCHOOL,"10,983.00",MATERNITY COVER,SCHOOLS CAPITATION,2103630771,5001000028
03.03.2023,DSG,ROTHERHITHE PRIMARY SCHOOL,"6,881.00",MATERNITY COVER,SCHOOLS CAPITATION,2103630769,5001000058
03.03.2023,DSG,GRANGE PRIMARY SCHOOL,"28,560.00",TRADE UNIONS,SCHOOLS CAPITATION,2103630768,5001000029
03.03.2023,DSG,MICHAEL FARADAY PRIMARY SCHOOL,"21,672.96",TRUST FUND DRAW DOWN,SCHOOLS CAPITATION,2103630772,5001000048
03.03.2023,ENVIRONMENT AND LEISURE,THE GREAT OUTDOOR GYM COMPANY LTD,"5,970.00",CAPITAL PS (LEISURE),CONSTRUCTION,5902567926,1000074058
03.03.2023,ENVIRONMENT AND LEISURE,THE GREAT OUTDOOR GYM COMPANY LTD,"5,970.00",CAPITAL PS (LEISURE),CONSTRUCTION,5902567929,1000074058
03.03.2023,ENVIRONMENT AND LEISURE,THE GREAT OUTDOOR GYM COMPANY LTD,"5,970.00",CAPITAL PS (LEISURE),CONSTRUCTION,5902567930,1000074058
03.03.2023,ENVIRONMENT AND LEISURE,THE GREAT OUTDOOR GYM COMPANY LTD,"5,970.00",CAPITAL PS (LEISURE),CONSTRUCTION,5902567935,1000074058
03.03.2023,ENVIRONMENT DIRECTORATE,PACE ACCIDENT REPAIRS CENTRE LTD,380,COMMERCIAL VEH CTRL A/C,HIRED VEHICLES,5902568665,1000069899
03.03.2023,ENVIRONMENT DIRECTORATE,DARTFORD METALCRAFTS,"4,900.00",ENGINEERING CRAFTS,MATERIALS,5902569091,1000047726
03.03.2023,ENVIRONMENT DIRECTORATE,PURPOSE POWDER COATINGS LTD,937.1,GRANGE DOORS,MATERIALS,5902569103,1000059450
03.03.2023,ENVIRONMENT DIRECTORATE,AMETHYST HORTICULTURE LTD,395,GROUNDS MAINTENANCE - GENERAL,MATERIALS,5902568974,1000054623
03.03.2023,ENVIRONMENT DIRECTORATE,DRAIN SCAN (LONDON) LIMITED,330,GULLY MAINT NON PINC RD,OTHER CONTRACTORS,5902569054,1908746
03.03.2023,ENVIRONMENT DIRECTORATE,DRAIN SCAN (LONDON) LIMITED,330,GULLY MAINT NON PINC RD,OTHER CONTRACTORS,5902569059,1908746
03.03.2023,ENVIRONMENT DIRECTORATE,DRAIN SCAN (LONDON) LIMITED,330,GULLY MAINT NON PINC RD,OTHER CONTRACTORS,5902569061,1908746
03.03.2023,ENVIRONMENT DIRECTORATE,DRAIN SCAN (LONDON) LIMITED,330,GULLY MAINT NON PINC RD,OTHER CONTRACTORS,5902569069,1908746
03.03.2023,ENVIRONMENT DIRECTORATE,DRAIN SCAN (LONDON) LIMITED,330,GULLY MAINT NON PINC RD,OTHER CONTRACTORS,5902569071,1908746
03.03.2023,ENVIRONMENT DIRECTORATE,DRAIN SCAN (LONDON) LIMITED,330,GULLY MAINT NON PINC RD,OTHER CONTRACTORS,5902569074,1908746
03.03.2023,ENVIRONMENT DIRECTORATE,DRAIN SCAN (LONDON) LIMITED,330,GULLY MAINT NON PINC RD,OTHER CONTRACTORS,5902569194,1908746
03.03.2023,ENVIRONMENT DIRECTORATE,DRAIN SCAN (LONDON) LIMITED,330,GULLY MAINT NON PINC RD,OTHER CONTRACTORS,5902569197,1908746
03.03.2023,ENVIRONMENT DIRECTORATE,DRAIN SCAN (LONDON) LIMITED,330,GULLY MAINT NON PINC RD,OTHER CONTRACTORS,5902569202,1908746
03.03.2023,ENVIRONMENT DIRECTORATE,TRACSIS TRAFFIC DATA LTD,"7,650.00",PARKING ATTENDANTS PCN'S,CONSULTANTS SERVICES,5902568976,1000079382
03.03.2023,ENVIRONMENT DIRECTORATE,METIS CONSULTANTS LIMITED,"1,447.80",PARKING ATTENDANTS PCN'S,RECHARGE HOUSING,5902568978,1000086330
03.03.2023,ENVIRONMENT DIRECTORATE,PARKING ASSOCIATES LTD,"6,700.00",PARKING OVERHEADS,PARKING CHARGES,5902569021,1000088141
03.03.2023,ENVIRONMENT DIRECTORATE,MARWOOD ELECTRICAL COMPANY LTD,"2,390.59",PUBLIC LIGHTING,MATERIALS,5902569132,1001874
03.03.2023,ENVIRONMENT DIRECTORATE,FABRIKAT (NOTTINGHAM) LTD,940,PUBLIC LIGHTING,MATERIALS,5902569145,1036223
03.03.2023,ENVIRONMENT DIRECTORATE,FABRIKAT (NOTTINGHAM) LTD,"1,360.00",PUBLIC LIGHTING,MATERIALS,5902569145,1036223
03.03.2023,ENVIRONMENT DIRECTORATE,FABRIKAT (NOTTINGHAM) LTD,"2,301.80",PUBLIC LIGHTING,MATERIALS,5902569145,1036223
03.03.2023,ENVIRONMENT DIRECTORATE,FABRIKAT (NOTTINGHAM) LTD,"9,207.20",PUBLIC LIGHTING,MATERIALS,5902569145,1036223
03.03.2023,ENVIRONMENT DIRECTORATE,FABRIKAT (NOTTINGHAM) LTD,"12,600.00",PUBLIC LIGHTING,MATERIALS,5902569145,1036223
03.03.2023,ENVIRONMENT DIRECTORATE,FABRIKAT (NOTTINGHAM) LTD,"13,027.00",PUBLIC LIGHTING,MATERIALS,5902569145,1036223
03.03.2023,ENVIRONMENT DIRECTORATE,FABRIKAT (NOTTINGHAM) LTD,"19,788.00",PUBLIC LIGHTING,MATERIALS,5902569145,1036223
03.03.2023,ENVIRONMENT DIRECTORATE,CHARLES ENDIRECT LTD,"11,259.00",PUBLIC LIGHTING,MATERIALS,5902569089,11284665
03.03.2023,ENVIRONMENT DIRECTORATE,MARK BAILEY ASSOCIATES LTD,"2,625.00",PUBLIC LIGHTING,MATERIALS,5902569142,1000061353
03.03.2023,ENVIRONMENT DIRECTORATE,MARK BAILEY ASSOCIATES LTD,"44,977.50",PUBLIC LIGHTING,MATERIALS,5902569143,1000061353
03.03.2023,ENVIRONMENT DIRECTORATE,INDO LIGHTING LTD,"8,955.84",PUBLIC LIGHTING,MATERIALS,5902569152,1000063084
03.03.2023,ENVIRONMENT DIRECTORATE,INDO LIGHTING LTD,"14,139.84",PUBLIC LIGHTING,MATERIALS,5902569147,1000063084
03.03.2023,ENVIRONMENT DIRECTORATE,INDO LIGHTING LTD,"15,083.20",PUBLIC LIGHTING,MATERIALS,5902569151,1000063084
03.03.2023,ENVIRONMENT DIRECTORATE,INDO LIGHTING LTD,"32,051.80",PUBLIC LIGHTING,MATERIALS,5902569149,1000063084
03.03.2023,ENVIRONMENT DIRECTORATE,INDO LIGHTING LTD,"109,574.34",PUBLIC LIGHTING,MATERIALS,5902569146,1000063084
03.03.2023,ENVIRONMENT DIRECTORATE,CABLE TEST LTD,551.86,PUBLIC LIGHTING,OTHER CONTRACTORS,5902569186,1000079183
03.03.2023,ENVIRONMENT DIRECTORATE,CABLE TEST LTD,551.86,PUBLIC LIGHTING,OTHER CONTRACTORS,5902569196,1000079183
03.03.2023,ENVIRONMENT DIRECTORATE,CABLE TEST LTD,629.59,PUBLIC LIGHTING,OTHER CONTRACTORS,5902569182,1000079183
03.03.2023,ENVIRONMENT DIRECTORATE,CABLE TEST LTD,629.59,PUBLIC LIGHTING,OTHER CONTRACTORS,5902569185,1000079183
03.03.2023,ENVIRONMENT DIRECTORATE,CABLE TEST LTD,629.59,PUBLIC LIGHTING,OTHER CONTRACTORS,5902569187,1000079183
03.03.2023,ENVIRONMENT DIRECTORATE,CABLE TEST LTD,629.59,PUBLIC LIGHTING,OTHER CONTRACTORS,5902569192,1000079183
03.03.2023,ENVIRONMENT DIRECTORATE,CABLE TEST LTD,"1,028.46",PUBLIC LIGHTING,OTHER CONTRACTORS,5902569191,1000079183
03.03.2023,ENVIRONMENT DIRECTORATE,CABLE TEST LTD,"1,287.86",PUBLIC LIGHTING,OTHER CONTRACTORS,5902569184,1000079183
03.03.2023,ENVIRONMENT DIRECTORATE,CABLE TEST LTD,"1,365.59",PUBLIC LIGHTING,OTHER CONTRACTORS,5902569158,1000079183
03.03.2023,ENVIRONMENT DIRECTORATE,CABLE TEST LTD,"1,580.32",PUBLIC LIGHTING,OTHER CONTRACTORS,5902569193,1000079183
03.03.2023,ENVIRONMENT DIRECTORATE,CABLE TEST LTD,"1,590.68",PUBLIC LIGHTING,OTHER CONTRACTORS,5902569205,1000079183
03.03.2023,ENVIRONMENT DIRECTORATE,CABLE TEST LTD,"2,316.32",PUBLIC LIGHTING,OTHER CONTRACTORS,5902569161,1000079183
03.03.2023,ENVIRONMENT DIRECTORATE,CABLE TEST LTD,"2,391.58",PUBLIC LIGHTING,OTHER CONTRACTORS,5902569206,1000079183
03.03.2023,ENVIRONMENT DIRECTORATE,CABLE TEST LTD,"2,467.52",PUBLIC LIGHTING,OTHER CONTRACTORS,5902569189,1000079183
03.03.2023,ENVIRONMENT DIRECTORATE,CABLE TEST LTD,"3,190.18",PUBLIC LIGHTING,OTHER CONTRACTORS,5902569195,1000079183
03.03.2023,ENVIRONMENT DIRECTORATE,CABLE TEST LTD,"3,448.79",PUBLIC LIGHTING,OTHER CONTRACTORS,5902569162,1000079183
03.03.2023,ENVIRONMENT DIRECTORATE,CABLE TEST LTD,"6,102.25",PUBLIC LIGHTING,OTHER CONTRACTORS,5902569190,1000079183
03.03.2023,ENVIRONMENT DIRECTORATE,CABLE TEST LTD,"9,020.92",PUBLIC LIGHTING,OTHER CONTRACTORS,5902569157,1000079183
03.03.2023,ENVIRONMENT DIRECTORATE,HM COURTS & TRIBUNALS SERVICE,332,SASBU,LEGAL FEES & COURT COSTS,2103631497,1000075260
03.03.2023,ENVIRONMENT DIRECTORATE,GLASDON UK LIMITED,"4,664.69",STREET CLEANING-GENERAL,MATERIALS,5902569099,1024073
03.03.2023,HOUSING GENERAL FUND,COLT TECHNOLOGY SERVICES,"1,311.00",CAPITAL PS (STRAT SERV),ICT ACQUISITION,5902568967,1000009377
03.03.2023,HOUSING GENERAL FUND,COLT TECHNOLOGY SERVICES,"1,311.00",CAPITAL PS (STRAT SERV),ICT ACQUISITION,5902568968,1000009377
03.03.2023,HOUSING GENERAL FUND,COLT TECHNOLOGY SERVICES,"1,311.00",CAPITAL PS (STRAT SERV),ICT ACQUISITION,5902568969,1000009377
03.03.2023,HOUSING GENERAL FUND,COLT TECHNOLOGY SERVICES,"1,311.00",CAPITAL PS (STRAT SERV),ICT ACQUISITION,5902568972,1000009377
03.03.2023,HOUSING HRA,CALFORD SEADEN LLP,630,CAPITAL PS (HRA),CONSTRUCTION FEES  - EXTERNAL,5902567942,1061592
03.03.2023,HOUSING HRA,MARTIN ARNOLD LTD,"1,600.07",CAPITAL PS (HRA),CONSTRUCTION FEES  - EXTERNAL,5902568264,1000076993
03.03.2023,HOUSING HRA,A & E ELKINS LTD,"209,310.16",CAPITAL PS (HRA),CONSTRUCTION MAIN CONTRACT -CERTIFICATED,2103628848,4012501
03.03.2023,LEISURE DIRECTORATE,KENT COUNTY COUNCIL - LASER,"-2,607.93",BURGESS SPORTS CENTRE,ELECTRICITY,5902568945,1000012926
03.03.2023,LEISURE DIRECTORATE,KENT COUNTY COUNCIL - LASER,"-2,474.60",BURGESS SPORTS CENTRE,ELECTRICITY,5902568943,1000012926
03.03.2023,LEISURE DIRECTORATE,KENT COUNTY COUNCIL - LASER,"-2,276.43",BURGESS SPORTS CENTRE,ELECTRICITY,5902568946,1000012926
03.03.2023,LEISURE DIRECTORATE,KENT COUNTY COUNCIL - LASER,"-2,254.27",BURGESS SPORTS CENTRE,ELECTRICITY,5902568947,1000012926
03.03.2023,LEISURE DIRECTORATE,KENT COUNTY COUNCIL - LASER,"-1,717.80",BURGESS SPORTS CENTRE,ELECTRICITY,5902568948,1000012926
03.03.2023,LEISURE DIRECTORATE,KENT COUNTY COUNCIL - LASER,"3,263.43",BURGESS SPORTS CENTRE,ELECTRICITY,5902569079,1000012926
03.03.2023,LEISURE DIRECTORATE,KENT COUNTY COUNCIL - LASER,"5,069.09",BURGESS SPORTS CENTRE,ELECTRICITY,5902568908,1000012926
03.03.2023,LEISURE DIRECTORATE,GLOBAL GENERATION,"5,687.50",GRANTS COMMISSIONING,GRANTS,5902568963,1000080135
03.03.2023,LEISURE DIRECTORATE,SOPHIA LOONEY ASSOCIATES LTD,"7,650.00",LEISURE INSOURCING MOBILISATION COST,CONSULTANTS SERVICES,5902568950,1000089094
03.03.2023,NEW BUILD,HAWORTH TOMPKINS LTD,"3,585.00",DEVELOPMENT DELIVERY,CONSULTANTS SERVICES,5902568272,1000043607
03.03.2023,PLANNING & GROWTH,NEW LONDON ARCHITECTURE LTD,"1,350.00",OKR MASTER PLANNING,PROFESSIONAL FEES,5902569094,1000036614
03.03.2023,PROFESSIONAL FINANCE SERVICES,REAL ASSET MANAGEMENT LTD,420,CORPORATE SERVICES AND F&G,SOFTWARE,5902568981,1000066157
03.03.2023,PUBLIC HEALTH,HARRIS PRIMARY FREE SCHOOL PECKHAM,"10,000.00",COVID-19 CONTROL OUTBREAK MGMNT.FUND,SCHOOLS CAPITATION,2103630767,1000071084
03.03.2023,PUBLIC HEALTH,ICF CONSULTING SERVICES LTD,"27,875.00",PUBLIC HEALTH FHSM,EXTERNAL AGENCIES AND BODIES,5902569188,1000088204
03.03.2023,RESIDENT SERVICES,BRITISH GAS TRADING LTD,"8,741.39",OPERATIONS/OFFICES ACCOMMODATION,ELECTRICITY,5902568964,1000055977
03.03.2023,RESIDENT SERVICES,HM COURTS & TRIBUNALS SERVICE,275,OPERATIONS/OFFICES ACCOMMODATION,LEGAL FEES & COURT COSTS,2103631480,1000075260
03.03.2023,RESIDENT SERVICES,HM COURTS & TRIBUNALS SERVICE,275,OPERATIONS/OFFICES ACCOMMODATION,LEGAL FEES & COURT COSTS,2103631484,1000075260
03.03.2023,RESIDENT SERVICES,HM COURTS & TRIBUNALS SERVICE,355,OPERATIONS/OFFICES ACCOMMODATION,LEGAL FEES & COURT COSTS,2103631485,1000075260
03.03.2023,RESIDENT SERVICES,HM COURTS & TRIBUNALS SERVICE,355,OPERATIONS/OFFICES ACCOMMODATION,LEGAL FEES & COURT COSTS,2103631486,1000075260
03.03.2023,RESIDENT SERVICES,HM COURTS & TRIBUNALS SERVICE,355,OPERATIONS/OFFICES ACCOMMODATION,LEGAL FEES & COURT COSTS,2103631488,1000075260
03.03.2023,RESIDENT SERVICES,HM COURTS & TRIBUNALS SERVICE,355,OPERATIONS/OFFICES ACCOMMODATION,LEGAL FEES & COURT COSTS,2103631492,1000075260
03.03.2023,RESIDENT SERVICES,HM COURTS & TRIBUNALS SERVICE,355,OPERATIONS/OFFICES ACCOMMODATION,LEGAL FEES & COURT COSTS,2103631499,1000075260
03.03.2023,RESIDENT SERVICES,HM COURTS & TRIBUNALS SERVICE,355,OPERATIONS/OFFICES ACCOMMODATION,LEGAL FEES & COURT COSTS,2103631501,1000075260
03.03.2023,RESIDENT SERVICES,HM COURTS & TRIBUNALS SERVICE,355,TA HOSTELS,LEGAL FEES & COURT COSTS,2103631504,1000075260
03.03.2023,RESIDENT SERVICES,ZFA ACCOMMODATION LTD,"30,733.50",TA PLACEMENTS,EXTERNAL AGENCIES AND BODIES,5902569102,1000082620
03.03.2023,RESIDENT SERVICES HGF,SOCIAL HOUSING LONDON LTD,"4,400.00",HOMELESS PROJECTS,GRANTS,5902569144,1000087010
03.03.2023,RESIDENT SERVICES HGF,HM COURTS & TRIBUNALS SERVICE,275,HOMELESS PROJECTS,LEGAL FEES & COURT COSTS,2103631479,1000075260
03.03.2023,RESIDENT SERVICES HGF,HM COURTS & TRIBUNALS SERVICE,355,HOMELESS PROJECTS,LEGAL FEES & COURT COSTS,2103631505,1000075260
03.03.2023,RESIDENT SERVICES HGF,HM COURTS & TRIBUNALS SERVICE,355,ILDERTON ROAD,LEGAL FEES & COURT COSTS,2103631495,1000075260
03.03.2023,SBS OPERATIONS,EDWARDES BROS (DULWICH) LTD,"1,195.00",ELECTRICIANS - DAY TO DAY,MATERIALS,5902569056,1004945
03.03.2023,SBS OPERATIONS,TRAVIS PERKINS TRADING COMPANY LTD,884.01,TASK TEAM & HAT,MATERIALS,5902569118,1514319
03.03.2023,SBS OPERATIONS,TRAVIS PERKINS TRADING COMPANY LTD,884.01,TASK TEAM & HAT,MATERIALS,5902569118,1514319
03.03.2023,SBS SUPPORT,THE INSTITUTE OF CUSTOMER SERVICE,"20,000.00",REORGANISATION COSTS,TRAINING,5902568028,1000038631
03.03.2023,SOUTHWARK BUILDING SERVICES,EDWARDES BROS (DULWICH) LTD,325.25,STORES/LOGISTICS,CREDITORS -GR/IR CLEARING ACCOUNT,5902569072,1004945
03.03.2023,SOUTHWARK BUILDING SERVICES,EDWARDES BROS (DULWICH) LTD,489.5,STORES/LOGISTICS,CREDITORS -GR/IR CLEARING ACCOUNT,5902569081,1004945
03.03.2023,SOUTHWARK BUILDING SERVICES,EDWARDES BROS (DULWICH) LTD,520.4,STORES/LOGISTICS,CREDITORS -GR/IR CLEARING ACCOUNT,5902569072,1004945
03.03.2023,SOUTHWARK BUILDING SERVICES,EDWARDES BROS (DULWICH) LTD,520.92,STORES/LOGISTICS,CREDITORS -GR/IR CLEARING ACCOUNT,5902569041,1004945
03.03.2023,SOUTHWARK BUILDING SERVICES,EDWARDES BROS (DULWICH) LTD,"2,715.00",STORES/LOGISTICS,CREDITORS -GR/IR CLEARING ACCOUNT,5902569077,1004945
03.03.2023,SOUTHWARK BUILDING SERVICES,THAMESMEAD BUSINESS SERVICES  LTD,770.4,STORES/LOGISTICS,CREDITORS -GR/IR CLEARING ACCOUNT,5902569033,1011709
03.03.2023,SOUTHWARK BUILDING SERVICES,THAMESMEAD BUSINESS SERVICES  LTD,898.95,STORES/LOGISTICS,CREDITORS -GR/IR CLEARING ACCOUNT,5902569033,1011709
03.03.2023,SOUTHWARK BUILDING SERVICES,BEW ELECTRICAL DISTRIBUTORS LTD,259.8,STORES/LOGISTICS,CREDITORS -GR/IR CLEARING ACCOUNT,5902569167,1000045371
03.03.2023,SOUTHWARK BUILDING SERVICES,BEW ELECTRICAL DISTRIBUTORS LTD,"3,346.00",STORES/LOGISTICS,CREDITORS -GR/IR CLEARING ACCOUNT,5902569173,1000045371
03.03.2023,SOUTHWARK BUILDING SERVICES,BEW ELECTRICAL DISTRIBUTORS LTD,"4,698.00",STORES/LOGISTICS,CREDITORS -GR/IR CLEARING ACCOUNT,5902569173,1000045371
03.03.2023,SUSTAINABILITY & BUSINESS DEVELOPMENT,HM COURTS & TRIBUNALS SERVICE,355,HOUSING MANAGEMENT RECHARGE,LEGAL FEES & COURT COSTS,2103631489,1000075260
04.03.2023,ASSET MANAGEMENT,FRANKHAM CONSULTANCY GROUP LTD,"1,250.00",DISREPAIR,BUILDING R&M,5902568322,1000043952
04.03.2023,ASSET MANAGEMENT,FRANKHAM CONSULTANCY GROUP LTD,"1,250.00",DISREPAIR,BUILDING R&M,5902568323,1000043952
04.03.2023,ASSET MANAGEMENT,ARMINA LTD,702.06,DISREPAIR,BUILDING R&M,2103630058,3000002121
04.03.2023,CHILDREN AND ADULT,PREMIER ROOFING AND CONSTRUCTION LTD,"2,640.00",CAPITAL PS (EDUCATION),CONSTRUCTION,2103630067,3000002158
04.03.2023,CHILDREN AND FAMILIES,FAMILY FUTURES CIC,800,ADOPTION SUPP FUND 2,EXTERNAL AGENCIES AND BODIES,5902568467,1000027893
04.03.2023,CHILDREN AND FAMILIES,PARENTS AND CHILDREN TOGETHER,900,ADOPTION SUPP FUND 2,EXTERNAL AGENCIES AND BODIES,5902568119,1000068128
04.03.2023,CORPORATE FACILITIES MANAGEMENT,BALCAS TIMBER LTD,"7,868.00",160 TOOLEY ST.,OIL,5902568717,1000062808
04.03.2023,DIGITAL AND TECHNOLOGY,PERMANENT FUTURES LTD,"3,000.00",IT MANAGEMENT,CONSULTANTS SERVICES,5902568265,1000089361
04.03.2023,EDUCATION,THE SEAL COMMUNITY C.I.C,500,IMHARS,DATA COMMUNICATIONS,5902568049,1000075945
04.03.2023,ENVIRONMENT AND LEISURE,EDIBLE ROTHERHITHE CIC,"1,155.00",CAPITAL PS (LEISURE),CAPITAL GRANTS,5902568753,1000082775
04.03.2023,ENVIRONMENT AND LEISURE,THE GREAT OUTDOOR GYM COMPANY LTD,"5,970.00",CAPITAL PS (LEISURE),CONSTRUCTION,5902567927,1000074058
04.03.2023,ENVIRONMENT AND LEISURE,SOILTECHNICS LTD,"1,225.00",CAPITAL PS (LEISURE),CONSTRUCTION FEES,5902568266,1000014274
04.03.2023,ENVIRONMENT AND LEISURE,INTO SERVICES LONDON LTD,594,CAPITAL PS (LEISURE),CONSTRUCTION MAIN CONTRACT -CERTIFICATED,5902568203,1000059328
04.03.2023,ENVIRONMENT AND LEISURE,INTO SERVICES LONDON LTD,"3,960.00",CAPITAL PS (LEISURE),CONSTRUCTION MAIN CONTRACT -CERTIFICATED,5902568203,1000059328
04.03.2023,ENVIRONMENT AND LEISURE,LONDON NORTH WEST UNIVERSITY HEALTHCARE NHS TRUST,500.77,SEXUAL HEALTH - STI,MEDICAL / HEALTH & SAFETY SERVICES,5902568664,1000075293
04.03.2023,ENVIRONMENT AND LEISURE,BRIGHTLY SOFTWARE LTD,"34,000.00",STREET WORKS OVERHEADS,SOFTWARE,5902568411,1000088840
04.03.2023,ENVIRONMENT DIRECTORATE,LANDSCAPE SUPPLY COMPANY,412.85,GROUNDS MAINTENANCE - GENERAL,EQUIPMENT PURCHASE & REPAIR,5902567981,1000051937
04.03.2023,HOUSING,SPOKEMEAD MAINTENANCE LTD,"76,826.29",PAYMENTS CONTROL ACCOUNT - SPOKEMEAD,I-WORLD CONTRACTORS HOLDING ACCOUNT,5902568154,1000059211
04.03.2023,HOUSING,SPOKEMEAD MAINTENANCE LTD,"305,807.30",PAYMENTS CONTROL ACCOUNT - SPOKEMEAD,I-WORLD CONTRACTORS HOLDING ACCOUNT,5902568152,1000059211
04.03.2023,HOUSING GENERAL FUND,ZG LIGHTING (UK) LTD,441.3,CAPITAL PS (REGEN),CONSTRUCTION MAIN CONTRACT,5902568890,1000031757
04.03.2023,HOUSING GENERAL FUND,ZG LIGHTING (UK) LTD,"1,319.04",CAPITAL PS (REGEN),CONSTRUCTION MAIN CONTRACT,5902568889,1000031757
04.03.2023,HOUSING HRA,SHERGROUP LTD,"3,410.00",CAPITAL PS (HRA),CONSTRUCTION FEES  - EXTERNAL,5902568375,1000087977
04.03.2023,HOUSING HRA,CALFORD SEADEN LLP,"2,525.00",CAPITAL PS (HRA),CONSTRUCTION FEES - QUANTITY SURVEYOR,5902568430,1061592
04.03.2023,HOUSING HRA,BY DEVELOPMENT LTD,"2,127,353.73",CAPITAL PS (HRA),CONSTRUCTION MAIN CONTRACT -CERTIFICATED,2103630739,3000002255
04.03.2023,LEISURE DIRECTORATE,SKYWAY,"7,500.00",GRANTS COMMISSIONING,GRANTS,5902568623,1000069595
04.03.2023,LEISURE DIRECTORATE,E.ON HEAT,260.35,HERITAGE CENTRE & WALWORTH LIBRARY,GAS,5902568023,1000080948
04.03.2023,LEISURE DIRECTORATE,BRENDA PUECH,"1,200.00",HOMERSTALL ROAD SPORTS GROUND,PROFESSIONAL FEES,5902568191,1000080291
04.03.2023,PLANNING & GROWTH,TIBBALDS PLANNING & URBAN DESIGN LTD,"1,400.00",REGENERATION NORTH M & A,PRINTING,5902569098,1000029772
04.03.2023,SBS OPERATIONS,PROPERTY FACILITIES GROUP LTD,"90,000.00",SR COMMUNAL - MANAGEMENT,OTHER CONTRACTORS,5902568687,1000063713
05.03.2023,ADULT SOCIAL CARE,HEALTH ADVOCACY UK LTD,650,CHC ADVOCACY- OP/PD,EXTERNAL AGENCIES AND BODIES,5902568748,1000082156
05.03.2023,ADULT SOCIAL CARE,REALITY FAMILY SUPPORT SERVICES LTD,"1,100.75",PHY LTS 18-64,OTHER PAYMENTS FOR CLIENTS,5902568505,1000087878
05.03.2023,CENTRAL FUNCTIONS,PENNINGTON CHOICES LTD,295,COMMERCIAL PROPERTIES,BUILDING R&M,5902568361,1000067888
05.03.2023,CENTRAL FUNCTIONS,KENT COUNTY COUNCIL - LASER,"210,452.55",HEATING ACCOUNT,ELECTRICITY,5902568593,1000012926
05.03.2023,CENTRAL FUNCTIONS,KENT COUNTY COUNCIL - LASER,"1,654,834.22",HEATING ACCOUNT,GAS,5902568597,1000012926
05.03.2023,CHILDREN AND FAMILIES,REALITY FAMILY SUPPORT SERVICES LTD,471.75,EDGE OF CARE DECIS�S,OTHER PAYMENTS FOR CLIENTS,5902568505,1000087878
05.03.2023,CHILDREN AND FAMILIES,HM PRISON & PROBATION SERVICE,"3,377.00",REMAND - YDA YOI,RESIDENTIAL CARE,5902568519,1000083827
05.03.2023,CHILDREN AND FAMILIES,HM PRISON & PROBATION SERVICE,"9,517.00",REMAND - YDA YOI,RESIDENTIAL CARE,5902568518,1000083827
05.03.2023,CHILDREN AND FAMILIES,HM PRISON & PROBATION SERVICE,"9,517.00",REMAND - YDA YOI,RESIDENTIAL CARE,5902568521,1000083827
05.03.2023,CHILDREN AND FAMILIES,PLACE OF PROGRESS LTD,-441.52,SEMI-IND CARELEAVERS,EXTERNAL AGENCIES AND BODIES,5902568206,1000086889
05.03.2023,CHILDREN AND FAMILIES,PLACE OF PROGRESS LTD,"1,912.00",SEMI-IND CARELEAVERS,EXTERNAL AGENCIES AND BODIES,5902568205,1000086889
05.03.2023,CHILDREN AND FAMILIES,THE APPROPRIATE ADULT SERVICE LTD,"1,490.00",YJS MGMT & SUPPORT,EXTERNAL AGENCIES AND BODIES,5902568506,1000047682
05.03.2023,CUSTOMER AND EXCHEQUER,NEC SOFTWARE SOLUTIONS UK LTD,925,ADMINISTRATIVE SUPPORT,SOFTWARE,5902568642,1000087043
05.03.2023,CUSTOMER AND EXCHEQUER,NEC SOFTWARE SOLUTIONS UK LTD,950,ADMINISTRATIVE SUPPORT,SOFTWARE,5902568643,1000087043
05.03.2023,CUSTOMER AND EXCHEQUER,SOVEREIGN INSIGNIA LTD T/A IMPAMARK PRESTIGE BRANDED MERCHANDISE,"2,164.65",REGISTRARS,OFFICE EXPENSES,5902568919,1000049053
05.03.2023,ENVIRONMENT AND LEISURE,BARCHAM TREES PLC,665,CAPITAL PS (LEISURE),CONSTRUCTION FEES,5902568402,11254891
05.03.2023,ENVIRONMENT DIRECTORATE,SHARPE PRITCHARD LLP,"4,000.00",SUSTAINABLE WASTE OVERHEADS,PAYMENTS FOR LEGAL SERVICES,5902568779,1790085
05.03.2023,HOUSING GENERAL FUND,ZG LIGHTING (UK) LTD,"1,097.28",CAPITAL PS (REGEN),CONSTRUCTION,5902568842,1000031757
05.03.2023,HOUSING HRA,SILVER DCC LTD,"1,225.90",CAPITAL PS (HRA),CONSTRUCTION FEES  - EXTERNAL,5902568337,1000087546
05.03.2023,HOUSING HRA,SILVER DCC LTD,"1,281.77",CAPITAL PS (HRA),CONSTRUCTION FEES  - EXTERNAL,5902568437,1000087546
05.03.2023,HOUSING HRA,SILVER DCC LTD,"1,315.18",CAPITAL PS (HRA),CONSTRUCTION FEES  - EXTERNAL,5902568338,1000087546
05.03.2023,HOUSING HRA,SILVER DCC LTD,"1,342.65",CAPITAL PS (HRA),CONSTRUCTION FEES  - EXTERNAL,5902568966,1000087546
05.03.2023,HOUSING HRA,SILVER DCC LTD,"1,544.88",CAPITAL PS (HRA),CONSTRUCTION FEES  - EXTERNAL,5902568659,1000087546
05.03.2023,HOUSING HRA,SILVER DCC LTD,"2,445.94",CAPITAL PS (HRA),CONSTRUCTION FEES  - EXTERNAL,5902568324,1000087546
05.03.2023,HOUSING HRA,SHERGROUP LTD,"3,360.00",CAPITAL PS (HRA),CONSTRUCTION FEES  - EXTERNAL,5902568363,1000087977
05.03.2023,HOUSING HRA,BSW HEATING LTD,"48,886.22",CAPITAL PS (HRA),CONSTRUCTION MAIN CONTRACT -CERTIFICATED,2103630069,3000000580
05.03.2023,LAW AND GOVERNANCE,LONDON UNDERGROUND LTD,360,ELECTORAL REGISTRATION,PUBLIC TRANSPORT,5902568218,1000059727
05.03.2023,LEISURE DIRECTORATE,SKYWAY,"7,500.00",GRANTS COMMISSIONING,GRANTS,5902568625,1000069595
05.03.2023,LEISURE DIRECTORATE,THE READING AGENCY LTD,"6,000.00",LIBRARIES DEVELOPMENT,FREELANCE SPECIALISTS,5902568660,1000043626
05.03.2023,LEISURE DIRECTORATE,TECHNICAL SURFACES,460,SOUTHWARK AREA TEAM,OTHER R&M,5902569097,1000011451
05.03.2023,PUBLIC HEALTH,COMMUNITY CYCLEWORKS,"4,050.00",SUPERZONES,PROFESSIONAL FEES,5902568326,1000073000
06.03.2023,ADULT SOCIAL CARE,THE DRIVE CARE HOMES LTD,"1,920.00",DISABILITIES LAC,OTHER PAYMENTS FOR CLIENTS,2103631384,1000003889
06.03.2023,ADULT SOCIAL CARE,SURREY DOCKS FARM PROVIDENT SOCIETY,480,LD LTS 18-64,DAYCARE,2103631429,1000000958
06.03.2023,ADULT SOCIAL CARE,SURREY DOCKS FARM PROVIDENT SOCIETY,500,LD LTS 18-64,DAYCARE,2103631428,1000000958
06.03.2023,ADULT SOCIAL CARE,SURREY DOCKS FARM PROVIDENT SOCIETY,720,LD LTS 18-64,DAYCARE,2103631427,1000000958
06.03.2023,ADULT SOCIAL CARE,SHARE COMMUNITY LTD,780,LD LTS 18-64,DAYCARE,2103631210,1000062408
06.03.2023,ADULT SOCIAL CARE,SHARE COMMUNITY LTD,975,LD LTS 18-64,DAYCARE,2103631209,1000062408
06.03.2023,ADULT SOCIAL CARE,METRO HOMECARE LTD,528,LD LTS 18-64,HOMECARE - SPOT,2103631202,1000070695
06.03.2023,ADULT SOCIAL CARE,CONTACT PROFESSIONALS,684,LD LTS 18-64,SUPPORTED LIVING,2103631421,1000057263
06.03.2023,ADULT SOCIAL CARE,CONTACT PROFESSIONALS,"1,482.00",LD LTS 18-64,SUPPORTED LIVING,2103631422,1000057263
06.03.2023,ADULT SOCIAL CARE,REDACTED PERSONAL DATA,"3,682.28",LD LTS 18-64,SUPPORTED LIVING,REDACTED,REDACTED
06.03.2023,ADULT SOCIAL CARE,REDACTED PERSONAL DATA,568.96,LD LTS 18-64,SUPPORTED LIVING,REDACTED,REDACTED
06.03.2023,ADULT SOCIAL CARE,REDACTED PERSONAL DATA,640.08,LD LTS 18-64,SUPPORTED LIVING,REDACTED,REDACTED
06.03.2023,ADULT SOCIAL CARE,REDACTED PERSONAL DATA,711.2,LD LTS 18-64,SUPPORTED LIVING,REDACTED,REDACTED
06.03.2023,ADULT SOCIAL CARE,REDACTED PERSONAL DATA,"1,351.28",LD LTS 18-64,SUPPORTED LIVING,REDACTED,REDACTED
06.03.2023,ADULT SOCIAL CARE,SURREY DOCKS FARM PROVIDENT SOCIETY,360,LD LTS 65+,DAYCARE,2103631426,1000000958
06.03.2023,ADULT SOCIAL CARE,ADDICTION RECOVERY CENTRES LTD,"3,180.00",MH LTS 18-64,RESIDENTIAL CARE,2103631199,1000060881
06.03.2023,ADULT SOCIAL CARE,REDACTED PERSONAL DATA,284.48,MH LTS 18-64,SUPPORTED LIVING,REDACTED,REDACTED
06.03.2023,ADULT SOCIAL CARE,REDACTED PERSONAL DATA,284.48,MH LTS 18-64,SUPPORTED LIVING,REDACTED,REDACTED
06.03.2023,ADULT SOCIAL CARE,REDACTED PERSONAL DATA,284.48,MH LTS 18-64,SUPPORTED LIVING,REDACTED,REDACTED
06.03.2023,ADULT SOCIAL CARE,REDACTED PERSONAL DATA,284.48,MH LTS 18-64,SUPPORTED LIVING,REDACTED,REDACTED
06.03.2023,ADULT SOCIAL CARE,REDACTED PERSONAL DATA,284.48,MH LTS 18-64,SUPPORTED LIVING,REDACTED,REDACTED
06.03.2023,ADULT SOCIAL CARE,REDACTED PERSONAL DATA,284.48,MH LTS 18-64,SUPPORTED LIVING,REDACTED,REDACTED
06.03.2023,ADULT SOCIAL CARE,REDACTED PERSONAL DATA,284.48,MH LTS 18-64,SUPPORTED LIVING,REDACTED,REDACTED
06.03.2023,ADULT SOCIAL CARE,REDACTED PERSONAL DATA,284.48,MH LTS 18-64,SUPPORTED LIVING,REDACTED,REDACTED
06.03.2023,ADULT SOCIAL CARE,REDACTED PERSONAL DATA,284.48,MH LTS 18-64,SUPPORTED LIVING,REDACTED,REDACTED
06.03.2023,ADULT SOCIAL CARE,REDACTED PERSONAL DATA,284.48,MH LTS 18-64,SUPPORTED LIVING,REDACTED,REDACTED
06.03.2023,ADULT SOCIAL CARE,REDACTED PERSONAL DATA,284.48,MH LTS 18-64,SUPPORTED LIVING,REDACTED,REDACTED
06.03.2023,ADULT SOCIAL CARE,REDACTED PERSONAL DATA,284.48,MH LTS 18-64,SUPPORTED LIVING,REDACTED,REDACTED
06.03.2023,ADULT SOCIAL CARE,REDACTED PERSONAL DATA,320.04,MH LTS 18-64,SUPPORTED LIVING,REDACTED,REDACTED
06.03.2023,ADULT SOCIAL CARE,REDACTED PERSONAL DATA,320.04,MH LTS 18-64,SUPPORTED LIVING,REDACTED,REDACTED
06.03.2023,ADULT SOCIAL CARE,REDACTED PERSONAL DATA,320.04,MH LTS 18-64,SUPPORTED LIVING,REDACTED,REDACTED
06.03.2023,ADULT SOCIAL CARE,REDACTED PERSONAL DATA,320.04,MH LTS 18-64,SUPPORTED LIVING,REDACTED,REDACTED
06.03.2023,ADULT SOCIAL CARE,REDACTED PERSONAL DATA,320.04,MH LTS 18-64,SUPPORTED LIVING,REDACTED,REDACTED
06.03.2023,ADULT SOCIAL CARE,REDACTED PERSONAL DATA,355.6,MH LTS 18-64,SUPPORTED LIVING,REDACTED,REDACTED
06.03.2023,ADULT SOCIAL CARE,REDACTED PERSONAL DATA,355.6,MH LTS 18-64,SUPPORTED LIVING,REDACTED,REDACTED
06.03.2023,ADULT SOCIAL CARE,REDACTED PERSONAL DATA,426.72,MH LTS 18-64,SUPPORTED LIVING,REDACTED,REDACTED
06.03.2023,ADULT SOCIAL CARE,REDACTED PERSONAL DATA,426.72,MH LTS 18-64,SUPPORTED LIVING,REDACTED,REDACTED
06.03.2023,ADULT SOCIAL CARE,REDACTED PERSONAL DATA,426.72,MH LTS 18-64,SUPPORTED LIVING,REDACTED,REDACTED
06.03.2023,ADULT SOCIAL CARE,REDACTED PERSONAL DATA,426.72,MH LTS 18-64,SUPPORTED LIVING,REDACTED,REDACTED
06.03.2023,ADULT SOCIAL CARE,REDACTED PERSONAL DATA,462.28,MH LTS 18-64,SUPPORTED LIVING,REDACTED,REDACTED
06.03.2023,ADULT SOCIAL CARE,REDACTED PERSONAL DATA,462.28,MH LTS 18-64,SUPPORTED LIVING,REDACTED,REDACTED
06.03.2023,ADULT SOCIAL CARE,REDACTED PERSONAL DATA,462.28,MH LTS 18-64,SUPPORTED LIVING,REDACTED,REDACTED
06.03.2023,ADULT SOCIAL CARE,REDACTED PERSONAL DATA,497.84,MH LTS 18-64,SUPPORTED LIVING,REDACTED,REDACTED
06.03.2023,ADULT SOCIAL CARE,REDACTED PERSONAL DATA,497.84,MH LTS 18-64,SUPPORTED LIVING,REDACTED,REDACTED
06.03.2023,ADULT SOCIAL CARE,REDACTED PERSONAL DATA,497.84,MH LTS 18-64,SUPPORTED LIVING,REDACTED,REDACTED
06.03.2023,ADULT SOCIAL CARE,REDACTED PERSONAL DATA,533.4,MH LTS 18-64,SUPPORTED LIVING,REDACTED,REDACTED
06.03.2023,ADULT SOCIAL CARE,REDACTED PERSONAL DATA,568.96,MH LTS 18-64,SUPPORTED LIVING,REDACTED,REDACTED
06.03.2023,ADULT SOCIAL CARE,REDACTED PERSONAL DATA,568.96,MH LTS 18-64,SUPPORTED LIVING,REDACTED,REDACTED
06.03.2023,ADULT SOCIAL CARE,REDACTED PERSONAL DATA,640.08,MH LTS 18-64,SUPPORTED LIVING,REDACTED,REDACTED
06.03.2023,ADULT SOCIAL CARE,REDACTED PERSONAL DATA,675.64,MH LTS 18-64,SUPPORTED LIVING,REDACTED,REDACTED
06.03.2023,ADULT SOCIAL CARE,REDACTED PERSONAL DATA,675.64,MH LTS 18-64,SUPPORTED LIVING,REDACTED,REDACTED
06.03.2023,ADULT SOCIAL CARE,REDACTED PERSONAL DATA,782.32,MH LTS 18-64,SUPPORTED LIVING,REDACTED,REDACTED
06.03.2023,ADULT SOCIAL CARE,REDACTED PERSONAL DATA,977.9,MH LTS 18-64,SUPPORTED LIVING,REDACTED,REDACTED
06.03.2023,ADULT SOCIAL CARE,REDACTED PERSONAL DATA,995.68,MH LTS 18-64,SUPPORTED LIVING,REDACTED,REDACTED
06.03.2023,ADULT SOCIAL CARE,REDACTED PERSONAL DATA,995.68,MH LTS 18-64,SUPPORTED LIVING,REDACTED,REDACTED
06.03.2023,ADULT SOCIAL CARE,REDACTED PERSONAL DATA,"1,280.16",MH LTS 18-64,SUPPORTED LIVING,REDACTED,REDACTED
06.03.2023,ADULT SOCIAL CARE,REDACTED PERSONAL DATA,284.48,MH LTS 65+,SUPPORTED LIVING,REDACTED,REDACTED
06.03.2023,ADULT SOCIAL CARE,REDACTED PERSONAL DATA,408.94,MH LTS 65+,SUPPORTED LIVING,REDACTED,REDACTED
06.03.2023,ADULT SOCIAL CARE,REDACTED PERSONAL DATA,426.72,MH LTS 65+,SUPPORTED LIVING,REDACTED,REDACTED
06.03.2023,ADULT SOCIAL CARE,REDACTED PERSONAL DATA,782.32,MH LTS 65+,SUPPORTED LIVING,REDACTED,REDACTED
06.03.2023,ADULT SOCIAL CARE,REDACTED PERSONAL DATA,853.44,MH LTS 65+,SUPPORTED LIVING,REDACTED,REDACTED
06.03.2023,ADULT SOCIAL CARE,REDACTED PERSONAL DATA,"1,351.28",MH LTS 65+,SUPPORTED LIVING,REDACTED,REDACTED
06.03.2023,ADULT SOCIAL CARE,ZOT LTD,350,PHY LTS 65+,CLIENT TRANSPORT,2103631207,1000082848
06.03.2023,ADULT SOCIAL CARE,SAGECARE LTD,"1,632.65",PHY LTS 65+,HOMECARE - C&V,2103631424,1000080924
06.03.2023,ADULT SOCIAL CARE,SAGECARE LTD,"3,056.48",PHY LTS 65+,HOMECARE - C&V,2103631425,1000080924
06.03.2023,ADULT SOCIAL CARE,METRO HOMECARE LTD,462,PHY LTS 65+,HOMECARE - SPOT,2103631206,1000070695
06.03.2023,ADULT SOCIAL CARE,METRO HOMECARE LTD,548.63,PHY LTS 65+,HOMECARE - SPOT,2103631208,1000070695
06.03.2023,ADULT SOCIAL CARE,METRO HOMECARE LTD,"1,237.50",PHY LTS 65+,HOMECARE - SPOT,2103631205,1000070695
06.03.2023,ADULT SOCIAL CARE,METRO HOMECARE LTD,"1,254.00",PHY LTS 65+,HOMECARE - SPOT,2103631204,1000070695
06.03.2023,ADULT SOCIAL CARE,ST MUNGOS,"81,330.00",S75 SUPHSG SCH LBS LEAD,EXTERNAL AGENCIES AND BODIES,5902569361,1000017600
06.03.2023,ADULT SOCIAL CARE,ST MUNGOS,"81,330.00",S75 SUPHSG SCH LBS LEAD,EXTERNAL AGENCIES AND BODIES,5902569363,1000017600
06.03.2023,ADULT SOCIAL CARE,ST MUNGOS,"81,330.00",S75 SUPHSG SCH LBS LEAD,EXTERNAL AGENCIES AND BODIES,5902569366,1000017600
06.03.2023,ADULT SOCIAL CARE,ST MUNGOS,"81,330.00",S75 SUPHSG SCH LBS LEAD,EXTERNAL AGENCIES AND BODIES,5902569367,1000017600
06.03.2023,ADULT SOCIAL CARE,ST MUNGOS,"162,660.00",S75 SUPHSG SCH LBS LEAD,EXTERNAL AGENCIES AND BODIES,5902569368,1000017600
06.03.2023,ADULT SOCIAL CARE,SURREY DOCKS FARM PROVIDENT SOCIETY,500,SOCIAL ISOLATION,DAYCARE,2103631431,1000000958
06.03.2023,ADULT SOCIAL CARE,MEDACS HOMECARE,346,SPECIALIST CARE,SECTION 17 PAYMENTS TO AGENCIES/CARERS,2103631383,11287415
06.03.2023,ADULT SOCIAL CARE,SUPREME CARE SERVICES LTD,864,SPECIALIST CARE,SECTION 17 PAYMENTS TO AGENCIES/CARERS,2103631405,1000059416
06.03.2023,ADULT SOCIAL CARE,UNIQUE PERSONNEL (UK) LTD,252.42,SPECIALIST CARE,SECTION 17 PAYMENTS TO AGENCIES/CARERS,2103631413,1000075451
06.03.2023,ADULT SOCIAL CARE,UNIQUE PERSONNEL (UK) LTD,540.9,SPECIALIST CARE,SECTION 17 PAYMENTS TO AGENCIES/CARERS,2103631410,1000075451
06.03.2023,ADULT SOCIAL CARE,UNIQUE PERSONNEL (UK) LTD,892.49,SPECIALIST CARE,SECTION 17 PAYMENTS TO AGENCIES/CARERS,2103631411,1000075451
06.03.2023,ADULT SOCIAL CARE,UNIQUE PERSONNEL (UK) LTD,"2,821.70",SPECIALIST CARE,SECTION 17 PAYMENTS TO AGENCIES/CARERS,2103631412,1000075451
06.03.2023,ADULT SOCIAL CARE,REDACTED PERSONAL DATA,"2,463.60",SUB LTS 18-64,DAYCARE,REDACTED,REDACTED
06.03.2023,ADULT SOCIAL CARE,ADDICTION RECOVERY CENTRES LTD,"3,180.00",SUB LTS 18-64,RESIDENTIAL CARE,2103631200,1000060881
06.03.2023,ASSET MANAGEMENT,PROPERTY FACILITIES GROUP LTD,503.87,DISREPAIR,BUILDING R&M,5902568413,1000063713
06.03.2023,ASSET MANAGEMENT,PROPERTY FACILITIES GROUP PLC,"1,012.91",DISREPAIR,BUILDING R&M,2103630053,3000001420
06.03.2023,ASSET MANAGEMENT,PROPERTY FACILITIES GROUP PLC,"1,098.98",DISREPAIR,BUILDING R&M,2103630054,3000001420
06.03.2023,ASSET MANAGEMENT,PROPERTY FACILITIES GROUP PLC,"1,519.95",DISREPAIR,BUILDING R&M,2103630056,3000001420
06.03.2023,ASSET MANAGEMENT,PROPERTY FACILITIES GROUP PLC,"2,328.11",DISREPAIR,BUILDING R&M,2103630055,3000001420
06.03.2023,ASSET MANAGEMENT,PROPERTY FACILITIES GROUP PLC,"2,632.97",DISREPAIR,BUILDING R&M,2103630052,3000001420
06.03.2023,ASSET MANAGEMENT,LONDON TOOLS LIMITED,381,REPAIRS OPERATIONS,COMPUTER CONSUMABLES,5902569313,1000003017
06.03.2023,ASSET MANAGEMENT,LONDON TOOLS LIMITED,"1,185.00",REPAIRS OPERATIONS,MATERIALS,5902569345,1000003017
06.03.2023,CHIEF EXECUTIVE,MICA ARCHITECTS LTD,"4,837.06",CAPITAL PS (REGEN),CONSTRUCTION FEES - ARCHITECT,5902569339,1000087566
06.03.2023,CHIEF EXECUTIVE,CIRCET (UK) LTD,"39,986.51",CAPITAL PS (REGEN),CONSTRUCTION MAIN CONTRACT -CERTIFICATED,2103630046,3000002134
06.03.2023,CHIEF EXECUTIVE'S OFFICE,NEW LOCAL LTD,"14,300.00",CHIEF EXECUTIVE'S OFFICE,SUBSCRIPTIONS,5902569213,1000004785
06.03.2023,CHIEF EXECUTIVE'S OFFICE,HATCH ENTERPRISE,"110,000.00",SOUTHWARK PIONEER FUND,EXTERNAL AGENCIES AND BODIES,5902569209,1000082676
06.03.2023,CHILDREN AND FAMILIES,REDACTED PERSONAL DATA,290,ADOPTION SUPP FUND 1,EXTERNAL AGENCIES AND BODIES,REDACTED,REDACTED
06.03.2023,CHILDREN AND FAMILIES,SOUTH LONDON & MAUDSLEY HOSPITAL,"4,756.00",ADOPTION SUPP FUND 2,EXTERNAL AGENCIES AND BODIES,5902569382,1000013096
06.03.2023,CHILDREN AND FAMILIES,SOUTH LONDON & MAUDSLEY HOSPITAL,"4,978.00",ADOPTION SUPP FUND 2,EXTERNAL AGENCIES AND BODIES,5902569381,1000013096
06.03.2023,CHILDREN AND FAMILIES,THE ANNA FREUD CENTRE,"1,650.00",ADOPTION SUPP FUND 2,EXTERNAL AGENCIES AND BODIES,5902569392,1000017805
06.03.2023,CHILDREN AND FAMILIES,THE ANNA FREUD CENTRE,"1,800.00",ADOPTION SUPP FUND 2,EXTERNAL AGENCIES AND BODIES,5902569430,1000017805
06.03.2023,CHILDREN AND FAMILIES,CLIFTON CHILDRENS SOCIETY,446.6,ADOPTION SUPP FUND 2,EXTERNAL AGENCIES AND BODIES,5902569442,1000049956
06.03.2023,CHILDREN AND FAMILIES,ZENITH CARS LTD,"1,200.00",AI TEAMS A-D,CLIENT TRANSPORT,5902569214,1000070570
06.03.2023,CHILDREN AND FAMILIES,FRONTLINE SECURITY 24/7 LTD,"3,614.83",CHILDREN�S RESID,HIRED VEHICLES,5902569231,1000088829
06.03.2023,CHILDREN AND FAMILIES,CAMERON & COOPER LIMITED,"16,240.00",CHILDREN�S RESID,RESIDENTIAL CARE,2103631385,1000087598
06.03.2023,CHILDREN AND FAMILIES,CARE O LINE,295,CONTACT SERVICE,EXTERNAL AGENCIES AND BODIES,2103631403,11241743
06.03.2023,CHILDREN AND FAMILIES,CARE O LINE,"2,446.25",CONTACT SERVICE,EXTERNAL AGENCIES AND BODIES,2103631404,11241743
06.03.2023,CHILDREN AND FAMILIES,CARE O LINE,"2,787.75",CONTACT SERVICE,EXTERNAL AGENCIES AND BODIES,2103631402,11241743
06.03.2023,CHILDREN AND FAMILIES,LIKA FAMILY FOSTERING,"3,800.00",FRIENDS & FAMILY FOSTERING,EXTERNAL AGENCIES AND BODIES,2103631417,1000080099
06.03.2023,CHILDREN AND FAMILIES,AIM HIGH FOSTERING SERVICES LTD,"4,799.76",FRIENDS & FAMILY FOSTERING,EXTERNAL AGENCIES AND BODIES,2103631415,1000082607
06.03.2023,CHILDREN AND FAMILIES,SILVER LINING FOSTERING LTD,"3,100.00",FRIENDS & FAMILY FOSTERING,EXTERNAL AGENCIES AND BODIES,2103631416,1000087318
06.03.2023,CHILDREN AND FAMILIES,NURTURE FOSTERING LTD,"7,200.00",FRIENDS & FAMILY FOSTERING,EXTERNAL AGENCIES AND BODIES,2103631418,1000088623
06.03.2023,CHILDREN AND FAMILIES,READY STEADY MOVE LTD,265,P & R CARE TEAM,OTHER PAYMENTS FOR CLIENTS,2103631390,1000060084
06.03.2023,CHILDREN AND FAMILIES,READY STEADY MOVE LTD,380,P & R CARE TEAM,OTHER PAYMENTS FOR CLIENTS,2103631398,1000060084
06.03.2023,CHILDREN AND FAMILIES,PURPLE PEBBLES(CHILD CARE) SERVICES,-948.05,SEMI-IND CARELEAVERS,COSTS RECOVERED,2103631442,1000070705
06.03.2023,CHILDREN AND FAMILIES,PURPLE PEBBLES(CHILD CARE) SERVICES,-278.18,SEMI-IND CARELEAVERS,COSTS RECOVERED,2103631444,1000070705
06.03.2023,CHILDREN AND FAMILIES,YOUNG FUTURES,"1,440.00",SEMI-IND CARELEAVERS,EXTERNAL AGENCIES AND BODIES,2103631350,1000059563
06.03.2023,CHILDREN AND FAMILIES,PURPLE PEBBLES(CHILD CARE) SERVICES,500,SEMI-IND CARELEAVERS,EXTERNAL AGENCIES AND BODIES,2103631375,1000070705
06.03.2023,CHILDREN AND FAMILIES,PURPLE PEBBLES(CHILD CARE) SERVICES,"1,542.86",SEMI-IND CARELEAVERS,EXTERNAL AGENCIES AND BODIES,2103631380,1000070705
06.03.2023,CHILDREN AND FAMILIES,PURPLE PEBBLES(CHILD CARE) SERVICES,"2,000.00",SEMI-IND CARELEAVERS,EXTERNAL AGENCIES AND BODIES,2103631341,1000070705
06.03.2023,CHILDREN AND FAMILIES,PURPLE PEBBLES(CHILD CARE) SERVICES,"2,240.00",SEMI-IND CARELEAVERS,EXTERNAL AGENCIES AND BODIES,2103631357,1000070705
06.03.2023,CHILDREN AND FAMILIES,FINEFAIR LTD,"1,922.11",SEMI-IND CARELEAVERS,EXTERNAL AGENCIES AND BODIES,2103631343,1000075570
06.03.2023,CHILDREN AND FAMILIES,SITTARA LTD,"1,316.00",SEMI-IND CARELEAVERS,EXTERNAL AGENCIES AND BODIES,2103631346,1000080857
06.03.2023,CHILDREN AND FAMILIES,MX ESTATES LTD,"1,260.00",SEMI-IND CARELEAVERS,EXTERNAL AGENCIES AND BODIES,2103631347,1000083639
06.03.2023,CHILDREN AND FAMILIES,ANGEL UK CARE LTD,594,SEMI-IND CARELEAVERS,OTHER PAYMENTS FOR CLIENTS,2103631344,1000089249
06.03.2023,CHILDREN AND FAMILIES,PURPLE PEBBLES(CHILD CARE) SERVICES,"1,671.43",SEMI-IND LAC 16-17,EXTERNAL AGENCIES AND BODIES,2103631325,1000070705
06.03.2023,CHILDREN AND FAMILIES,PURPLE PEBBLES(CHILD CARE) SERVICES,"2,646.43",SEMI-IND LAC 16-17,EXTERNAL AGENCIES AND BODIES,2103631323,1000070705
06.03.2023,CHILDREN AND FAMILIES,PURPLE PEBBLES(CHILD CARE) SERVICES,"3,800.00",SEMI-IND LAC 16-17,EXTERNAL AGENCIES AND BODIES,2103631338,1000070705
06.03.2023,CHILDREN AND FAMILIES,PURPLE PEBBLES(CHILD CARE) SERVICES,"4,000.00",SEMI-IND LAC 16-17,EXTERNAL AGENCIES AND BODIES,2103631331,1000070705
06.03.2023,CHILDREN AND FAMILIES,FUTURE FOUNDATIONS LTD,265.71,SEMI-IND LAC 16-17,OTHER PAYMENTS FOR CLIENTS,2103631327,1000063272
06.03.2023,CHILDREN AND FAMILIES,PURPLE PEBBLES(CHILD CARE) SERVICES,300,SEMI-IND LAC 16-17,OTHER PAYMENTS FOR CLIENTS,2103631322,1000070705
06.03.2023,CHILDREN AND FAMILIES,GREATER LONDON FOSTERING,"1,699.88",STAYPUT- FOST CARERS,EXTERNAL AGENCIES AND BODIES,2103631339,1000029184
06.03.2023,CHILDREN AND FAMILIES,GREATER LONDON FOSTERING,"1,999.76",STAYPUT- FOST CARERS,EXTERNAL AGENCIES AND BODIES,2103631382,1000029184
06.03.2023,CHILDREN AND FAMILIES,FLOURISH FOSTERING LTD,"4,127.76",STAYPUT- FOST CARERS,EXTERNAL AGENCIES AND BODIES,2103631366,1000084796
06.03.2023,CHILDREN AND FAMILIES,ZENITH CARS LTD,840,TEAM A,CLIENT TRANSPORT,5902569214,1000070570
06.03.2023,CHILDREN AND FAMILIES,ZENITH CARS LTD,"1,600.00",TEAM B,CLIENT TRANSPORT,5902569214,1000070570
06.03.2023,CHILDREN AND FAMILIES,ZENITH CARS LTD,"1,785.00",TEAM C,CLIENT TRANSPORT,5902569214,1000070570
06.03.2023,CHILDREN AND FAMILIES,ZENITH CARS LTD,"1,440.00",TEAM D,CLIENT TRANSPORT,5902569214,1000070570
06.03.2023,CHILDREN AND FAMILIES,PURPLE PEBBLES(CHILD CARE) SERVICES,-894.99,UASC CARELEAVERS,COSTS RECOVERED,2103631445,1000070705
06.03.2023,CHILDREN AND FAMILIES,PURPLE PEBBLES(CHILD CARE) SERVICES,-875,UASC CARELEAVERS,COSTS RECOVERED,2103631443,1000070705
06.03.2023,CHILDREN AND FAMILIES,PURPLE PEBBLES(CHILD CARE) SERVICES,-875,UASC CARELEAVERS,COSTS RECOVERED,2103631446,1000070705
06.03.2023,CHILDREN AND FAMILIES,PURPLE PEBBLES(CHILD CARE) SERVICES,-875,UASC CARELEAVERS,COSTS RECOVERED,2103631447,1000070705
06.03.2023,CHILDREN AND FAMILIES,PURPLE PEBBLES(CHILD CARE) SERVICES,"1,178.57",UASC CARELEAVERS,EXTERNAL AGENCIES AND BODIES,2103631345,1000070705
06.03.2023,CHILDREN AND FAMILIES,PURPLE PEBBLES(CHILD CARE) SERVICES,"1,400.00",UASC CARELEAVERS,EXTERNAL AGENCIES AND BODIES,2103631374,1000070705
06.03.2023,CHILDREN AND FAMILIES,PURPLE PEBBLES(CHILD CARE) SERVICES,"1,500.00",UASC CARELEAVERS,EXTERNAL AGENCIES AND BODIES,2103631371,1000070705
06.03.2023,CHILDREN AND FAMILIES,PURPLE PEBBLES(CHILD CARE) SERVICES,"1,580.00",UASC CARELEAVERS,EXTERNAL AGENCIES AND BODIES,2103631354,1000070705
06.03.2023,CHILDREN AND FAMILIES,PURPLE PEBBLES(CHILD CARE) SERVICES,"1,600.00",UASC CARELEAVERS,EXTERNAL AGENCIES AND BODIES,2103631358,1000070705
06.03.2023,CHILDREN AND FAMILIES,PURPLE PEBBLES(CHILD CARE) SERVICES,"1,600.00",UASC CARELEAVERS,EXTERNAL AGENCIES AND BODIES,2103631379,1000070705
06.03.2023,CHILDREN AND FAMILIES,PURPLE PEBBLES(CHILD CARE) SERVICES,"1,640.00",UASC CARELEAVERS,EXTERNAL AGENCIES AND BODIES,2103631356,1000070705
06.03.2023,CHILDREN AND FAMILIES,PURPLE PEBBLES(CHILD CARE) SERVICES,"1,700.00",UASC CARELEAVERS,EXTERNAL AGENCIES AND BODIES,2103631349,1000070705
06.03.2023,CHILDREN AND FAMILIES,PURPLE PEBBLES(CHILD CARE) SERVICES,"1,700.00",UASC CARELEAVERS,EXTERNAL AGENCIES AND BODIES,2103631376,1000070705
06.03.2023,CHILDREN AND FAMILIES,PURPLE PEBBLES(CHILD CARE) SERVICES,"1,700.00",UASC CARELEAVERS,EXTERNAL AGENCIES AND BODIES,2103631377,1000070705
06.03.2023,CHILDREN AND FAMILIES,PURPLE PEBBLES(CHILD CARE) SERVICES,"1,700.00",UASC CARELEAVERS,EXTERNAL AGENCIES AND BODIES,2103631381,1000070705
06.03.2023,CHILDREN AND FAMILIES,PURPLE PEBBLES(CHILD CARE) SERVICES,"1,760.00",UASC CARELEAVERS,EXTERNAL AGENCIES AND BODIES,2103631360,1000070705
06.03.2023,CHILDREN AND FAMILIES,PURPLE PEBBLES(CHILD CARE) SERVICES,"1,760.00",UASC CARELEAVERS,EXTERNAL AGENCIES AND BODIES,2103631361,1000070705
06.03.2023,CHILDREN AND FAMILIES,PURPLE PEBBLES(CHILD CARE) SERVICES,"1,760.00",UASC CARELEAVERS,EXTERNAL AGENCIES AND BODIES,2103631364,1000070705
06.03.2023,CHILDREN AND FAMILIES,PURPLE PEBBLES(CHILD CARE) SERVICES,"1,760.00",UASC CARELEAVERS,EXTERNAL AGENCIES AND BODIES,2103631365,1000070705
06.03.2023,CHILDREN AND FAMILIES,PURPLE PEBBLES(CHILD CARE) SERVICES,"1,790.00",UASC CARELEAVERS,EXTERNAL AGENCIES AND BODIES,2103631355,1000070705
06.03.2023,CHILDREN AND FAMILIES,PURPLE PEBBLES(CHILD CARE) SERVICES,"1,860.00",UASC CARELEAVERS,EXTERNAL AGENCIES AND BODIES,2103631342,1000070705
06.03.2023,CHILDREN AND FAMILIES,PURPLE PEBBLES(CHILD CARE) SERVICES,"1,900.00",UASC CARELEAVERS,EXTERNAL AGENCIES AND BODIES,2103631340,1000070705
06.03.2023,CHILDREN AND FAMILIES,PURPLE PEBBLES(CHILD CARE) SERVICES,"1,999.99",UASC CARELEAVERS,EXTERNAL AGENCIES AND BODIES,2103631368,1000070705
06.03.2023,CHILDREN AND FAMILIES,PURPLE PEBBLES(CHILD CARE) SERVICES,"2,250.00",UASC CARELEAVERS,EXTERNAL AGENCIES AND BODIES,2103631373,1000070705
06.03.2023,CHILDREN AND FAMILIES,PURPLE PEBBLES(CHILD CARE) SERVICES,"3,200.00",UASC CARELEAVERS,EXTERNAL AGENCIES AND BODIES,2103631367,1000070705
06.03.2023,CHILDREN AND FAMILIES,ELLIOT LEIGH TLC LTD,"1,599.92",UASC CARELEAVERS,EXTERNAL AGENCIES AND BODIES,2103631348,1000079022
06.03.2023,CHILDREN AND FAMILIES,PURPLE PEBBLES(CHILD CARE) SERVICES,"3,200.00",UASC LAC 16-17,EXTERNAL AGENCIES AND BODIES,2103631329,1000070705
06.03.2023,CHILDREN AND FAMILIES,PURPLE PEBBLES(CHILD CARE) SERVICES,"3,400.00",UASC LAC 16-17,EXTERNAL AGENCIES AND BODIES,2103631318,1000070705
06.03.2023,CHILDREN AND FAMILIES,PURPLE PEBBLES(CHILD CARE) SERVICES,"3,400.00",UASC LAC 16-17,EXTERNAL AGENCIES AND BODIES,2103631320,1000070705
06.03.2023,CHILDREN AND FAMILIES,PURPLE PEBBLES(CHILD CARE) SERVICES,"3,400.00",UASC LAC 16-17,EXTERNAL AGENCIES AND BODIES,2103631336,1000070705
06.03.2023,CHILDREN AND FAMILIES,PURPLE PEBBLES(CHILD CARE) SERVICES,"3,500.00",UASC LAC 16-17,EXTERNAL AGENCIES AND BODIES,2103631316,1000070705
06.03.2023,CHILDREN AND FAMILIES,PURPLE PEBBLES(CHILD CARE) SERVICES,"3,500.00",UASC LAC 16-17,EXTERNAL AGENCIES AND BODIES,2103631332,1000070705
06.03.2023,CHILDREN AND FAMILIES,PURPLE PEBBLES(CHILD CARE) SERVICES,"3,600.00",UASC LAC 16-17,EXTERNAL AGENCIES AND BODIES,2103631334,1000070705
06.03.2023,CHILDREN AND FAMILIES,PURPLE PEBBLES(CHILD CARE) SERVICES,300,UASC LAC 16-17,OTHER PAYMENTS FOR CLIENTS,2103631326,1000070705
06.03.2023,COMMISSIONING & CENTRAL,RSM RISK ASSURANCE SERVICES LLP,"12,460.00",STRATEGIC DIRECTOR OF C&AS,PROFESSIONAL FEES,5902569225,1000050690
06.03.2023,COMMUNITIES,CHANGE GROW LIVE SERVICES LTD,"285,060.00",ADULT SM SERVICE,OTHER CONTRACTORS,5902569391,1000082721
06.03.2023,COMMUNITIES,METRO HOMECARE LTD,412.5,NO RECOURSE TO PUBLIC FUNDS,HOMECARE - C&V,2103631203,1000070695
06.03.2023,COMMUNITIES,REDACTED PERSONAL DATA,355.6,NO RECOURSE TO PUBLIC FUNDS,HOMECARE - C&V,REDACTED,REDACTED
06.03.2023,COMMUNITIES,REDACTED PERSONAL DATA,350,UKRAINIAN PROGRAMME,GRANTS,REDACTED,REDACTED
06.03.2023,COMMUNITIES,REDACTED PERSONAL DATA,350,UKRAINIAN PROGRAMME,GRANTS,REDACTED,REDACTED
06.03.2023,COMMUNITIES HRA,SHERGROUP LTD,"1,040.00",TRA HALLS (REPAIRS),SECURITY SERVICES,5902569397,1000087977
06.03.2023,COMMUNITIES HRA,SHERGROUP LTD,"1,344.00",TRA HALLS (REPAIRS),SECURITY SERVICES,5902569393,1000087977
06.03.2023,CORPORATE FACILITIES MANAGEMENT,CTS COMMUNICATION & TECHNICAL SERVICES LTD,"1,412.00",160 TOOLEY ST.,BUILDING R&M,5902569287,11155055
06.03.2023,CUSTOMER AND EXCHEQUER,TESCO STORES LTD,"1,500.00",ADMINISTRATIVE SUPPORT,MARKETING & PUBLICITY SERVICES,5902569355,1000083822
06.03.2023,CUSTOMER AND EXCHEQUER,BUDGET CARPETS,279.17,SESS,OTHER PAYMENTS FOR CLIENTS,5902569369,11319076
06.03.2023,CUSTOMER AND EXCHEQUER,BUDGET CARPETS,320.83,SESS,OTHER PAYMENTS FOR CLIENTS,5902569372,11319076
06.03.2023,CUSTOMER AND EXCHEQUER,BUDGET CARPETS,441.67,SESS,OTHER PAYMENTS FOR CLIENTS,5902569373,11319076
06.03.2023,CUSTOMER AND EXCHEQUER,FAMILY FUND TRADING LTD,957.5,SESS,OTHER PAYMENTS FOR CLIENTS,5902569402,1000071092
06.03.2023,DIGITAL AND TECHNOLOGY,QA LTD,"18,177.76",TECHNOLOGY TRANSFORMATION,TRAINING,5902569216,1000045967
06.03.2023,DSG,BDO LLP,"3,106.00",SCHOOLS AUDIT,PAYMENTS FOR FINANCIAL SERVICES,5902568670,1000057898
06.03.2023,EDUCATION,TALES TOOLKIT LTD,600,EARLY YEARS IMPROVEMENT,CONSULTANTS SERVICES,5902569386,1000087408
06.03.2023,EDUCATION,STUART HAYTER,280,GOVERNOR SUPPORT,CONSULTANTS SERVICES,5902568520,1000082057
06.03.2023,EDUCATION,ABRSM,"1,356.00",LEA MUSIC SERVICE(310) - 5018566,CONSULTANTS SERVICES,5902569340,1000072042
06.03.2023,EDUCATION,SATCH BRASS CONSULTANTS LTD,660,LEA MUSIC SERVICE(310) - 5018566,EQUIPMENT PURCHASE & REPAIR,5902569336,1000080729
06.03.2023,ENVIRONMENT AND LEISURE,BARCHAM TREES PLC,"1,524.00",CAPITAL PS (LEISURE),CONSTRUCTION FEES,5902568435,11254891
06.03.2023,ENVIRONMENT AND LEISURE,WARWICK LANDSCAPING LTD,500,CAPITAL PS (LEISURE),CONSTRUCTION FEES  - EXTERNAL,2103631438,3000001705
06.03.2023,ENVIRONMENT AND LEISURE,APPLEYARD & TREW,"2,080.00",CAPITAL PS (LEISURE),CONSTRUCTION FEES - QUANTITY SURVEYOR,5902569416,1000029065
06.03.2023,ENVIRONMENT AND LEISURE,LAND REGISTRY,603,SALIX PROJECT NO. 35,PROFESSIONAL FEES,6102076480,DIRECT DEBIT PAYMENT
06.03.2023,ENVIRONMENT DIRECTORATE,GREENHAM TRADING LTD,"4,795.63",ESTATE CLEANING-GENERAL,MATERIALS,5902568615,1000006610
06.03.2023,ENVIRONMENT DIRECTORATE,LONDON TOOLS LIMITED,375,PARKS TECH UNIT (PREMISES),BUILDING R&M,5902569352,1000003017
06.03.2023,ENVIRONMENT DIRECTORATE,LONDON TOOLS LIMITED,650,PARKS TECH UNIT (PREMISES),BUILDING R&M,5902569352,1000003017
06.03.2023,ENVIRONMENT DIRECTORATE,LONDON TOOLS LIMITED,725,PARKS TECH UNIT (PREMISES),BUILDING R&M,5902569352,1000003017
06.03.2023,ENVIRONMENT DIRECTORATE,LONDON TOOLS LIMITED,875,PARKS TECH UNIT (PREMISES),BUILDING R&M,5902569311,1000003017
06.03.2023,ENVIRONMENT DIRECTORATE,LONDON TOOLS LIMITED,"1,400.00",PARKS TECH UNIT (PREMISES),BUILDING R&M,5902569352,1000003017
06.03.2023,ENVIRONMENT DIRECTORATE,LONDON TOOLS LIMITED,679.8,PEST CONTROL,MATERIALS,5902569365,1000003017
06.03.2023,ENVIRONMENT DIRECTORATE,LONDON TOOLS LIMITED,950,STREET TRADING A/C,MATERIALS,5902569422,1000003017
06.03.2023,ENVIRONMENT DIRECTORATE,ALTIA SOLUTIONS LTD,"7,625.00",TRADING STANDARDS,SUBSCRIPTIONS,5902568333,1000060360
06.03.2023,HOUSING GENERAL FUND,ZG LIGHTING (UK) LTD,"2,262.62",CAPITAL PS (REGEN),CONSTRUCTION,5902569438,1000031757
06.03.2023,HOUSING GENERAL FUND,ZG LIGHTING (UK) LTD,332.97,CAPITAL PS (REGEN),CONSTRUCTION MAIN CONTRACT,5902568838,1000031757
06.03.2023,HOUSING HRA,POTTER RAPER LTD,"4,018.67",CAPITAL PS (HRA),CONSTRUCTION FEES  - EXTERNAL,5902569380,1009369
06.03.2023,HOUSING HRA,POTTER RAPER LTD,"4,988.49",CAPITAL PS (HRA),CONSTRUCTION FEES  - EXTERNAL,5902569379,1009369
06.03.2023,HOUSING HRA,CALFORD SEADEN LLP,"1,200.00",CAPITAL PS (HRA),CONSTRUCTION FEES  - EXTERNAL,5902568749,1061592
06.03.2023,HOUSING HRA,VPS (UK) LTD,292.88,CAPITAL PS (HRA),CONSTRUCTION FEES  - EXTERNAL,5902569390,1000040614
06.03.2023,HOUSING HRA,OPEN COMMUNITIES LTD,698.25,CAPITAL PS (HRA),CONSTRUCTION FEES  - EXTERNAL,5902569330,1000065800
06.03.2023,HOUSING HRA,OPEN COMMUNITIES LTD,"1,029.00",CAPITAL PS (HRA),CONSTRUCTION FEES  - EXTERNAL,5902569337,1000065800
06.03.2023,HOUSING HRA,WHITBY WOOD LTD,"5,500.00",CAPITAL PS (HRA),CONSTRUCTION FEES  - EXTERNAL,5902568655,1000086224
06.03.2023,HOUSING HRA,POTTER RAPER LTD,"14,848.08",CAPITAL PS (HRA),CONSTRUCTION FEES - EMPLOYERS AGENT,5902569377,1009369
06.03.2023,HOUSING HRA,ORION FIRE ENGINEERING LTD,750,CAPITAL PS (HRA),CONSTRUCTION FEES - ENGINEER,5902569371,1000088062
06.03.2023,HOUSING HRA,SHARPE PRITCHARD LLP,582.3,CAPITAL PS (HRA),CONSTRUCTION FEES - LEGAL,5902569222,1790085
06.03.2023,HOUSING HRA,MPS HOUSING LTD,"114,701.43",CAPITAL PS (HRA),CONSTRUCTION MAIN CONTRACT -CERTIFICATED,2103630047,3000002101
06.03.2023,HOUSING HRA,SHARPE PRITCHARD LLP,540.3,CAPITAL PS (HRA),LAND & BUILDINGS ACQUISITION FEES,5902569288,1790085
06.03.2023,HOUSING HRA,GUILDMORE LTD,"18,824.25",CAPITAL PS (REGEN),CONSTRUCTION FEES,2103631453,3000002150
06.03.2023,HOUSING HRA,GUILDMORE LTD,"42,174.30",CAPITAL PS (REGEN),CONSTRUCTION FEES,2103631453,3000002150
06.03.2023,HOUSING HRA,SILVER DCC LTD,"1,745.59",CAPITAL PS (REGEN),CONSTRUCTION FEES  - EXTERNAL,5902569435,1000087546
06.03.2023,HOUSING HRA,TROWERS & HAMLINS LLP,"1,543.00",CAPITAL PS (REGEN),CONSTRUCTION FEES - LEGAL,5902568450,1000016239
06.03.2023,HOUSING HRA,GUILDMORE LTD,"25,401.80",CAPITAL PS (REGEN),CONSTRUCTION MAIN CONTRACT -CERTIFICATED,2103631440,3000002150
06.03.2023,HOUSING HRA,GUILDMORE LTD,"195,483.40",CAPITAL PS (REGEN),CONSTRUCTION MAIN CONTRACT -CERTIFICATED,2103631440,3000002150
06.03.2023,LEISURE DIRECTORATE,KENT COUNTY COUNCIL - LASER,"4,485.09",BURGESS SPORTS CENTRE,ELECTRICITY,5902569238,1000012926
06.03.2023,LEISURE DIRECTORATE,KENT COUNTY COUNCIL - LASER,"4,808.71",BURGESS SPORTS CENTRE,ELECTRICITY,5902569232,1000012926
06.03.2023,LEISURE DIRECTORATE,FRONTLINE MOBILE SOLOUTIONS LTD,"7,000.00",CEMETERIES,EQUIPMENT PURCHASE & REPAIR,5902569224,1000088876
06.03.2023,LEISURE DIRECTORATE,INSTITUTE OF CEMETERY & CREMATORIUM MANAGEMENT,280,CEMETERIES,PROFESSIONAL FEES,5902568325,11183486
06.03.2023,LEISURE DIRECTORATE,SMART PLATFORM RENTAL LTD,625,TREES � IN-HOUSE TEAM,HIRED VEHICLES,5902568466,1000082961
06.03.2023,LEISURE DIRECTORATE,CONSTELLIA PUBLIC LIMITED,"1,974.36",TREES PRINCIPAL ROADS,TREE MAINTENANCE,5902568400,1000088137
06.03.2023,LEISURE DIRECTORATE,CONSTELLIA PUBLIC LIMITED,"7,307.69",TREES PRINCIPAL ROADS,TREE MAINTENANCE,5902568401,1000088137
06.03.2023,PLANNING & GROWTH,SOUTHWARK NEWSPAPER LTD,336,DEV MGT ADMIN & INCOME,MARKETING & PUBLICITY SERVICES,5902568313,1556957
06.03.2023,PROFESSIONAL FINANCE SERVICES,BDO LLP,500,INTERNAL AUDIT CONTRACTS,PAYMENTS FOR FINANCIAL SERVICES,5902568670,1000057898
06.03.2023,PROFESSIONAL FINANCE SERVICES,BDO LLP,"22,849.00",INTERNAL AUDIT CONTRACTS,PAYMENTS FOR FINANCIAL SERVICES,5902568670,1000057898
06.03.2023,PROFESSIONAL FINANCE SERVICES,BDO LLP,"2,426.67",RISK ADMIN,PROFESSIONAL FEES,5902568674,1000057898
06.03.2023,PUBLIC HEALTH,SPRING COMMUNITY HUB,395.82,HOLIDAY ACTIVITIES & FOOD,EXTERNAL AGENCIES AND BODIES,5902569437,1000083089
06.03.2023,RESIDENT SERVICES,LONDON TOOLS LIMITED,525,SHELTERED CENTRAL,COMPUTER CONSUMABLES,5902569424,1000003017
06.03.2023,RESIDENT SERVICES,LONDON TOOLS LIMITED,395,SHELTERED CENTRAL,EQUIPMENT PURCHASE & REPAIR,5902569412,1000003017
06.03.2023,RESIDENT SERVICES,LONDON TOOLS LIMITED,262.5,SUPPORTED HOSTELS,MATERIALS,5902569310,1000003017
06.03.2023,RESIDENT SERVICES,LONDON TOOLS LIMITED,295,SUPPORTED HOSTELS,MATERIALS,5902569310,1000003017
06.03.2023,RESIDENT SERVICES,LONDON TOOLS LIMITED,350,SUPPORTED HOSTELS,MATERIALS,5902569310,1000003017
06.03.2023,RESIDENT SERVICES,LONDON TOOLS LIMITED,350,SUPPORTED HOSTELS,MATERIALS,5902569326,1000003017
06.03.2023,RESIDENT SERVICES,LONDON TOOLS LIMITED,355,SUPPORTED HOSTELS,MATERIALS,5902569326,1000003017
06.03.2023,RESIDENT SERVICES,LONDON TOOLS LIMITED,396,SUPPORTED HOSTELS,MATERIALS,5902569310,1000003017
06.03.2023,RESIDENT SERVICES,LONDON TOOLS LIMITED,532.5,SUPPORTED HOSTELS,MATERIALS,5902569324,1000003017
06.03.2023,RESIDENT SERVICES,LONDON TOOLS LIMITED,"1,800.00",TA ESTATE VOIDS,MATERIALS,5902569419,1000003017
06.03.2023,RESIDENT SERVICES HGF,ST MUNGOS,"40,492.00",HOUSING OPTIONS,GRANTS,5902569436,1000017600
06.03.2023,RESIDENT SERVICES HGF,DOCUMENT OPTIONS LIMITED,268.02,HOUSING OPTIONS,OFFICE EXPENSES,5902569230,1000051744
06.03.2023,RESIDENT SERVICES HGF,EASYMOVE EA LIMITED,"29,082.14",PSL PLACEMENTS,EXTERNAL AGENCIES AND BODIES,5902569215,1000066859
06.03.2023,RESIDENT SERVICES HGF,BETHEL ROCK LTD,"24,161.50",PSL PLACEMENTS,EXTERNAL AGENCIES AND BODIES,5902569399,1000080864
06.03.2023,SBS OPERATIONS,AKW MEDI-CARE LTD,291.85,ROTHERHITHE & BERMONDSEY DD,MATERIALS,5902569281,1000047103
06.03.2023,SBS OPERATIONS,HOWDENS JOINERY CO,265.14,SR TEMPORARY ACCOMMODATION DD,MATERIALS,5902569250,1000027491
06.03.2023,SBS SUPPORT,HOWDENS JOINERY CO,256.54,DEPOT COSTS,MATERIALS,5902569212,1000027491
06.03.2023,SBS SUPPORT,HOWDENS JOINERY CO,332.66,DEPOT COSTS,MATERIALS,5902569212,1000027491
06.03.2023,SBS SUPPORT,HOWDENS JOINERY CO,401.02,DEPOT COSTS,MATERIALS,5902569212,1000027491
06.03.2023,SBS SUPPORT,LONDON TOOLS LIMITED,254.98,R & M OVERHEADS,MATERIALS,5902569417,1000003017
06.03.2023,SBS SUPPORT,LONDON TOOLS LIMITED,"3,950.00",R & M OVERHEADS,TELEPHONES (MOBILES),5902569426,1000003017
06.03.2023,SOUTHWARK BUILDING SERVICES,MOULD GROWTH CONSULTANTS LTD,"3,821.40",STORES/LOGISTICS,CREDITORS -GR/IR CLEARING ACCOUNT,5902569344,1003075
06.03.2023,SOUTHWARK BUILDING SERVICES,LAKEDALE POWER TOOLS,954,STORES/LOGISTICS,CREDITORS -GR/IR CLEARING ACCOUNT,5902569409,1015368
06.03.2023,SOUTHWARK BUILDING SERVICES,CROSSFOLD ELECTRICAL WHOLESALERS,331.5,STORES/LOGISTICS,CREDITORS -GR/IR CLEARING ACCOUNT,5902569327,1918395
06.03.2023,SOUTHWARK BUILDING SERVICES,CROSSFOLD ELECTRICAL WHOLESALERS,331.5,STORES/LOGISTICS,CREDITORS -GR/IR CLEARING ACCOUNT,5902569327,1918395
06.03.2023,SOUTHWARK BUILDING SERVICES,CROSSFOLD ELECTRICAL WHOLESALERS,"3,252.50",STORES/LOGISTICS,CREDITORS -GR/IR CLEARING ACCOUNT,5902569328,1918395
06.03.2023,SOUTHWARK BUILDING SERVICES,CROSSFOLD ELECTRICAL WHOLESALERS,"3,252.50",STORES/LOGISTICS,CREDITORS -GR/IR CLEARING ACCOUNT,5902569329,1918395
06.03.2023,SOUTHWARK BUILDING SERVICES,LONDON TOOLS LIMITED,256,STORES/LOGISTICS,CREDITORS -GR/IR CLEARING ACCOUNT,5902569315,1000003017
06.03.2023,SOUTHWARK BUILDING SERVICES,LONDON TOOLS LIMITED,319,STORES/LOGISTICS,CREDITORS -GR/IR CLEARING ACCOUNT,5902569318,1000003017
06.03.2023,SOUTHWARK BUILDING SERVICES,LONDON TOOLS LIMITED,341.5,STORES/LOGISTICS,CREDITORS -GR/IR CLEARING ACCOUNT,5902569433,1000003017
06.03.2023,SOUTHWARK BUILDING SERVICES,LONDON TOOLS LIMITED,543.75,STORES/LOGISTICS,CREDITORS -GR/IR CLEARING ACCOUNT,5902569356,1000003017
06.03.2023,SOUTHWARK BUILDING SERVICES,LONDON TOOLS LIMITED,543.75,STORES/LOGISTICS,CREDITORS -GR/IR CLEARING ACCOUNT,5902569432,1000003017
06.03.2023,SOUTHWARK BUILDING SERVICES,LONDON TOOLS LIMITED,720,STORES/LOGISTICS,CREDITORS -GR/IR CLEARING ACCOUNT,5902569431,1000003017
06.03.2023,SOUTHWARK BUILDING SERVICES,LONDON TOOLS LIMITED,"1,006.60",STORES/LOGISTICS,CREDITORS -GR/IR CLEARING ACCOUNT,5902569428,1000003017
06.03.2023,STRATEGIC FINANCE,JOHNSON AUSTIN LTD,900,PROPERTY RELATED INSURANCE,PROFESSIONAL FEES,5902568653,1000040202
07.03.2023,ADULT SOCIAL CARE,REDACTED PERSONAL DATA,488,APPOINTEESHIPS,OTHER PAYMENTS FOR CLIENTS,REDACTED,REDACTED
07.03.2023,ADULT SOCIAL CARE,VIVA ACCESS LTD,"2,000.00",ASW - PROFESSIONAL DEVELOPMENT,TRAINING,5902569652,1000080389
07.03.2023,ADULT SOCIAL CARE,MEDACS HOMECARE,276.8,LD LTS 18-64,HOMECARE - C&V,2103632000,11287415
07.03.2023,ADULT SOCIAL CARE,MEDACS HOMECARE,774.4,LD LTS 18-64,HOMECARE - C&V,2103632010,11287415
07.03.2023,ADULT SOCIAL CARE,MEDACS HOMECARE,"2,076.00",LD LTS 18-64,HOMECARE - C&V,2103632009,11287415
07.03.2023,ADULT SOCIAL CARE,SAGECARE LTD,346.63,LD LTS 18-64,HOMECARE - C&V,2103632045,1000080924
07.03.2023,ADULT SOCIAL CARE,SAGECARE LTD,"1,096.69",LD LTS 18-64,HOMECARE - C&V,2103632026,1000080924
07.03.2023,ADULT SOCIAL CARE,MEDACS HOMECARE,276.8,LD LTS 18-64,SUPPORTED LIVING,2103632001,11287415
07.03.2023,ADULT SOCIAL CARE,MEDACS HOMECARE,346,LD LTS 18-64,SUPPORTED LIVING,2103632005,11287415
07.03.2023,ADULT SOCIAL CARE,MEDACS HOMECARE,740.16,LD LTS 18-64,SUPPORTED LIVING,2103632002,11287415
07.03.2023,ADULT SOCIAL CARE,MEDACS HOMECARE,968.8,LD LTS 18-64,SUPPORTED LIVING,2103632008,11287415
07.03.2023,ADULT SOCIAL CARE,MEDACS HOMECARE,"1,557.00",LD LTS 18-64,SUPPORTED LIVING,2103632003,11287415
07.03.2023,ADULT SOCIAL CARE,MEDACS HOMECARE,"1,695.40",LD LTS 18-64,SUPPORTED LIVING,2103632004,11287415
07.03.2023,ADULT SOCIAL CARE,CARE HAND SERVICE LTD,"2,400.00",LD LTS 18-64,SUPPORTED LIVING,2103632213,1000089342
07.03.2023,ADULT SOCIAL CARE,CARE HAND SERVICE LTD,"2,400.00",LD LTS 18-64,SUPPORTED LIVING,2103632214,1000089342
07.03.2023,ADULT SOCIAL CARE,REDACTED PERSONAL DATA,568.96,LD LTS 18-64,SUPPORTED LIVING,REDACTED,REDACTED
07.03.2023,ADULT SOCIAL CARE,REDACTED PERSONAL DATA,568.96,LD LTS 18-64,SUPPORTED LIVING,REDACTED,REDACTED
07.03.2023,ADULT SOCIAL CARE,REDACTED PERSONAL DATA,640.08,LD LTS 18-64,SUPPORTED LIVING,REDACTED,REDACTED
07.03.2023,ADULT SOCIAL CARE,REDACTED PERSONAL DATA,640.08,LD LTS 18-64,SUPPORTED LIVING,REDACTED,REDACTED
07.03.2023,ADULT SOCIAL CARE,REDACTED PERSONAL DATA,711.2,LD LTS 18-64,SUPPORTED LIVING,REDACTED,REDACTED
07.03.2023,ADULT SOCIAL CARE,REDACTED PERSONAL DATA,711.2,LD LTS 18-64,SUPPORTED LIVING,REDACTED,REDACTED
07.03.2023,ADULT SOCIAL CARE,REDACTED PERSONAL DATA,"1,102.36",LD LTS 18-64,SUPPORTED LIVING,REDACTED,REDACTED
07.03.2023,ADULT SOCIAL CARE,SAGECARE LTD,888.25,LD LTS 65+,HOMECARE - C&V,2103632015,1000080924
07.03.2023,ADULT SOCIAL CARE,SAGECARE LTD,303.84,MEM LTS 65+,HOMECARE - C&V,2103632209,1000080924
07.03.2023,ADULT SOCIAL CARE,SAGECARE LTD,660.17,MEM LTS 65+,HOMECARE - C&V,2103632173,1000080924
07.03.2023,ADULT SOCIAL CARE,SAGECARE LTD,679.2,MEM LTS 65+,HOMECARE - C&V,2103632012,1000080924
07.03.2023,ADULT SOCIAL CARE,SAGECARE LTD,731.4,MEM LTS 65+,HOMECARE - C&V,2103632027,1000080924
07.03.2023,ADULT SOCIAL CARE,SAGECARE LTD,917.26,MEM LTS 65+,HOMECARE - C&V,2103632106,1000080924
07.03.2023,ADULT SOCIAL CARE,SAGECARE LTD,943.22,MEM LTS 65+,HOMECARE - C&V,2103632185,1000080924
07.03.2023,ADULT SOCIAL CARE,SAGECARE LTD,967.15,MEM LTS 65+,HOMECARE - C&V,2103632018,1000080924
07.03.2023,ADULT SOCIAL CARE,SAGECARE LTD,"2,707.25",MEM LTS 65+,HOMECARE - C&V,2103632039,1000080924
07.03.2023,ADULT SOCIAL CARE,SAGECARE LTD,303.84,MH LTS 18-64,HOMECARE - C&V,2103632169,1000080924
07.03.2023,ADULT SOCIAL CARE,SAGECARE LTD,308.59,MH LTS 18-64,HOMECARE - C&V,2103632207,1000080924
07.03.2023,ADULT SOCIAL CARE,SAGECARE LTD,327.72,MH LTS 18-64,HOMECARE - C&V,2103632142,1000080924
07.03.2023,ADULT SOCIAL CARE,SAGECARE LTD,337.11,MH LTS 18-64,HOMECARE - C&V,2103632140,1000080924
07.03.2023,ADULT SOCIAL CARE,SAGECARE LTD,337.13,MH LTS 18-64,HOMECARE - C&V,2103632172,1000080924
07.03.2023,ADULT SOCIAL CARE,SAGECARE LTD,436.78,MH LTS 18-64,HOMECARE - C&V,2103632158,1000080924
07.03.2023,ADULT SOCIAL CARE,SAGECARE LTD,"1,329.39",MH LTS 18-64,HOMECARE - C&V,2103632028,1000080924
07.03.2023,ADULT SOCIAL CARE,REDACTED PERSONAL DATA,284.48,MH LTS 18-64,SUPPORTED LIVING,REDACTED,REDACTED
07.03.2023,ADULT SOCIAL CARE,REDACTED PERSONAL DATA,284.48,MH LTS 18-64,SUPPORTED LIVING,REDACTED,REDACTED
07.03.2023,ADULT SOCIAL CARE,REDACTED PERSONAL DATA,284.48,MH LTS 18-64,SUPPORTED LIVING,REDACTED,REDACTED
07.03.2023,ADULT SOCIAL CARE,REDACTED PERSONAL DATA,284.48,MH LTS 18-64,SUPPORTED LIVING,REDACTED,REDACTED
07.03.2023,ADULT SOCIAL CARE,REDACTED PERSONAL DATA,284.48,MH LTS 18-64,SUPPORTED LIVING,REDACTED,REDACTED
07.03.2023,ADULT SOCIAL CARE,REDACTED PERSONAL DATA,284.48,MH LTS 18-64,SUPPORTED LIVING,REDACTED,REDACTED
07.03.2023,ADULT SOCIAL CARE,REDACTED PERSONAL DATA,284.48,MH LTS 18-64,SUPPORTED LIVING,REDACTED,REDACTED
07.03.2023,ADULT SOCIAL CARE,REDACTED PERSONAL DATA,284.48,MH LTS 18-64,SUPPORTED LIVING,REDACTED,REDACTED
07.03.2023,ADULT SOCIAL CARE,REDACTED PERSONAL DATA,284.48,MH LTS 18-64,SUPPORTED LIVING,REDACTED,REDACTED
07.03.2023,ADULT SOCIAL CARE,REDACTED PERSONAL DATA,284.48,MH LTS 18-64,SUPPORTED LIVING,REDACTED,REDACTED
07.03.2023,ADULT SOCIAL CARE,REDACTED PERSONAL DATA,284.48,MH LTS 18-64,SUPPORTED LIVING,REDACTED,REDACTED
07.03.2023,ADULT SOCIAL CARE,REDACTED PERSONAL DATA,284.48,MH LTS 18-64,SUPPORTED LIVING,REDACTED,REDACTED
07.03.2023,ADULT SOCIAL CARE,REDACTED PERSONAL DATA,284.48,MH LTS 18-64,SUPPORTED LIVING,REDACTED,REDACTED
07.03.2023,ADULT SOCIAL CARE,REDACTED PERSONAL DATA,284.48,MH LTS 18-64,SUPPORTED LIVING,REDACTED,REDACTED
07.03.2023,ADULT SOCIAL CARE,REDACTED PERSONAL DATA,284.48,MH LTS 18-64,SUPPORTED LIVING,REDACTED,REDACTED
07.03.2023,ADULT SOCIAL CARE,REDACTED PERSONAL DATA,284.48,MH LTS 18-64,SUPPORTED LIVING,REDACTED,REDACTED
07.03.2023,ADULT SOCIAL CARE,REDACTED PERSONAL DATA,284.48,MH LTS 18-64,SUPPORTED LIVING,REDACTED,REDACTED
07.03.2023,ADULT SOCIAL CARE,REDACTED PERSONAL DATA,284.48,MH LTS 18-64,SUPPORTED LIVING,REDACTED,REDACTED
07.03.2023,ADULT SOCIAL CARE,REDACTED PERSONAL DATA,284.48,MH LTS 18-64,SUPPORTED LIVING,REDACTED,REDACTED
07.03.2023,ADULT SOCIAL CARE,REDACTED PERSONAL DATA,284.48,MH LTS 18-64,SUPPORTED LIVING,REDACTED,REDACTED
07.03.2023,ADULT SOCIAL CARE,REDACTED PERSONAL DATA,284.48,MH LTS 18-64,SUPPORTED LIVING,REDACTED,REDACTED
07.03.2023,ADULT SOCIAL CARE,REDACTED PERSONAL DATA,284.48,MH LTS 18-64,SUPPORTED LIVING,REDACTED,REDACTED
07.03.2023,ADULT SOCIAL CARE,REDACTED PERSONAL DATA,284.48,MH LTS 18-64,SUPPORTED LIVING,REDACTED,REDACTED
07.03.2023,ADULT SOCIAL CARE,REDACTED PERSONAL DATA,301.6,MH LTS 18-64,SUPPORTED LIVING,REDACTED,REDACTED
07.03.2023,ADULT SOCIAL CARE,REDACTED PERSONAL DATA,320.04,MH LTS 18-64,SUPPORTED LIVING,REDACTED,REDACTED
07.03.2023,ADULT SOCIAL CARE,REDACTED PERSONAL DATA,320.04,MH LTS 18-64,SUPPORTED LIVING,REDACTED,REDACTED
07.03.2023,ADULT SOCIAL CARE,REDACTED PERSONAL DATA,320.04,MH LTS 18-64,SUPPORTED LIVING,REDACTED,REDACTED
07.03.2023,ADULT SOCIAL CARE,REDACTED PERSONAL DATA,320.04,MH LTS 18-64,SUPPORTED LIVING,REDACTED,REDACTED
07.03.2023,ADULT SOCIAL CARE,REDACTED PERSONAL DATA,320.04,MH LTS 18-64,SUPPORTED LIVING,REDACTED,REDACTED
07.03.2023,ADULT SOCIAL CARE,REDACTED PERSONAL DATA,320.04,MH LTS 18-64,SUPPORTED LIVING,REDACTED,REDACTED
07.03.2023,ADULT SOCIAL CARE,REDACTED PERSONAL DATA,320.04,MH LTS 18-64,SUPPORTED LIVING,REDACTED,REDACTED
07.03.2023,ADULT SOCIAL CARE,REDACTED PERSONAL DATA,320.04,MH LTS 18-64,SUPPORTED LIVING,REDACTED,REDACTED
07.03.2023,ADULT SOCIAL CARE,REDACTED PERSONAL DATA,320.04,MH LTS 18-64,SUPPORTED LIVING,REDACTED,REDACTED
07.03.2023,ADULT SOCIAL CARE,REDACTED PERSONAL DATA,320.04,MH LTS 18-64,SUPPORTED LIVING,REDACTED,REDACTED
07.03.2023,ADULT SOCIAL CARE,REDACTED PERSONAL DATA,355.6,MH LTS 18-64,SUPPORTED LIVING,REDACTED,REDACTED
07.03.2023,ADULT SOCIAL CARE,REDACTED PERSONAL DATA,355.6,MH LTS 18-64,SUPPORTED LIVING,REDACTED,REDACTED
07.03.2023,ADULT SOCIAL CARE,REDACTED PERSONAL DATA,355.6,MH LTS 18-64,SUPPORTED LIVING,REDACTED,REDACTED
07.03.2023,ADULT SOCIAL CARE,REDACTED PERSONAL DATA,355.6,MH LTS 18-64,SUPPORTED LIVING,REDACTED,REDACTED
07.03.2023,ADULT SOCIAL CARE,REDACTED PERSONAL DATA,355.6,MH LTS 18-64,SUPPORTED LIVING,REDACTED,REDACTED
07.03.2023,ADULT SOCIAL CARE,REDACTED PERSONAL DATA,426.72,MH LTS 18-64,SUPPORTED LIVING,REDACTED,REDACTED
07.03.2023,ADULT SOCIAL CARE,REDACTED PERSONAL DATA,426.72,MH LTS 18-64,SUPPORTED LIVING,REDACTED,REDACTED
07.03.2023,ADULT SOCIAL CARE,REDACTED PERSONAL DATA,426.72,MH LTS 18-64,SUPPORTED LIVING,REDACTED,REDACTED
07.03.2023,ADULT SOCIAL CARE,REDACTED PERSONAL DATA,426.72,MH LTS 18-64,SUPPORTED LIVING,REDACTED,REDACTED
07.03.2023,ADULT SOCIAL CARE,REDACTED PERSONAL DATA,426.72,MH LTS 18-64,SUPPORTED LIVING,REDACTED,REDACTED
07.03.2023,ADULT SOCIAL CARE,REDACTED PERSONAL DATA,426.72,MH LTS 18-64,SUPPORTED LIVING,REDACTED,REDACTED
07.03.2023,ADULT SOCIAL CARE,REDACTED PERSONAL DATA,426.72,MH LTS 18-64,SUPPORTED LIVING,REDACTED,REDACTED
07.03.2023,ADULT SOCIAL CARE,REDACTED PERSONAL DATA,426.72,MH LTS 18-64,SUPPORTED LIVING,REDACTED,REDACTED
07.03.2023,ADULT SOCIAL CARE,REDACTED PERSONAL DATA,462.28,MH LTS 18-64,SUPPORTED LIVING,REDACTED,REDACTED
07.03.2023,ADULT SOCIAL CARE,REDACTED PERSONAL DATA,462.28,MH LTS 18-64,SUPPORTED LIVING,REDACTED,REDACTED
07.03.2023,ADULT SOCIAL CARE,REDACTED PERSONAL DATA,462.28,MH LTS 18-64,SUPPORTED LIVING,REDACTED,REDACTED
07.03.2023,ADULT SOCIAL CARE,REDACTED PERSONAL DATA,462.28,MH LTS 18-64,SUPPORTED LIVING,REDACTED,REDACTED
07.03.2023,ADULT SOCIAL CARE,REDACTED PERSONAL DATA,462.28,MH LTS 18-64,SUPPORTED LIVING,REDACTED,REDACTED
07.03.2023,ADULT SOCIAL CARE,REDACTED PERSONAL DATA,462.28,MH LTS 18-64,SUPPORTED LIVING,REDACTED,REDACTED
07.03.2023,ADULT SOCIAL CARE,REDACTED PERSONAL DATA,497.84,MH LTS 18-64,SUPPORTED LIVING,REDACTED,REDACTED
07.03.2023,ADULT SOCIAL CARE,REDACTED PERSONAL DATA,497.84,MH LTS 18-64,SUPPORTED LIVING,REDACTED,REDACTED
07.03.2023,ADULT SOCIAL CARE,REDACTED PERSONAL DATA,497.84,MH LTS 18-64,SUPPORTED LIVING,REDACTED,REDACTED
07.03.2023,ADULT SOCIAL CARE,REDACTED PERSONAL DATA,497.84,MH LTS 18-64,SUPPORTED LIVING,REDACTED,REDACTED
07.03.2023,ADULT SOCIAL CARE,REDACTED PERSONAL DATA,497.84,MH LTS 18-64,SUPPORTED LIVING,REDACTED,REDACTED
07.03.2023,ADULT SOCIAL CARE,REDACTED PERSONAL DATA,497.84,MH LTS 18-64,SUPPORTED LIVING,REDACTED,REDACTED
07.03.2023,ADULT SOCIAL CARE,REDACTED PERSONAL DATA,533.4,MH LTS 18-64,SUPPORTED LIVING,REDACTED,REDACTED
07.03.2023,ADULT SOCIAL CARE,REDACTED PERSONAL DATA,533.4,MH LTS 18-64,SUPPORTED LIVING,REDACTED,REDACTED
07.03.2023,ADULT SOCIAL CARE,REDACTED PERSONAL DATA,568.96,MH LTS 18-64,SUPPORTED LIVING,REDACTED,REDACTED
07.03.2023,ADULT SOCIAL CARE,REDACTED PERSONAL DATA,568.96,MH LTS 18-64,SUPPORTED LIVING,REDACTED,REDACTED
07.03.2023,ADULT SOCIAL CARE,REDACTED PERSONAL DATA,568.96,MH LTS 18-64,SUPPORTED LIVING,REDACTED,REDACTED
07.03.2023,ADULT SOCIAL CARE,REDACTED PERSONAL DATA,568.96,MH LTS 18-64,SUPPORTED LIVING,REDACTED,REDACTED
07.03.2023,ADULT SOCIAL CARE,REDACTED PERSONAL DATA,640.08,MH LTS 18-64,SUPPORTED LIVING,REDACTED,REDACTED
07.03.2023,ADULT SOCIAL CARE,REDACTED PERSONAL DATA,640.08,MH LTS 18-64,SUPPORTED LIVING,REDACTED,REDACTED
07.03.2023,ADULT SOCIAL CARE,REDACTED PERSONAL DATA,675.64,MH LTS 18-64,SUPPORTED LIVING,REDACTED,REDACTED
07.03.2023,ADULT SOCIAL CARE,REDACTED PERSONAL DATA,675.64,MH LTS 18-64,SUPPORTED LIVING,REDACTED,REDACTED
07.03.2023,ADULT SOCIAL CARE,REDACTED PERSONAL DATA,675.64,MH LTS 18-64,SUPPORTED LIVING,REDACTED,REDACTED
07.03.2023,ADULT SOCIAL CARE,REDACTED PERSONAL DATA,716.3,MH LTS 18-64,SUPPORTED LIVING,REDACTED,REDACTED
07.03.2023,ADULT SOCIAL CARE,REDACTED PERSONAL DATA,782.32,MH LTS 18-64,SUPPORTED LIVING,REDACTED,REDACTED
07.03.2023,ADULT SOCIAL CARE,REDACTED PERSONAL DATA,829.4,MH LTS 18-64,SUPPORTED LIVING,REDACTED,REDACTED
07.03.2023,ADULT SOCIAL CARE,REDACTED PERSONAL DATA,977.9,MH LTS 18-64,SUPPORTED LIVING,REDACTED,REDACTED
07.03.2023,ADULT SOCIAL CARE,REDACTED PERSONAL DATA,977.9,MH LTS 18-64,SUPPORTED LIVING,REDACTED,REDACTED
07.03.2023,ADULT SOCIAL CARE,REDACTED PERSONAL DATA,995.68,MH LTS 18-64,SUPPORTED LIVING,REDACTED,REDACTED
07.03.2023,ADULT SOCIAL CARE,REDACTED PERSONAL DATA,995.68,MH LTS 18-64,SUPPORTED LIVING,REDACTED,REDACTED
07.03.2023,ADULT SOCIAL CARE,REDACTED PERSONAL DATA,995.68,MH LTS 18-64,SUPPORTED LIVING,REDACTED,REDACTED
07.03.2023,ADULT SOCIAL CARE,REDACTED PERSONAL DATA,"1,055.60",MH LTS 18-64,SUPPORTED LIVING,REDACTED,REDACTED
07.03.2023,ADULT SOCIAL CARE,REDACTED PERSONAL DATA,"1,280.16",MH LTS 18-64,SUPPORTED LIVING,REDACTED,REDACTED
07.03.2023,ADULT SOCIAL CARE,SAGECARE LTD,265.88,MH LTS 65+,HOMECARE - C&V,2103632111,1000080924
07.03.2023,ADULT SOCIAL CARE,SAGECARE LTD,518.5,MH LTS 65+,HOMECARE - C&V,2103632051,1000080924
07.03.2023,ADULT SOCIAL CARE,SAGECARE LTD,645.68,MH LTS 65+,HOMECARE - C&V,2103632055,1000080924
07.03.2023,ADULT SOCIAL CARE,SAGECARE LTD,693.41,MH LTS 65+,HOMECARE - C&V,2103632153,1000080924
07.03.2023,ADULT SOCIAL CARE,SAGECARE LTD,845.2,MH LTS 65+,HOMECARE - C&V,2103632092,1000080924
07.03.2023,ADULT SOCIAL CARE,SAGECARE LTD,935.4,MH LTS 65+,HOMECARE - C&V,2103632155,1000080924
07.03.2023,ADULT SOCIAL CARE,REDACTED PERSONAL DATA,284.48,MH LTS 65+,SUPPORTED LIVING,REDACTED,REDACTED
07.03.2023,ADULT SOCIAL CARE,REDACTED PERSONAL DATA,284.48,MH LTS 65+,SUPPORTED LIVING,REDACTED,REDACTED
07.03.2023,ADULT SOCIAL CARE,REDACTED PERSONAL DATA,408.94,MH LTS 65+,SUPPORTED LIVING,REDACTED,REDACTED
07.03.2023,ADULT SOCIAL CARE,REDACTED PERSONAL DATA,408.94,MH LTS 65+,SUPPORTED LIVING,REDACTED,REDACTED
07.03.2023,ADULT SOCIAL CARE,REDACTED PERSONAL DATA,426.72,MH LTS 65+,SUPPORTED LIVING,REDACTED,REDACTED
07.03.2023,ADULT SOCIAL CARE,REDACTED PERSONAL DATA,426.72,MH LTS 65+,SUPPORTED LIVING,REDACTED,REDACTED
07.03.2023,ADULT SOCIAL CARE,REDACTED PERSONAL DATA,782.32,MH LTS 65+,SUPPORTED LIVING,REDACTED,REDACTED
07.03.2023,ADULT SOCIAL CARE,REDACTED PERSONAL DATA,782.32,MH LTS 65+,SUPPORTED LIVING,REDACTED,REDACTED
07.03.2023,ADULT SOCIAL CARE,REDACTED PERSONAL DATA,853.44,MH LTS 65+,SUPPORTED LIVING,REDACTED,REDACTED
07.03.2023,ADULT SOCIAL CARE,REDACTED PERSONAL DATA,853.44,MH LTS 65+,SUPPORTED LIVING,REDACTED,REDACTED
07.03.2023,ADULT SOCIAL CARE,REDACTED PERSONAL DATA,"1,351.28",MH LTS 65+,SUPPORTED LIVING,REDACTED,REDACTED
07.03.2023,ADULT SOCIAL CARE,REDACTED PERSONAL DATA,"1,351.28",MH LTS 65+,SUPPORTED LIVING,REDACTED,REDACTED
07.03.2023,ADULT SOCIAL CARE,NATIONAL YOUTH ADVOCACY SERVICE,394,ORIENT ST � RESPITE,SERVICE CHARGES,5902569572,1000083351
07.03.2023,ADULT SOCIAL CARE,MEDACS HOMECARE,276.8,PHY LTS 18-64,HOMECARE - C&V,2103632006,11287415
07.03.2023,ADULT SOCIAL CARE,SAGECARE LTD,265.87,PHY LTS 18-64,HOMECARE - C&V,2103632089,1000080924
07.03.2023,ADULT SOCIAL CARE,SAGECARE LTD,280.06,PHY LTS 18-64,HOMECARE - C&V,2103632171,1000080924
07.03.2023,ADULT SOCIAL CARE,SAGECARE LTD,327.7,PHY LTS 18-64,HOMECARE - C&V,2103632082,1000080924
07.03.2023,ADULT SOCIAL CARE,SAGECARE LTD,336.25,PHY LTS 18-64,HOMECARE - C&V,2103632183,1000080924
07.03.2023,ADULT SOCIAL CARE,SAGECARE LTD,346.55,PHY LTS 18-64,HOMECARE - C&V,2103632189,1000080924
07.03.2023,ADULT SOCIAL CARE,SAGECARE LTD,358.62,PHY LTS 18-64,HOMECARE - C&V,2103632164,1000080924
07.03.2023,ADULT SOCIAL CARE,SAGECARE LTD,370.28,PHY LTS 18-64,HOMECARE - C&V,2103632201,1000080924
07.03.2023,ADULT SOCIAL CARE,SAGECARE LTD,398.72,PHY LTS 18-64,HOMECARE - C&V,2103632147,1000080924
07.03.2023,ADULT SOCIAL CARE,SAGECARE LTD,422.49,PHY LTS 18-64,HOMECARE - C&V,2103632151,1000080924
07.03.2023,ADULT SOCIAL CARE,SAGECARE LTD,460.67,PHY LTS 18-64,HOMECARE - C&V,2103632025,1000080924
07.03.2023,ADULT SOCIAL CARE,SAGECARE LTD,569.8,PHY LTS 18-64,HOMECARE - C&V,2103632063,1000080924
07.03.2023,ADULT SOCIAL CARE,SAGECARE LTD,629,PHY LTS 18-64,HOMECARE - C&V,2103632043,1000080924
07.03.2023,ADULT SOCIAL CARE,SAGECARE LTD,630,PHY LTS 18-64,HOMECARE - C&V,2103632066,1000080924
07.03.2023,ADULT SOCIAL CARE,SAGECARE LTD,631.51,PHY LTS 18-64,HOMECARE - C&V,2103632047,1000080924
07.03.2023,ADULT SOCIAL CARE,SAGECARE LTD,636.25,PHY LTS 18-64,HOMECARE - C&V,2103632179,1000080924
07.03.2023,ADULT SOCIAL CARE,SAGECARE LTD,659.98,PHY LTS 18-64,HOMECARE - C&V,2103632117,1000080924
07.03.2023,ADULT SOCIAL CARE,SAGECARE LTD,707.59,PHY LTS 18-64,HOMECARE - C&V,2103632060,1000080924
07.03.2023,ADULT SOCIAL CARE,SAGECARE LTD,748.62,PHY LTS 18-64,HOMECARE - C&V,2103632069,1000080924
07.03.2023,ADULT SOCIAL CARE,SAGECARE LTD,759.62,PHY LTS 18-64,HOMECARE - C&V,2103632178,1000080924
07.03.2023,ADULT SOCIAL CARE,SAGECARE LTD,816.62,PHY LTS 18-64,HOMECARE - C&V,2103632075,1000080924
07.03.2023,ADULT SOCIAL CARE,SAGECARE LTD,911.64,PHY LTS 18-64,HOMECARE - C&V,2103632072,1000080924
07.03.2023,ADULT SOCIAL CARE,SAGECARE LTD,"1,016.11",PHY LTS 18-64,HOMECARE - C&V,2103632196,1000080924
07.03.2023,ADULT SOCIAL CARE,SAGECARE LTD,"1,057.63",PHY LTS 18-64,HOMECARE - C&V,2103632050,1000080924
07.03.2023,ADULT SOCIAL CARE,SAGECARE LTD,"1,117.75",PHY LTS 18-64,HOMECARE - C&V,2103632041,1000080924
07.03.2023,ADULT SOCIAL CARE,SAGECARE LTD,"1,148.94",PHY LTS 18-64,HOMECARE - C&V,2103632107,1000080924
07.03.2023,ADULT SOCIAL CARE,SAGECARE LTD,"1,234.60",PHY LTS 18-64,HOMECARE - C&V,2103632156,1000080924
07.03.2023,ADULT SOCIAL CARE,SAGECARE LTD,"1,253.72",PHY LTS 18-64,HOMECARE - C&V,2103632191,1000080924
07.03.2023,ADULT SOCIAL CARE,SAGECARE LTD,"1,333.62",PHY LTS 18-64,HOMECARE - C&V,2103632197,1000080924
07.03.2023,ADULT SOCIAL CARE,SAGECARE LTD,"1,495.89",PHY LTS 18-64,HOMECARE - C&V,2103632020,1000080924
07.03.2023,ADULT SOCIAL CARE,SAGECARE LTD,"1,737.82",PHY LTS 18-64,HOMECARE - C&V,2103632168,1000080924
07.03.2023,ADULT SOCIAL CARE,SAGECARE LTD,"1,998.76",PHY LTS 18-64,HOMECARE - C&V,2103632119,1000080924
07.03.2023,ADULT SOCIAL CARE,SAGECARE LTD,"2,995.68",PHY LTS 18-64,HOMECARE - C&V,2103632109,1000080924
07.03.2023,ADULT SOCIAL CARE,BLISSETT CARE LTD,"11,834.52",PHY LTS 65+,HOMECARE - C&V,5902569485,1000042627
07.03.2023,ADULT SOCIAL CARE,BLISSETT CARE LTD,"18,333.66",PHY LTS 65+,HOMECARE - C&V,5902569485,1000042627
07.03.2023,ADULT SOCIAL CARE,SAGECARE LTD,257.32,PHY LTS 65+,HOMECARE - C&V,2103632167,1000080924
07.03.2023,ADULT SOCIAL CARE,SAGECARE LTD,260.27,PHY LTS 65+,HOMECARE - C&V,2103632077,1000080924
07.03.2023,ADULT SOCIAL CARE,SAGECARE LTD,266,PHY LTS 65+,HOMECARE - C&V,2103632165,1000080924
07.03.2023,ADULT SOCIAL CARE,SAGECARE LTD,299.2,PHY LTS 65+,HOMECARE - C&V,2103632205,1000080924
07.03.2023,ADULT SOCIAL CARE,SAGECARE LTD,341.98,PHY LTS 65+,HOMECARE - C&V,2103632105,1000080924
07.03.2023,ADULT SOCIAL CARE,SAGECARE LTD,380,PHY LTS 65+,HOMECARE - C&V,2103632076,1000080924
07.03.2023,ADULT SOCIAL CARE,SAGECARE LTD,393.98,PHY LTS 65+,HOMECARE - C&V,2103632058,1000080924
07.03.2023,ADULT SOCIAL CARE,SAGECARE LTD,394.12,PHY LTS 65+,HOMECARE - C&V,2103632121,1000080924
07.03.2023,ADULT SOCIAL CARE,SAGECARE LTD,398.74,PHY LTS 65+,HOMECARE - C&V,2103632103,1000080924
07.03.2023,ADULT SOCIAL CARE,SAGECARE LTD,403.47,PHY LTS 65+,HOMECARE - C&V,2103632125,1000080924
07.03.2023,ADULT SOCIAL CARE,SAGECARE LTD,403.5,PHY LTS 65+,HOMECARE - C&V,2103632102,1000080924
07.03.2023,ADULT SOCIAL CARE,SAGECARE LTD,408.22,PHY LTS 65+,HOMECARE - C&V,2103632095,1000080924
07.03.2023,ADULT SOCIAL CARE,SAGECARE LTD,427.34,PHY LTS 65+,HOMECARE - C&V,2103632079,1000080924
07.03.2023,ADULT SOCIAL CARE,SAGECARE LTD,432.06,PHY LTS 65+,HOMECARE - C&V,2103632034,1000080924
07.03.2023,ADULT SOCIAL CARE,SAGECARE LTD,469.97,PHY LTS 65+,HOMECARE - C&V,2103632035,1000080924
07.03.2023,ADULT SOCIAL CARE,SAGECARE LTD,481.34,PHY LTS 65+,HOMECARE - C&V,2103632176,1000080924
07.03.2023,ADULT SOCIAL CARE,SAGECARE LTD,489.24,PHY LTS 65+,HOMECARE - C&V,2103632029,1000080924
07.03.2023,ADULT SOCIAL CARE,SAGECARE LTD,493.73,PHY LTS 65+,HOMECARE - C&V,2103632093,1000080924
07.03.2023,ADULT SOCIAL CARE,SAGECARE LTD,498.48,PHY LTS 65+,HOMECARE - C&V,2103632083,1000080924
07.03.2023,ADULT SOCIAL CARE,SAGECARE LTD,512.99,PHY LTS 65+,HOMECARE - C&V,2103632120,1000080924
07.03.2023,ADULT SOCIAL CARE,SAGECARE LTD,517.59,PHY LTS 65+,HOMECARE - C&V,2103632068,1000080924
07.03.2023,ADULT SOCIAL CARE,SAGECARE LTD,522.49,PHY LTS 65+,HOMECARE - C&V,2103632053,1000080924
07.03.2023,ADULT SOCIAL CARE,SAGECARE LTD,531.72,PHY LTS 65+,HOMECARE - C&V,2103632194,1000080924
07.03.2023,ADULT SOCIAL CARE,SAGECARE LTD,560.31,PHY LTS 65+,HOMECARE - C&V,2103632104,1000080924
07.03.2023,ADULT SOCIAL CARE,SAGECARE LTD,574.44,PHY LTS 65+,HOMECARE - C&V,2103632200,1000080924
07.03.2023,ADULT SOCIAL CARE,SAGECARE LTD,574.51,PHY LTS 65+,HOMECARE - C&V,2103632059,1000080924
07.03.2023,ADULT SOCIAL CARE,SAGECARE LTD,617.18,PHY LTS 65+,HOMECARE - C&V,2103632150,1000080924
07.03.2023,ADULT SOCIAL CARE,SAGECARE LTD,621.98,PHY LTS 65+,HOMECARE - C&V,2103632086,1000080924
07.03.2023,ADULT SOCIAL CARE,SAGECARE LTD,622,PHY LTS 65+,HOMECARE - C&V,2103632046,1000080924
07.03.2023,ADULT SOCIAL CARE,SAGECARE LTD,650.48,PHY LTS 65+,HOMECARE - C&V,2103632062,1000080924
07.03.2023,ADULT SOCIAL CARE,SAGECARE LTD,650.48,PHY LTS 65+,HOMECARE - C&V,2103632126,1000080924
07.03.2023,ADULT SOCIAL CARE,SAGECARE LTD,655.21,PHY LTS 65+,HOMECARE - C&V,2103632184,1000080924
07.03.2023,ADULT SOCIAL CARE,SAGECARE LTD,655.24,PHY LTS 65+,HOMECARE - C&V,2103632198,1000080924
07.03.2023,ADULT SOCIAL CARE,SAGECARE LTD,677.04,PHY LTS 65+,HOMECARE - C&V,2103632115,1000080924
07.03.2023,ADULT SOCIAL CARE,SAGECARE LTD,683.8,PHY LTS 65+,HOMECARE - C&V,2103632071,1000080924
07.03.2023,ADULT SOCIAL CARE,SAGECARE LTD,702.71,PHY LTS 65+,HOMECARE - C&V,2103632124,1000080924
07.03.2023,ADULT SOCIAL CARE,SAGECARE LTD,735.94,PHY LTS 65+,HOMECARE - C&V,2103632098,1000080924
07.03.2023,ADULT SOCIAL CARE,SAGECARE LTD,736,PHY LTS 65+,HOMECARE - C&V,2103632101,1000080924
07.03.2023,ADULT SOCIAL CARE,SAGECARE LTD,736.02,PHY LTS 65+,HOMECARE - C&V,2103632199,1000080924
07.03.2023,ADULT SOCIAL CARE,SAGECARE LTD,736.04,PHY LTS 65+,HOMECARE - C&V,2103632100,1000080924
07.03.2023,ADULT SOCIAL CARE,SAGECARE LTD,764.38,PHY LTS 65+,HOMECARE - C&V,2103632036,1000080924
07.03.2023,ADULT SOCIAL CARE,SAGECARE LTD,769.21,PHY LTS 65+,HOMECARE - C&V,2103632030,1000080924
07.03.2023,ADULT SOCIAL CARE,SAGECARE LTD,777.75,PHY LTS 65+,HOMECARE - C&V,2103632177,1000080924
07.03.2023,ADULT SOCIAL CARE,SAGECARE LTD,779,PHY LTS 65+,HOMECARE - C&V,2103632141,1000080924
07.03.2023,ADULT SOCIAL CARE,SAGECARE LTD,783.47,PHY LTS 65+,HOMECARE - C&V,2103632116,1000080924
07.03.2023,ADULT SOCIAL CARE,SAGECARE LTD,788.17,PHY LTS 65+,HOMECARE - C&V,2103632088,1000080924
07.03.2023,ADULT SOCIAL CARE,SAGECARE LTD,797.65,PHY LTS 65+,HOMECARE - C&V,2103632033,1000080924
07.03.2023,ADULT SOCIAL CARE,SAGECARE LTD,807.3,PHY LTS 65+,HOMECARE - C&V,2103632208,1000080924
07.03.2023,ADULT SOCIAL CARE,SAGECARE LTD,821.24,PHY LTS 65+,HOMECARE - C&V,2103632022,1000080924
07.03.2023,ADULT SOCIAL CARE,SAGECARE LTD,830.89,PHY LTS 65+,HOMECARE - C&V,2103632195,1000080924
07.03.2023,ADULT SOCIAL CARE,SAGECARE LTD,850.14,PHY LTS 65+,HOMECARE - C&V,2103632136,1000080924
07.03.2023,ADULT SOCIAL CARE,SAGECARE LTD,854.69,PHY LTS 65+,HOMECARE - C&V,2103632190,1000080924
07.03.2023,ADULT SOCIAL CARE,SAGECARE LTD,864.46,PHY LTS 65+,HOMECARE - C&V,2103632073,1000080924
07.03.2023,ADULT SOCIAL CARE,SAGECARE LTD,866.72,PHY LTS 65+,HOMECARE - C&V,2103632108,1000080924
07.03.2023,ADULT SOCIAL CARE,SAGECARE LTD,879.75,PHY LTS 65+,HOMECARE - C&V,2103632056,1000080924
07.03.2023,ADULT SOCIAL CARE,SAGECARE LTD,882.78,PHY LTS 65+,HOMECARE - C&V,2103632019,1000080924
07.03.2023,ADULT SOCIAL CARE,SAGECARE LTD,911.53,PHY LTS 65+,HOMECARE - C&V,2103632132,1000080924
07.03.2023,ADULT SOCIAL CARE,SAGECARE LTD,925.98,PHY LTS 65+,HOMECARE - C&V,2103632061,1000080924
07.03.2023,ADULT SOCIAL CARE,SAGECARE LTD,992.43,PHY LTS 65+,HOMECARE - C&V,2103632112,1000080924
07.03.2023,ADULT SOCIAL CARE,SAGECARE LTD,"1,006.70",PHY LTS 65+,HOMECARE - C&V,2103632145,1000080924
07.03.2023,ADULT SOCIAL CARE,SAGECARE LTD,"1,011.41",PHY LTS 65+,HOMECARE - C&V,2103632074,1000080924
07.03.2023,ADULT SOCIAL CARE,SAGECARE LTD,"1,030.22",PHY LTS 65+,HOMECARE - C&V,2103632122,1000080924
07.03.2023,ADULT SOCIAL CARE,SAGECARE LTD,"1,030.44",PHY LTS 65+,HOMECARE - C&V,2103632032,1000080924
07.03.2023,ADULT SOCIAL CARE,SAGECARE LTD,"1,039.89",PHY LTS 65+,HOMECARE - C&V,2103632187,1000080924
07.03.2023,ADULT SOCIAL CARE,SAGECARE LTD,"1,039.97",PHY LTS 65+,HOMECARE - C&V,2103632054,1000080924
07.03.2023,ADULT SOCIAL CARE,SAGECARE LTD,"1,049.41",PHY LTS 65+,HOMECARE - C&V,2103632160,1000080924
07.03.2023,ADULT SOCIAL CARE,SAGECARE LTD,"1,058.97",PHY LTS 65+,HOMECARE - C&V,2103632070,1000080924
07.03.2023,ADULT SOCIAL CARE,SAGECARE LTD,"1,077.96",PHY LTS 65+,HOMECARE - C&V,2103632014,1000080924
07.03.2023,ADULT SOCIAL CARE,SAGECARE LTD,"1,092.16",PHY LTS 65+,HOMECARE - C&V,2103632157,1000080924
07.03.2023,ADULT SOCIAL CARE,SAGECARE LTD,"1,092.17",PHY LTS 65+,HOMECARE - C&V,2103632175,1000080924
07.03.2023,ADULT SOCIAL CARE,SAGECARE LTD,"1,116.00",PHY LTS 65+,HOMECARE - C&V,2103632021,1000080924
07.03.2023,ADULT SOCIAL CARE,SAGECARE LTD,"1,134.85",PHY LTS 65+,HOMECARE - C&V,2103632016,1000080924
07.03.2023,ADULT SOCIAL CARE,SAGECARE LTD,"1,139.63",PHY LTS 65+,HOMECARE - C&V,2103632031,1000080924
07.03.2023,ADULT SOCIAL CARE,SAGECARE LTD,"1,140.66",PHY LTS 65+,HOMECARE - C&V,2103632091,1000080924
07.03.2023,ADULT SOCIAL CARE,SAGECARE LTD,"1,147.50",PHY LTS 65+,HOMECARE - C&V,2103632049,1000080924
07.03.2023,ADULT SOCIAL CARE,SAGECARE LTD,"1,163.20",PHY LTS 65+,HOMECARE - C&V,2103632163,1000080924
07.03.2023,ADULT SOCIAL CARE,SAGECARE LTD,"1,182.22",PHY LTS 65+,HOMECARE - C&V,2103632081,1000080924
07.03.2023,ADULT SOCIAL CARE,SAGECARE LTD,"1,196.63",PHY LTS 65+,HOMECARE - C&V,2103632192,1000080924
07.03.2023,ADULT SOCIAL CARE,SAGECARE LTD,"1,196.70",PHY LTS 65+,HOMECARE - C&V,2103632084,1000080924
07.03.2023,ADULT SOCIAL CARE,SAGECARE LTD,"1,205.89",PHY LTS 65+,HOMECARE - C&V,2103632057,1000080924
07.03.2023,ADULT SOCIAL CARE,SAGECARE LTD,"1,206.09",PHY LTS 65+,HOMECARE - C&V,2103632080,1000080924
07.03.2023,ADULT SOCIAL CARE,SAGECARE LTD,"1,229.95",PHY LTS 65+,HOMECARE - C&V,2103632094,1000080924
07.03.2023,ADULT SOCIAL CARE,SAGECARE LTD,"1,244.25",PHY LTS 65+,HOMECARE - C&V,2103632078,1000080924
07.03.2023,ADULT SOCIAL CARE,SAGECARE LTD,"1,258.45",PHY LTS 65+,HOMECARE - C&V,2103632143,1000080924
07.03.2023,ADULT SOCIAL CARE,SAGECARE LTD,"1,343.89",PHY LTS 65+,HOMECARE - C&V,2103632118,1000080924
07.03.2023,ADULT SOCIAL CARE,SAGECARE LTD,"1,362.86",PHY LTS 65+,HOMECARE - C&V,2103632099,1000080924
07.03.2023,ADULT SOCIAL CARE,SAGECARE LTD,"1,405.77",PHY LTS 65+,HOMECARE - C&V,2103632139,1000080924
07.03.2023,ADULT SOCIAL CARE,SAGECARE LTD,"1,497.07",PHY LTS 65+,HOMECARE - C&V,2103632204,1000080924
07.03.2023,ADULT SOCIAL CARE,SAGECARE LTD,"1,557.36",PHY LTS 65+,HOMECARE - C&V,2103632087,1000080924
07.03.2023,ADULT SOCIAL CARE,SAGECARE LTD,"1,638.10",PHY LTS 65+,HOMECARE - C&V,2103632137,1000080924
07.03.2023,ADULT SOCIAL CARE,SAGECARE LTD,"1,704.74",PHY LTS 65+,HOMECARE - C&V,2103632131,1000080924
07.03.2023,ADULT SOCIAL CARE,SAGECARE LTD,"1,848.75",PHY LTS 65+,HOMECARE - C&V,2103632052,1000080924
07.03.2023,ADULT SOCIAL CARE,SAGECARE LTD,"1,951.18",PHY LTS 65+,HOMECARE - C&V,2103632188,1000080924
07.03.2023,ADULT SOCIAL CARE,SAGECARE LTD,"2,046.66",PHY LTS 65+,HOMECARE - C&V,2103632180,1000080924
07.03.2023,ADULT SOCIAL CARE,SAGECARE LTD,"2,050.83",PHY LTS 65+,HOMECARE - C&V,2103632040,1000080924
07.03.2023,ADULT SOCIAL CARE,SAGECARE LTD,"2,075.28",PHY LTS 65+,HOMECARE - C&V,2103632138,1000080924
07.03.2023,ADULT SOCIAL CARE,SAGECARE LTD,"2,089.42",PHY LTS 65+,HOMECARE - C&V,2103632203,1000080924
07.03.2023,ADULT SOCIAL CARE,SAGECARE LTD,"2,127.15",PHY LTS 65+,HOMECARE - C&V,2103632134,1000080924
07.03.2023,ADULT SOCIAL CARE,SAGECARE LTD,"2,198.80",PHY LTS 65+,HOMECARE - C&V,2103632042,1000080924
07.03.2023,ADULT SOCIAL CARE,SAGECARE LTD,"2,345.98",PHY LTS 65+,HOMECARE - C&V,2103632170,1000080924
07.03.2023,ADULT SOCIAL CARE,SAGECARE LTD,"2,440.84",PHY LTS 65+,HOMECARE - C&V,2103632182,1000080924
07.03.2023,ADULT SOCIAL CARE,SAGECARE LTD,"2,464.64",PHY LTS 65+,HOMECARE - C&V,2103632166,1000080924
07.03.2023,ADULT SOCIAL CARE,SAGECARE LTD,"2,521.32",PHY LTS 65+,HOMECARE - C&V,2103632067,1000080924
07.03.2023,ADULT SOCIAL CARE,SAGECARE LTD,"2,559.64",PHY LTS 65+,HOMECARE - C&V,2103632085,1000080924
07.03.2023,ADULT SOCIAL CARE,SAGECARE LTD,"2,616.70",PHY LTS 65+,HOMECARE - C&V,2103632146,1000080924
07.03.2023,ADULT SOCIAL CARE,SAGECARE LTD,"2,734.58",PHY LTS 65+,HOMECARE - C&V,2103632013,1000080924
07.03.2023,ADULT SOCIAL CARE,SAGECARE LTD,"2,749.28",PHY LTS 65+,HOMECARE - C&V,2103632162,1000080924
07.03.2023,ADULT SOCIAL CARE,SAGECARE LTD,"2,848.77",PHY LTS 65+,HOMECARE - C&V,2103632181,1000080924
07.03.2023,ADULT SOCIAL CARE,SAGECARE LTD,"2,858.14",PHY LTS 65+,HOMECARE - C&V,2103632065,1000080924
07.03.2023,ADULT SOCIAL CARE,SAGECARE LTD,"2,863.10",PHY LTS 65+,HOMECARE - C&V,2103632110,1000080924
07.03.2023,ADULT SOCIAL CARE,SAGECARE LTD,"2,891.17",PHY LTS 65+,HOMECARE - C&V,2103632048,1000080924
07.03.2023,ADULT SOCIAL CARE,SAGECARE LTD,"3,132.81",PHY LTS 65+,HOMECARE - C&V,2103632129,1000080924
07.03.2023,ADULT SOCIAL CARE,SAGECARE LTD,"3,275.45",PHY LTS 65+,HOMECARE - C&V,2103632206,1000080924
07.03.2023,ADULT SOCIAL CARE,SAGECARE LTD,"3,398.84",PHY LTS 65+,HOMECARE - C&V,2103632090,1000080924
07.03.2023,ADULT SOCIAL CARE,SAGECARE LTD,"3,474.76",PHY LTS 65+,HOMECARE - C&V,2103632212,1000080924
07.03.2023,ADULT SOCIAL CARE,SAGECARE LTD,"3,792.94",PHY LTS 65+,HOMECARE - C&V,2103632130,1000080924
07.03.2023,ADULT SOCIAL CARE,SAGECARE LTD,356.18,SEN LTS 65+,HOMECARE - C&V,2103632096,1000080924
07.03.2023,ADULT SOCIAL CARE,SAGECARE LTD,344.25,SOCIAL ISOLATION,HOMECARE - C&V,2103632159,1000080924
07.03.2023,ADULT SOCIAL CARE,SAGECARE LTD,356.79,SOCIAL ISOLATION,HOMECARE - C&V,2103632149,1000080924
07.03.2023,ADULT SOCIAL CARE,SAGECARE LTD,"2,045.95",SOCIAL ISOLATION,HOMECARE - C&V,2103632064,1000080924
07.03.2023,ADULT SOCIAL CARE,SAGECARE LTD,"2,829.94",SOCIAL ISOLATION,HOMECARE - C&V,2103632044,1000080924
07.03.2023,ADULT SOCIAL CARE,SAGECARE LTD,"3,242.53",SOCIAL ISOLATION,HOMECARE - C&V,2103632186,1000080924
07.03.2023,ADULT SOCIAL CARE,ELDERS SAFE HANDS PLUS LTD,"22,311.00",SPECIALIST CARE,SECTION 17 PAYMENTS TO AGENCIES/CARERS,2103631888,1000087058
07.03.2023,ADULT SOCIAL CARE,SAGECARE LTD,"1,291.76",SUB LTS 18-64,HOMECARE - C&V,2103632114,1000080924
07.03.2023,ASSET MANAGEMENT,ANTONY HODARI  SOLICITORS,"1,229.17",DISREPAIR,PAYMENTS FOR LEGAL SERVICES,2103631737,1000031040
07.03.2023,ASSET MANAGEMENT,ANTONY HODARI  SOLICITORS,"1,250.00",DISREPAIR,PAYMENTS FOR LEGAL SERVICES,2103631739,1000031040
07.03.2023,ASSET MANAGEMENT,ANTONY HODARI  SOLICITORS,"2,500.00",DISREPAIR,PAYMENTS FOR LEGAL SERVICES,2103631720,1000031040
07.03.2023,ASSET MANAGEMENT,ANTONY HODARI  SOLICITORS,"2,700.00",DISREPAIR,PAYMENTS FOR LEGAL SERVICES,2103631745,1000031040
07.03.2023,ASSET MANAGEMENT,ANTONY HODARI  SOLICITORS,"4,166.67",DISREPAIR,PAYMENTS FOR LEGAL SERVICES,2103631734,1000031040
07.03.2023,ASSET MANAGEMENT,ANTONY HODARI  SOLICITORS,"8,333.33",DISREPAIR,PAYMENTS FOR LEGAL SERVICES,2103631724,1000031040
07.03.2023,ASSET MANAGEMENT,DUNCAN LEWIS (SOLICITORS) LTD,"5,000.00",DISREPAIR,PAYMENTS FOR LEGAL SERVICES,2103631726,1000049481
07.03.2023,ASSET MANAGEMENT,ASHFORDS LLP,"2,677.50",DISREPAIR,PAYMENTS FOR LEGAL SERVICES,2103631717,1000055865
07.03.2023,ASSET MANAGEMENT,MLA SOLICITORS,500,DISREPAIR,PAYMENTS FOR LEGAL SERVICES,2103631722,1000079716
07.03.2023,ASSET MANAGEMENT,UNIVERSA LAW LTD,583.33,DISREPAIR,PAYMENTS FOR LEGAL SERVICES,2103631743,1000081466
07.03.2023,ASSET MANAGEMENT,CHESHIRE ESTATE AND LEGAL LTD,916.67,DISREPAIR,PAYMENTS FOR LEGAL SERVICES,2103631731,1000081908
07.03.2023,ASSET MANAGEMENT,CHESHIRE ESTATE AND LEGAL LTD,"5,833.33",DISREPAIR,PAYMENTS FOR LEGAL SERVICES,2103631723,1000081908
07.03.2023,ASSET MANAGEMENT,CHESHIRE ESTATE AND LEGAL LTD,"8,229.17",DISREPAIR,PAYMENTS FOR LEGAL SERVICES,2103631727,1000081908
07.03.2023,ASSET MANAGEMENT,COBLEYS SOLICITORS LTD,"4,708.33",DISREPAIR,PAYMENTS FOR LEGAL SERVICES,2103631733,1000083642
07.03.2023,ASSET MANAGEMENT,CLEARWATER  SOLICITORS,"6,979.17",DISREPAIR,PAYMENTS FOR LEGAL SERVICES,2103631742,1000084327
07.03.2023,ASSET MANAGEMENT,BOND TURNER  SOLICITORS,416.67,DISREPAIR,PAYMENTS FOR LEGAL SERVICES,2103631735,1000085362
07.03.2023,ASSET MANAGEMENT,BOND TURNER  SOLICITORS,708.33,DISREPAIR,PAYMENTS FOR LEGAL SERVICES,2103631741,1000085362
07.03.2023,ASSET MANAGEMENT,BOND TURNER  SOLICITORS,"4,166.67",DISREPAIR,PAYMENTS FOR LEGAL SERVICES,2103631718,1000085362
07.03.2023,ASSET MANAGEMENT,MJV & CO  SOLICITORS LTD,"2,916.67",DISREPAIR,PAYMENTS FOR LEGAL SERVICES,2103631740,1000086326
07.03.2023,ASSET MANAGEMENT,MJV & CO  SOLICITORS LTD,"5,000.00",DISREPAIR,PAYMENTS FOR LEGAL SERVICES,2103631732,1000086326
07.03.2023,ASSET MANAGEMENT,MJV & CO  SOLICITORS LTD,"5,000.00",DISREPAIR,PAYMENTS FOR LEGAL SERVICES,2103631744,1000086326
07.03.2023,ASSET MANAGEMENT,COYNE LEARMONTH (CROSBY) LIMITED,"2,059.55",DISREPAIR,PAYMENTS FOR LEGAL SERVICES,2103631719,1000088221
07.03.2023,ASSET MANAGEMENT,COYNE LEARMONTH (CROSBY) LIMITED,"5,000.00",DISREPAIR,PAYMENTS FOR LEGAL SERVICES,2103631738,1000088221
07.03.2023,ASSET MANAGEMENT,REED & CO SOLICITORS LIMITED,"1,666.67",DISREPAIR,PAYMENTS FOR LEGAL SERVICES,2103631729,1000088238
07.03.2023,ASSET MANAGEMENT,MCDERMOTT SMITH  LAW LTD,"1,458.33",DISREPAIR,PAYMENTS FOR LEGAL SERVICES,2103631721,1000088449
07.03.2023,ASSET MANAGEMENT,HAMARA SOLICITOR LTD,"4,583.33",DISREPAIR,PAYMENTS FOR LEGAL SERVICES,2103631728,1000088875
07.03.2023,ASSET MANAGEMENT,TRAVIS PERKINS TRADING COMPANY LTD,262,REPAIRS OPERATIONS,MATERIALS,5902569471,1514319
07.03.2023,ASSET MANAGEMENT,TRAVIS PERKINS TRADING COMPANY LTD,262,REPAIRS OPERATIONS,MATERIALS,5902569473,1514319
07.03.2023,ASSET MANAGEMENT,TRAVIS PERKINS TRADING COMPANY LTD,262,REPAIRS OPERATIONS,MATERIALS,5902569473,1514319
07.03.2023,ASSET MANAGEMENT,TRAVIS PERKINS TRADING COMPANY LTD,262,REPAIRS OPERATIONS,MATERIALS,5902569473,1514319
07.03.2023,ASSET MANAGEMENT,TRAVIS PERKINS TRADING COMPANY LTD,262,REPAIRS OPERATIONS,MATERIALS,5902569474,1514319
07.03.2023,ASSET MANAGEMENT,TRAVIS PERKINS TRADING COMPANY LTD,262,REPAIRS OPERATIONS,MATERIALS,5902569474,1514319
07.03.2023,ASSET MANAGEMENT,TRAVIS PERKINS TRADING COMPANY LTD,262,REPAIRS OPERATIONS,MATERIALS,5902569483,1514319
07.03.2023,ASSET MANAGEMENT,TRAVIS PERKINS TRADING COMPANY LTD,275,REPAIRS OPERATIONS,MATERIALS,5902569473,1514319
07.03.2023,ASSET MANAGEMENT,TRAVIS PERKINS TRADING COMPANY LTD,275,REPAIRS OPERATIONS,MATERIALS,5902569483,1514319
07.03.2023,ASSET MANAGEMENT,TRAVIS PERKINS TRADING COMPANY LTD,295.34,REPAIRS OPERATIONS,MATERIALS,5902569483,1514319
07.03.2023,CENTRAL FUNCTIONS,SPOKEMEAD MAINTENANCE LTD,296.29,GARAGE REPAIRS,BUILDING R&M,5902569637,1000059211
07.03.2023,CENTRAL FUNCTIONS,DSI BILLING SERVICES LTD,392.18,OPERATIONAL TEAM,POSTAGES,5902569348,1000058640
07.03.2023,CHIEF EXECUTIVE,MICA ARCHITECTS LTD,"3,132.81",CAPITAL PS (REGEN),CONSTRUCTION FEES - ARCHITECT,5902569468,1000087566
07.03.2023,CHIEF EXECUTIVE,INSPIRE AT ST PETER'S,445,CORPORATE & DEPARTMENTAL EXPENDITURE,HIRE OF ROOMS/HALLS,5902569600,1000041565
07.03.2023,CHILDREN AND FAMILIES,REDACTED PERSONAL DATA,696,ADOPTION ALLOWANCES,PAYMENTS TO CARERS,REDACTED,REDACTED
07.03.2023,CHILDREN AND FAMILIES,PLAY THERAPY SERVICES LTD,700,ADOPTION SUPP FUND 1,EXTERNAL AGENCIES AND BODIES,5902569562,1000085546
07.03.2023,CHILDREN AND FAMILIES,SOUTH LONDON & MAUDSLEY HOSPITAL,"4,920.00",ADOPTION SUPP FUND 2,EXTERNAL AGENCIES AND BODIES,5902569502,1000013096
07.03.2023,CHILDREN AND FAMILIES,SOUTH LONDON & MAUDSLEY HOSPITAL,"4,925.00",ADOPTION SUPP FUND 2,EXTERNAL AGENCIES AND BODIES,5902569503,1000013096
07.03.2023,CHILDREN AND FAMILIES,FAMILY FUTURES CIC,560,ADOPTION SUPP FUND 2,EXTERNAL AGENCIES AND BODIES,5902569622,1000027893
07.03.2023,CHILDREN AND FAMILIES,ALICE MALLORIE THERAPY SERVICE,300,ADOPTION SUPP FUND 2,EXTERNAL AGENCIES AND BODIES,5902569584,1000085491
07.03.2023,CHILDREN AND FAMILIES,PLAY THERAPY SERVICES LTD,350,ADOPTION SUPP FUND 2,EXTERNAL AGENCIES AND BODIES,5902569560,1000085546
07.03.2023,CHILDREN AND FAMILIES,SARAH ANNE PETER,"2,266.00",ADOPTION SUPP FUND 2,EXTERNAL AGENCIES AND BODIES,5902569640,1000089194
07.03.2023,CHILDREN AND FAMILIES,REDACTED PERSONAL DATA,396,ADOPTION SUPP FUND 2,EXTERNAL AGENCIES AND BODIES,REDACTED,REDACTED
07.03.2023,CHILDREN AND FAMILIES,REDACTED PERSONAL DATA,282.8,ADOPTION SUPP FUND 2,EXTERNAL AGENCIES AND BODIES,REDACTED,REDACTED
07.03.2023,CHILDREN AND FAMILIES,REDACTED PERSONAL DATA,480,ADOPTION SUPP FUND 2,EXTERNAL AGENCIES AND BODIES,REDACTED,REDACTED
07.03.2023,CHILDREN AND FAMILIES,STONELAKE LONDON LTD,"16,800.00",CHILDREN�S RESID,RESIDENTIAL CARE,2103631889,1000080075
07.03.2023,CHILDREN AND FAMILIES,TAVISTOCK & PORTMAN NHS FOUNDATION TRUST ,500,FDAC,EXTERNAL AGENCIES AND BODIES,5902569623,1991321
07.03.2023,CHILDREN AND FAMILIES,TAVISTOCK & PORTMAN NHS FOUNDATION TRUST ,"16,000.00",FDAC,EXTERNAL AGENCIES AND BODIES,5902569623,1991321
07.03.2023,CHILDREN AND FAMILIES,REDACTED PERSONAL DATA,696,FOSTERING ALLOWANCES,PAYMENTS TO CARERS,REDACTED,REDACTED
07.03.2023,CHILDREN AND FAMILIES,NURTURE FOSTERING LTD,"3,934.28",FRIENDS & FAMILY FOSTERING,EXTERNAL AGENCIES AND BODIES,2103631891,1000088623
07.03.2023,CHILDREN AND FAMILIES,CHOICE FOSTERING LTD,"6,000.12",FRIENDS & FAMILY FOSTERING,EXTERNAL AGENCIES AND BODIES,2103631892,1000089265
07.03.2023,CHILDREN AND FAMILIES,NETPEX LTD CORPORATE SERVICES,"-5,734.30",SEMI-IND CARELEAVERS,COSTS RECOVERED,2103621372,1000076073
07.03.2023,CHILDREN AND FAMILIES,NETPEX LTD CORPORATE SERVICES,"-5,255.16",SEMI-IND CARELEAVERS,COSTS RECOVERED,2103621374,1000076073
07.03.2023,CHILDREN AND FAMILIES,NETPEX LTD CORPORATE SERVICES,"-2,075.95",SEMI-IND CARELEAVERS,COSTS RECOVERED,2103621373,1000076073
07.03.2023,CHILDREN AND FAMILIES,NETPEX LTD CORPORATE SERVICES,-894.99,SEMI-IND CARELEAVERS,COSTS RECOVERED,2103621375,1000076073
07.03.2023,CHILDREN AND FAMILIES,HEARTWOOD OUTREACH SERVICES LTD,"2,291.40",SEMI-IND CARELEAVERS,EXTERNAL AGENCIES AND BODIES,2103631864,1000075021
07.03.2023,CHILDREN AND FAMILIES,NETPEX LTD CORPORATE SERVICES,"2,299.98",SEMI-IND CARELEAVERS,EXTERNAL AGENCIES AND BODIES,2103631871,1000076073
07.03.2023,CHILDREN AND FAMILIES,NETPEX LTD CORPORATE SERVICES,"2,523.98",SEMI-IND CARELEAVERS,EXTERNAL AGENCIES AND BODIES,2103631868,1000076073
07.03.2023,CHILDREN AND FAMILIES,NETPEX LTD CORPORATE SERVICES,"2,927.96",SEMI-IND CARELEAVERS,EXTERNAL AGENCIES AND BODIES,2103631870,1000076073
07.03.2023,CHILDREN AND FAMILIES,NETPEX LTD CORPORATE SERVICES,"3,980.20",SEMI-IND CARELEAVERS,EXTERNAL AGENCIES AND BODIES,2103631867,1000076073
07.03.2023,CHILDREN AND FAMILIES,NETPEX LTD CORPORATE SERVICES,300,SEMI-IND CARELEAVERS,OTHER PAYMENTS FOR CLIENTS,2103621216,1000076073
07.03.2023,CHILDREN AND FAMILIES,OPENMINDS SOCIAL CARE,"3,900.20",SEMI-IND LAC 16-17,EXTERNAL AGENCIES AND BODIES,2103631881,1000085800
07.03.2023,CHILDREN AND FAMILIES,DREAMFO HOUSING LTD,"2,250.00",SEMI-IND LAC 16-17,EXTERNAL AGENCIES AND BODIES,2103631883,1000087273
07.03.2023,CHILDREN AND FAMILIES,DREAMFO HOUSING LTD,"2,250.00",SEMI-IND LAC 16-17,EXTERNAL AGENCIES AND BODIES,2103631885,1000087273
07.03.2023,CHILDREN AND FAMILIES,DREAMFO HOUSING LTD,"3,000.00",SEMI-IND LAC 16-17,EXTERNAL AGENCIES AND BODIES,2103631878,1000087273
07.03.2023,CHILDREN AND FAMILIES,DREAMFO HOUSING LTD,"3,239.88",SEMI-IND LAC 16-17,EXTERNAL AGENCIES AND BODIES,2103631879,1000087273
07.03.2023,CHILDREN AND FAMILIES,DREAMFO HOUSING LTD,"5,160.00",SEMI-IND LAC 16-17,EXTERNAL AGENCIES AND BODIES,2103631876,1000087273
07.03.2023,CHILDREN AND FAMILIES,DREAMFO HOUSING LTD,639.8,SEMI-IND LAC 16-17,OTHER PAYMENTS FOR CLIENTS,2103631875,1000087273
07.03.2023,CHILDREN AND FAMILIES,TABITHA BARRAN,750,SFS MGMT & SUPPORT,LEGAL FEES & COURT COSTS,2103631568,1000053940
07.03.2023,CHILDREN AND FAMILIES,FORESIGHT CLINICAL SERVICES LTD,792,SFS MGMT & SUPPORT,LEGAL FEES & COURT COSTS,2103631546,1000061649
07.03.2023,CHILDREN AND FAMILIES,WILLIAM DEAN,750,SFS MGMT & SUPPORT,LEGAL FEES & COURT COSTS,2103631573,1000070780
07.03.2023,CHILDREN AND FAMILIES,JOHN SCHMITT,575,SFS MGMT & SUPPORT,LEGAL FEES & COURT COSTS,2103631558,1000074146
07.03.2023,CHILDREN AND FAMILIES,LAURA HIBBERD,575,SFS MGMT & SUPPORT,LEGAL FEES & COURT COSTS,2103631559,1000076749
07.03.2023,CHILDREN AND FAMILIES,ALASTAIR MARTEY,375,SFS MGMT & SUPPORT,LEGAL FEES & COURT COSTS,2103631534,1000080858
07.03.2023,CHILDREN AND FAMILIES,ROBERT WILKINSON,830,SFS MGMT & SUPPORT,LEGAL FEES & COURT COSTS,2103631565,1000085688
07.03.2023,CHILDREN AND FAMILIES,EDMUND COFIE,650,SFS MGMT & SUPPORT,LEGAL FEES & COURT COSTS,2103631545,1000087220
07.03.2023,CHILDREN AND FAMILIES,AMANDA BEWLEY,650,SFS MGMT & SUPPORT,LEGAL FEES & COURT COSTS,2103631536,1000089395
07.03.2023,CHILDREN AND FAMILIES,ORCHID CELLMARK LTD,414,TEAM A,OTHER PAYMENTS FOR CLIENTS,2103631893,1000078050
07.03.2023,CHILDREN AND FAMILIES,CONTACT PROFESSIONALS,316,TEAM C,OTHER PAYMENTS FOR CLIENTS,2103632219,1000057263
07.03.2023,CHILDREN AND FAMILIES,CONTACT PROFESSIONALS,434,TEAM C,OTHER PAYMENTS FOR CLIENTS,2103632220,1000057263
07.03.2023,CHILDREN AND FAMILIES,CONTACT PROFESSIONALS,494,TEAM C,OTHER PAYMENTS FOR CLIENTS,2103632229,1000057263
07.03.2023,CHILDREN AND FAMILIES,CONTACT PROFESSIONALS,525,TEAM C,OTHER PAYMENTS FOR CLIENTS,2103632221,1000057263
07.03.2023,CHILDREN AND FAMILIES,CONTACT PROFESSIONALS,554,TEAM C,OTHER PAYMENTS FOR CLIENTS,2103632222,1000057263
07.03.2023,CHILDREN AND FAMILIES,CONTACT PROFESSIONALS,562.5,TEAM C,OTHER PAYMENTS FOR CLIENTS,2103632235,1000057263
07.03.2023,CHILDREN AND FAMILIES,CONTACT PROFESSIONALS,615,TEAM C,OTHER PAYMENTS FOR CLIENTS,2103632215,1000057263
07.03.2023,CHILDREN AND FAMILIES,CONTACT PROFESSIONALS,704,TEAM C,OTHER PAYMENTS FOR CLIENTS,2103632223,1000057263
07.03.2023,CHILDREN AND FAMILIES,CONTACT PROFESSIONALS,720,TEAM C,OTHER PAYMENTS FOR CLIENTS,2103632230,1000057263
07.03.2023,CHILDREN AND FAMILIES,CONTACT PROFESSIONALS,720,TEAM C,OTHER PAYMENTS FOR CLIENTS,2103632236,1000057263
07.03.2023,CHILDREN AND FAMILIES,CONTACT PROFESSIONALS,730,TEAM C,OTHER PAYMENTS FOR CLIENTS,2103632216,1000057263
07.03.2023,CHILDREN AND FAMILIES,CONTACT PROFESSIONALS,730,TEAM C,OTHER PAYMENTS FOR CLIENTS,2103632231,1000057263
07.03.2023,CHILDREN AND FAMILIES,CONTACT PROFESSIONALS,730,TEAM C,OTHER PAYMENTS FOR CLIENTS,2103632241,1000057263
07.03.2023,CHILDREN AND FAMILIES,CONTACT PROFESSIONALS,734,TEAM C,OTHER PAYMENTS FOR CLIENTS,2103632228,1000057263
07.03.2023,CHILDREN AND FAMILIES,CONTACT PROFESSIONALS,734,TEAM C,OTHER PAYMENTS FOR CLIENTS,2103632245,1000057263
07.03.2023,CHILDREN AND FAMILIES,CONTACT PROFESSIONALS,735,TEAM C,OTHER PAYMENTS FOR CLIENTS,2103632225,1000057263
07.03.2023,CHILDREN AND FAMILIES,CONTACT PROFESSIONALS,735,TEAM C,OTHER PAYMENTS FOR CLIENTS,2103632233,1000057263
07.03.2023,CHILDREN AND FAMILIES,CONTACT PROFESSIONALS,739,TEAM C,OTHER PAYMENTS FOR CLIENTS,2103632217,1000057263
07.03.2023,CHILDREN AND FAMILIES,CONTACT PROFESSIONALS,945,TEAM C,OTHER PAYMENTS FOR CLIENTS,2103632239,1000057263
07.03.2023,CHILDREN AND FAMILIES,CONTACT PROFESSIONALS,975,TEAM C,OTHER PAYMENTS FOR CLIENTS,2103632224,1000057263
07.03.2023,CHILDREN AND FAMILIES,CONTACT PROFESSIONALS,975,TEAM C,OTHER PAYMENTS FOR CLIENTS,2103632227,1000057263
07.03.2023,CHILDREN AND FAMILIES,CONTACT PROFESSIONALS,975,TEAM C,OTHER PAYMENTS FOR CLIENTS,2103632240,1000057263
07.03.2023,CHILDREN AND FAMILIES,CONTACT PROFESSIONALS,"1,005.00",TEAM C,OTHER PAYMENTS FOR CLIENTS,2103632242,1000057263
07.03.2023,CHILDREN AND FAMILIES,CONTACT PROFESSIONALS,"1,090.00",TEAM C,OTHER PAYMENTS FOR CLIENTS,2103632218,1000057263
07.03.2023,CHILDREN AND FAMILIES,CONTACT PROFESSIONALS,"1,095.00",TEAM C,OTHER PAYMENTS FOR CLIENTS,2103632226,1000057263
07.03.2023,CHILDREN AND FAMILIES,CONTACT PROFESSIONALS,"1,095.00",TEAM C,OTHER PAYMENTS FOR CLIENTS,2103632244,1000057263
07.03.2023,CHILDREN AND FAMILIES,CONTACT PROFESSIONALS,"1,440.00",TEAM C,OTHER PAYMENTS FOR CLIENTS,2103632234,1000057263
07.03.2023,CHILDREN AND FAMILIES,CONTACT PROFESSIONALS,"1,440.00",TEAM C,OTHER PAYMENTS FOR CLIENTS,2103632238,1000057263
07.03.2023,CHILDREN AND FAMILIES,CONTACT PROFESSIONALS,"1,650.00",TEAM C,OTHER PAYMENTS FOR CLIENTS,2103632237,1000057263
07.03.2023,CHILDREN AND FAMILIES,CONTACT PROFESSIONALS,"1,680.00",TEAM C,OTHER PAYMENTS FOR CLIENTS,2103632232,1000057263
07.03.2023,CHILDREN AND FAMILIES,CONTACT PROFESSIONALS,"1,836.50",TEAM C,OTHER PAYMENTS FOR CLIENTS,2103632246,1000057263
07.03.2023,CHILDREN AND FAMILIES,STAR PEOPLE LTD,"2,253.70",TEMP ACCOM FOR IH,EXTERNAL AGENCIES AND BODIES,5902569648,1000088790
07.03.2023,CHILDREN AND FAMILIES,STEP AHEAD SERVICES LTD,"1,920.00",UASC CARELEAVERS,EXTERNAL AGENCIES AND BODIES,2103631866,1000036544
07.03.2023,CHILDREN AND FAMILIES,OWNLIFE LTD,"1,635.00",UASC CARELEAVERS,EXTERNAL AGENCIES AND BODIES,2103631865,1000056219
07.03.2023,CHILDREN AND FAMILIES,NETPEX LTD CORPORATE SERVICES,"1,960.00",UASC CARELEAVERS,EXTERNAL AGENCIES AND BODIES,2103631869,1000076073
07.03.2023,CHILDREN AND FAMILIES,SANCTUARY CARE SERVICES LTD,"1,840.00",UASC CARELEAVERS,EXTERNAL AGENCIES AND BODIES,2103631861,1000078444
07.03.2023,CHILDREN AND FAMILIES,SANCTUARY CARE SERVICES LTD,"1,840.00",UASC CARELEAVERS,EXTERNAL AGENCIES AND BODIES,2103631862,1000078444
07.03.2023,CHILDREN AND FAMILIES,DREAMFO HOUSING LTD,"2,250.00",UASC LAC 16-17,EXTERNAL AGENCIES AND BODIES,2103631886,1000087273
07.03.2023,CHILDREN AND FAMILIES,OUR ROCK LTD,"3,000.00",UASC LAC 16-17,EXTERNAL AGENCIES AND BODIES,2103631873,1000088325
07.03.2023,COMMUNITIES,REDACTED PERSONAL DATA,355.6,NO RECOURSE TO PUBLIC FUNDS,HOMECARE - C&V,REDACTED,REDACTED
07.03.2023,COMMUNITIES,REDACTED PERSONAL DATA,355.6,NO RECOURSE TO PUBLIC FUNDS,HOMECARE - C&V,REDACTED,REDACTED
07.03.2023,COMMUNITIES,REDACTED PERSONAL DATA,350,UKRAINIAN PROGRAMME,GRANTS,REDACTED,REDACTED
07.03.2023,COMMUNITIES,REDACTED PERSONAL DATA,350,UKRAINIAN PROGRAMME,GRANTS,REDACTED,REDACTED
07.03.2023,COMMUNITIES,REDACTED PERSONAL DATA,350,UKRAINIAN PROGRAMME,GRANTS,REDACTED,REDACTED
07.03.2023,COMMUNITIES,REDACTED PERSONAL DATA,350,UKRAINIAN PROGRAMME,GRANTS,REDACTED,REDACTED
07.03.2023,COMMUNITIES,REDACTED PERSONAL DATA,350,UKRAINIAN PROGRAMME,GRANTS,REDACTED,REDACTED
07.03.2023,COMMUNITIES,REDACTED PERSONAL DATA,350,UKRAINIAN PROGRAMME,GRANTS,REDACTED,REDACTED
07.03.2023,COMMUNITIES,REDACTED PERSONAL DATA,350,UKRAINIAN PROGRAMME,GRANTS,REDACTED,REDACTED
07.03.2023,COMMUNITIES,REDACTED PERSONAL DATA,350,UKRAINIAN PROGRAMME,GRANTS,REDACTED,REDACTED
07.03.2023,COMMUNITIES,REDACTED PERSONAL DATA,350,UKRAINIAN PROGRAMME,GRANTS,REDACTED,REDACTED
07.03.2023,COMMUNITIES,REDACTED PERSONAL DATA,350,UKRAINIAN PROGRAMME,GRANTS,REDACTED,REDACTED
07.03.2023,COMMUNITIES,REDACTED PERSONAL DATA,350,UKRAINIAN PROGRAMME,GRANTS,REDACTED,REDACTED
07.03.2023,COMMUNITIES,REDACTED PERSONAL DATA,350,UKRAINIAN PROGRAMME,GRANTS,REDACTED,REDACTED
07.03.2023,COMMUNITIES,REDACTED PERSONAL DATA,350,UKRAINIAN PROGRAMME,GRANTS,REDACTED,REDACTED
07.03.2023,CUSTOMER AND EXCHEQUER,DSI BILLING SERVICES LTD,"4,772.71",ADMINISTRATIVE SUPPORT,POSTAGES,5902569351,1000058640
07.03.2023,CUSTOMER AND EXCHEQUER,T.M.L.E LIMITED,"1,925.00",CORONER'S,PROFESSIONAL FEES,5902569501,1000085696
07.03.2023,CUSTOMER AND EXCHEQUER,JASMEET SOAR,350,CORONER'S,PROFESSIONAL FEES,5902569579,1000087866
07.03.2023,CUSTOMER AND EXCHEQUER,FAMILY FUND TRADING LTD,"25,000.00",SESS,OTHER PAYMENTS FOR CLIENTS,5902569541,1000071092
07.03.2023,CUSTOMER EXPERIENCE,TINA CONLAN,370,HOUSING NEEDS,LEGAL FEES & COURT COSTS,2103631570,1000051238
07.03.2023,DSG,ST JOSEPH`S COLLEGE,"2,666.67",AC & FREE - MSTREAM,STATEMENTED FEES,2103631675,1000070171
07.03.2023,DSG,SOUTHFIELDS ACADEMY,"1,271.00",AC & FREE - MSTREAM,STATEMENTED FEES,2103631707,1000083864
07.03.2023,DSG,THE CUMBERLAND SCHOOL (NEWHAM),"6,071.79",AC & FREE - MSTREAM,STATEMENTED FEES,2103631698,1000084892
07.03.2023,DSG,ST PETERS CE SCHOOL,"1,012.00",EY SENDIF,STATEMENTED FEES,2103631709,5001000083
07.03.2023,DSG,ST PETERS CE SCHOOL,"1,012.00",EY SENDIF,STATEMENTED FEES,2103631710,5001000083
